﻿Department family,Entity,Date of payment,Expense type,Expense area,Supplier,Transaction number,Amount in Sterling,Supplier VAT Registration Number
Department of Health,Guys and St Thomas NHS Foundation Trust,06/03/2020,(89000) Other - Training courses and conferences,(id:2122419) Cancer Supportive Services and R&D,KINGS COLLEGE LONDON:03529700,id:12867297    ,3330.00
Department of Health,Guys and St Thomas NHS Foundation Trust,20/03/2020,(84500) Establishment,(id:42276) Cancer Supportive Services and R&D,CDP  PRINT MANAGEMENT,id:12868399 ,   7.20
Department of Health,Guys and St Thomas NHS Foundation Trust,20/03/2020,(81200) Medical Surgical Supplies & Equipment,(id:2379419) Cancer Supportive Services and R&D,NHS SUPPLY CHAIN (MAIDSTONE),id:12846415   ,   9.00
Department of Health,Guys and St Thomas NHS Foundation Trust,27/03/2020,(82000) Provisions & Kitchens,(id:42279) Cancer Supportive Services and R&D,COTSWOLD & STATESIDE COFFEE COMPANY LTD,id:12929454, 703.20
Department of Health,Guys and St Thomas NHS Foundation Trust,06/03/2020,(84500) Establishment,(id:42245) Cancer Supportive Services and R&D,CDP  PRINT MANAGEMENT,id:12868395 ,  18.00
Department of Health,Guys and St Thomas NHS Foundation Trust,06/03/2020,(83410) Office Equipment,(id:42277) Cancer Supportive Services and R&D,RICOH UK LTD,id:12878881  , 679.79
Department of Health,Guys and St Thomas NHS Foundation Trust,06/03/2020,(81200) Medical Surgical Supplies & Equipment,(id:42270) Haematology,TERUMO BCT EUROPE NV/SA  (PREVIOUSLY CARIDIAN),id:12870517,4169.38
Department of Health,Guys and St Thomas NHS Foundation Trust,20/03/2020,(81200) Medical Surgical Supplies & Equipment,(id:42270) Haematology,NHS SUPPLY CHAIN (MAIDSTONE),id:12846415   ,1910.64
Department of Health,Guys and St Thomas NHS Foundation Trust,20/03/2020,(81200) Medical Surgical Supplies & Equipment,(id:42270) Haematology,MANA-TECH LTD,id:12910075   , 858.00
Department of Health,Guys and St Thomas NHS Foundation Trust,20/03/2020,(83400) Office Equipment,(id:42270) Haematology,NHS SUPPLY CHAIN (MAIDSTONE),id:12846415    , 669.61
Department of Health,Guys and St Thomas NHS Foundation Trust,13/03/2020,(83400) Office Equipment,(id:42270) Haematology,NHS SUPPLY CHAIN (MAIDSTONE),id:12761500    , 178.18
Department of Health,Guys and St Thomas NHS Foundation Trust,06/03/2020,(84500) Establishment,(id:42268) Haematology,CDP  PRINT MANAGEMENT,id:12868395    ,  18.00
Department of Health,Guys and St Thomas NHS Foundation Trust,06/03/2020,(81000) Surgical Appliances,(id:42268) Haematology,MEDI UK LTD,id:12862814   ,  56.04
Department of Health,Guys and St Thomas NHS Foundation Trust,06/03/2020,(84500) Establishment,(id:42267) Haematology,CDP  PRINT MANAGEMENT,id:12868400    ,   7.20
Department of Health,Guys and St Thomas NHS Foundation Trust,20/03/2020,(89595) Non-Healthcare from Foundation Trusts,(id:42267) Haematology,KING'S COLLEGE HOSPITAL NHS FOUNDATION TRUST,id:12762138  ,    13125.00
Department of Health,Guys and St Thomas NHS Foundation Trust,25/03/2020,(50202) Consultants,(id:42267) Haematology,PRICEWATERHOUSECOOPERS LLP,id:12931666 ,2284.75
Department of Health,Guys and St Thomas NHS Foundation Trust,13/03/2020,(82000) Provisions & Kitchens,(id:42265) Haematology,NHS SUPPLY CHAIN (MAIDSTONE),id:12761500    , 436.23
Department of Health,Guys and St Thomas NHS Foundation Trust,13/03/2020,(82600) Uniforms & Clothing,(id:42265) Haematology,NHS SUPPLY CHAIN (MAIDSTONE),id:12812705 ,1295.88
Department of Health,Guys and St Thomas NHS Foundation Trust,06/03/2020,(84500) Establishment,(id:42265) Haematology,CDP  PRINT MANAGEMENT,id:12868400    ,  10.80
Department of Health,Guys and St Thomas NHS Foundation Trust,20/03/2020,(81100) Dressings,(id:42265) Haematology,NHS SUPPLY CHAIN (MAIDSTONE),id:12864175 , 169.52
Department of Health,Guys and St Thomas NHS Foundation Trust,27/03/2020,(50552) Qualified Nursing Staff,(id:42265) Haematology,GLOBE LOCUMS LTD,id:12937388    , 336.78
Department of Health,Guys and St Thomas NHS Foundation Trust,27/03/2020,(50522) Unqualified Nursing Staff,(id:42265) Haematology,MSI GROUP LTD,id:12935342, 454.88
Department of Health,Guys and St Thomas NHS Foundation Trust,27/03/2020,(50522) Unqualified Nursing Staff,(id:42265) Haematology,MSI GROUP LTD,id:12935477,-454.88
Department of Health,Guys and St Thomas NHS Foundation Trust,13/03/2020,(82600) Uniforms & Clothing,(id:42272) Haematology,NHS SUPPLY CHAIN (MAIDSTONE),id:12812705 ,  10.08
Department of Health,Guys and St Thomas NHS Foundation Trust,20/03/2020,(81900) Lab Equipment Purchase,(id:42272) Haematology,VIAPATH ANALYTICS LLP,id:12724304,2213.59
Department of Health,Guys and St Thomas NHS Foundation Trust,27/03/2020,(80205) Drug Costs,(id:42273) Haematology,BAXALTA UK LTD,id:12935336    ,1700.40
Department of Health,Guys and St Thomas NHS Foundation Trust,27/03/2020,(80205) Drug Costs,(id:42273) Haematology,HEALTHCARE AT HOME LTD,id:12929478 ,4625.00
Department of Health,Guys and St Thomas NHS Foundation Trust,27/03/2020,(80205) Drug Costs,(id:42273) Haematology,HEALTHCARE AT HOME LTD,id:12935301 ,5400.20
Department of Health,Guys and St Thomas NHS Foundation Trust,27/03/2020,(80205) Drug Costs,(id:42273) Haematology,HEALTHCARE AT HOME LTD,id:12931829 ,    23447.00
Department of Health,Guys and St Thomas NHS Foundation Trust,06/03/2020,(80205) Drug Costs,(id:42273) Haematology,HEALTHCARE AT HOME LTD,id:12877354 ,6525.00
Department of Health,Guys and St Thomas NHS Foundation Trust,06/03/2020,(80205) Drug Costs,(id:42273) Haematology,HEALTHCARE AT HOME LTD,id:12877375 ,    15125.00
Department of Health,Guys and St Thomas NHS Foundation Trust,06/03/2020,(80205) Drug Costs,(id:42273) Haematology,HEALTHCARE AT HOME LTD,id:12875492 ,    -2100.00
Department of Health,Guys and St Thomas NHS Foundation Trust,20/03/2020,(80205) Drug Costs,(id:42273) Haematology,HEALTHCARE AT HOME LTD,id:12916943 ,4125.00
Department of Health,Guys and St Thomas NHS Foundation Trust,20/03/2020,(80205) Drug Costs,(id:42273) Haematology,HEALTHCARE AT HOME LTD,id:12916929 ,4925.00
Department of Health,Guys and St Thomas NHS Foundation Trust,20/03/2020,(80205) Drug Costs,(id:42273) Haematology,HEALTHCARE AT HOME LTD,id:12916993 ,5187.50
Department of Health,Guys and St Thomas NHS Foundation Trust,20/03/2020,(80205) Drug Costs,(id:42273) Haematology,HEALTHCARE AT HOME LTD,id:12916990 ,1125.00
Department of Health,Guys and St Thomas NHS Foundation Trust,20/03/2020,(80205) Drug Costs,(id:42273) Haematology,HEALTHCARE AT HOME LTD,id:12916915 ,3125.00
Department of Health,Guys and St Thomas NHS Foundation Trust,20/03/2020,(80205) Drug Costs,(id:42273) Haematology,HEALTHCARE AT HOME LTD,id:12916950 ,3125.00
Department of Health,Guys and St Thomas NHS Foundation Trust,20/03/2020,(80205) Drug Costs,(id:42273) Haematology,HEALTHCARE AT HOME LTD,id:12916979 ,3325.00
Department of Health,Guys and St Thomas NHS Foundation Trust,20/03/2020,(80205) Drug Costs,(id:42273) Haematology,HEALTHCARE AT HOME LTD,id:12916972 ,3875.00
Department of Health,Guys and St Thomas NHS Foundation Trust,27/03/2020,(80205) Drug Costs,(id:42273) Haematology,HEALTHCARE AT HOME LTD,id:12931818 ,1004.20
Department of Health,Guys and St Thomas NHS Foundation Trust,06/03/2020,(80205) Drug Costs,(id:42273) Haematology,HEALTHCARE AT HOME LTD,id:12854775 ,4125.00
Department of Health,Guys and St Thomas NHS Foundation Trust,06/03/2020,(80205) Drug Costs,(id:42273) Haematology,BAXALTA UK LTD,id:12828606    ,4446.10
Department of Health,Guys and St Thomas NHS Foundation Trust,06/03/2020,(80205) Drug Costs,(id:42273) Haematology,HEALTHCARE AT HOME LTD,id:12877567 ,5187.50
Department of Health,Guys and St Thomas NHS Foundation Trust,06/03/2020,(80205) Drug Costs,(id:42273) Haematology,HEALTHCARE AT HOME LTD,id:12854758 ,5525.00
Department of Health,Guys and St Thomas NHS Foundation Trust,06/03/2020,(80205) Drug Costs,(id:42273) Haematology,HEALTHCARE AT HOME LTD,id:12854772 ,1553.70
Department of Health,Guys and St Thomas NHS Foundation Trust,06/03/2020,(80205) Drug Costs,(id:42273) Haematology,HEALTHCARE AT HOME LTD,id:12855134 ,1725.00
Department of Health,Guys and St Thomas NHS Foundation Trust,06/03/2020,(80205) Drug Costs,(id:42273) Haematology,HEALTHCARE AT HOME LTD,id:12855054 ,3875.00
Department of Health,Guys and St Thomas NHS Foundation Trust,06/03/2020,(80205) Drug Costs,(id:42273) Haematology,HEALTHCARE AT HOME LTD,id:12855275 ,3875.00
Department of Health,Guys and St Thomas NHS Foundation Trust,20/03/2020,(80205) Drug Costs,(id:42273) Haematology,HEALTHCARE AT HOME LTD,id:12917021 ,    22625.00
Department of Health,Guys and St Thomas NHS Foundation Trust,20/03/2020,(80205) Drug Costs,(id:42273) Haematology,HEALTHCARE AT HOME LTD,id:12916987 ,6425.00
Department of Health,Guys and St Thomas NHS Foundation Trust,20/03/2020,(80205) Drug Costs,(id:42273) Haematology,HEALTHCARE AT HOME LTD,id:12917024 ,7325.00
Department of Health,Guys and St Thomas NHS Foundation Trust,20/03/2020,(80205) Drug Costs,(id:42273) Haematology,HEALTHCARE AT HOME LTD,id:12916924 ,7325.00
Department of Health,Guys and St Thomas NHS Foundation Trust,20/03/2020,(80205) Drug Costs,(id:42273) Haematology,HEALTHCARE AT HOME LTD,id:12916911 ,9625.00
Department of Health,Guys and St Thomas NHS Foundation Trust,20/03/2020,(80205) Drug Costs,(id:42273) Haematology,HEALTHCARE AT HOME LTD,id:12916970 ,    11375.00
Department of Health,Guys and St Thomas NHS Foundation Trust,06/03/2020,(89200) Other - Patient travel,(id:42130) Haematology,F A ALBIN & SONS,id:12875906, 860.00
Department of Health,Guys and St Thomas NHS Foundation Trust,27/03/2020,(54052) Technical Officers,(id:42128) Haematology,TOTAL ASSIST RECRUITMENT LTD,id:12937463  ,1280.70
Department of Health,Guys and St Thomas NHS Foundation Trust,20/03/2020,(82600) Uniforms & Clothing,(id:42258) Oncology Services,NHS SUPPLY CHAIN (MAIDSTONE),id:12846415,  69.77
Department of Health,Guys and St Thomas NHS Foundation Trust,06/03/2020,(84500) Establishment,(id:42258) Oncology Services,CDP  PRINT MANAGEMENT,id:12868397   ,  28.40
Department of Health,Guys and St Thomas NHS Foundation Trust,13/03/2020,(82800) Bedding & Linen,(id:42258) Oncology Services,NHS SUPPLY CHAIN (MAIDSTONE),id:12761500    ,  40.18
Department of Health,Guys and St Thomas NHS Foundation Trust,13/03/2020,(81200) Medical Surgical Supplies & Equipment,(id:42258) Oncology Services,NHS SUPPLY CHAIN (MAIDSTONE),id:12761500  , 109.90
Department of Health,Guys and St Thomas NHS Foundation Trust,27/03/2020,(81000) Surgical Appliances,(id:42261) Oncology Services,TALAR MADE ORTHOTICS LTD,id:12933094    , 414.00
Department of Health,Guys and St Thomas NHS Foundation Trust,06/03/2020,(81000) Surgical Appliances,(id:42261) Oncology Services,MEDI UK LTD,id:12862534  ,  10.63
Department of Health,Guys and St Thomas NHS Foundation Trust,13/03/2020,(81200) Medical Surgical Supplies & Equipment,(id:42260) Oncology Services,NHS SUPPLY CHAIN (MAIDSTONE),id:12825586  ,7318.62
Department of Health,Guys and St Thomas NHS Foundation Trust,13/03/2020,(81200) Medical Surgical Supplies & Equipment,(id:42260) Oncology Services,KIMAL PLC,id:12883123 ,2071.50
Department of Health,Guys and St Thomas NHS Foundation Trust,13/03/2020,(81200) Medical Surgical Supplies & Equipment,(id:42260) Oncology Services,KIMAL PLC,id:12775792 ,1710.00
Department of Health,Guys and St Thomas NHS Foundation Trust,13/03/2020,(81275) Medical Surgical Supplies & Equipment,(id:42260) Oncology Services,NHS SUPPLY CHAIN (MAIDSTONE),id:12825586  , 194.40
Department of Health,Guys and St Thomas NHS Foundation Trust,13/03/2020,(82000) Provisions & Kitchens,(id:42260) Oncology Services,NHS SUPPLY CHAIN (MAIDSTONE),id:12761500   ,  87.32
Department of Health,Guys and St Thomas NHS Foundation Trust,20/03/2020,(81100) Dressings,(id:42260) Oncology Services,NHS SUPPLY CHAIN (MAIDSTONE),id:12846415,2989.62
Department of Health,Guys and St Thomas NHS Foundation Trust,13/03/2020,(82700) Uniforms & Clothing,(id:42260) Oncology Services,NHS SUPPLY CHAIN (MAIDSTONE),id:12761500, 495.00
Department of Health,Guys and St Thomas NHS Foundation Trust,20/03/2020,(82800) Bedding & Linen,(id:42259) Oncology Services,NHS SUPPLY CHAIN (MAIDSTONE),id:12846415    ,  91.60
Department of Health,Guys and St Thomas NHS Foundation Trust,06/03/2020,(84500) Establishment,(id:42259) Oncology Services,CDP  PRINT MANAGEMENT,id:12868397   ,  14.40
Department of Health,Guys and St Thomas NHS Foundation Trust,20/03/2020,(81200) Medical Surgical Supplies & Equipment,(id:42259) Oncology Services,NHS SUPPLY CHAIN (MAIDSTONE),id:12864175  ,1530.82
Department of Health,Guys and St Thomas NHS Foundation Trust,20/03/2020,(81200) Medical Surgical Supplies & Equipment,(id:42259) Oncology Services,NHS SUPPLY CHAIN (MAIDSTONE),id:12846415  ,1184.02
Department of Health,Guys and St Thomas NHS Foundation Trust,27/03/2020,(50552) Qualified Nursing Staff,(id:42259) Oncology Services,MSI GROUP LTD,id:12939712 , 355.83
Department of Health,Guys and St Thomas NHS Foundation Trust,13/03/2020,(83400) Office Equipment,(id:42259) Oncology Services,NHS SUPPLY CHAIN (MAIDSTONE),id:12812705   ,  84.41
Department of Health,Guys and St Thomas NHS Foundation Trust,13/03/2020,(81255) Medical Surgical Supplies & Equipment,(id:42259) Oncology Services,NHS SUPPLY CHAIN (MAIDSTONE),id:12825586  ,   4.44
Department of Health,Guys and St Thomas NHS Foundation Trust,13/03/2020,(81100) Dressings,(id:42280) Surgical Oncology,NHS SUPPLY CHAIN (MAIDSTONE),id:12812705,  44.57
Department of Health,Guys and St Thomas NHS Foundation Trust,13/03/2020,(81100) Dressings,(id:42280) Surgical Oncology,KCI MEDICAL LTD,id:12876795   ,1465.49
Department of Health,Guys and St Thomas NHS Foundation Trust,27/03/2020,(81200) Medical Surgical Supplies & Equipment,(id:42280) Surgical Oncology,SEBBIN UK LTD,id:12601193  ,1878.00
Department of Health,Guys and St Thomas NHS Foundation Trust,06/03/2020,(81200) Medical Surgical Supplies & Equipment,(id:42280) Surgical Oncology,HEALTHCARE 21 LTD,id:12853107   ,1022.40
Department of Health,Guys and St Thomas NHS Foundation Trust,20/03/2020,(83400) Office Equipment,(id:42280) Surgical Oncology,NHS SUPPLY CHAIN (MAIDSTONE),id:12846415   ,  30.64
Department of Health,Guys and St Thomas NHS Foundation Trust,06/03/2020,(81000) Surgical Appliances,(id:42280) Surgical Oncology,MEDI UK LTD,id:12863077  , 354.04
Department of Health,Guys and St Thomas NHS Foundation Trust,20/03/2020,(82600) Uniforms & Clothing,(id:42280) Surgical Oncology,NHS SUPPLY CHAIN (MAIDSTONE),id:12864175, 220.32
Department of Health,Guys and St Thomas NHS Foundation Trust,06/03/2020,(84500) Establishment,(id:243406) Surgical Oncology,CDP  PRINT MANAGEMENT,id:12868397  ,  14.40
Department of Health,Guys and St Thomas NHS Foundation Trust,13/03/2020,(83400) Office Equipment,(id:243406) Surgical Oncology,NHS SUPPLY CHAIN (MAIDSTONE),id:12812705  ,  58.85
Department of Health,Guys and St Thomas NHS Foundation Trust,13/03/2020,(82800) Bedding & Linen,(id:42477) Surgical Oncology,NHS SUPPLY CHAIN (MAIDSTONE),id:12825586    ,  49.56
Department of Health,Guys and St Thomas NHS Foundation Trust,13/03/2020,(81100) Dressings,(id:42474) Surgical Oncology,NHS SUPPLY CHAIN (MAIDSTONE),id:12812705,   4.80
Department of Health,Guys and St Thomas NHS Foundation Trust,13/03/2020,(81100) Dressings,(id:42474) Surgical Oncology,NHS SUPPLY CHAIN (MAIDSTONE),id:12761500,  70.59
Department of Health,Guys and St Thomas NHS Foundation Trust,13/03/2020,(81100) Dressings,(id:42474) Surgical Oncology,NHS SUPPLY CHAIN (MAIDSTONE),id:12825586,  27.90
Department of Health,Guys and St Thomas NHS Foundation Trust,06/03/2020,(81200) Medical Surgical Supplies & Equipment,(id:42474) Surgical Oncology,WESCOTT MEDICAL,id:12778188, 841.09
Department of Health,Guys and St Thomas NHS Foundation Trust,06/03/2020,(81200) Medical Surgical Supplies & Equipment,(id:42474) Surgical Oncology,SEVERN HEALTHCARE TECHNOLOGIES LTD,id:12825722 , 590.40
Department of Health,Guys and St Thomas NHS Foundation Trust,20/03/2020,(81200) Medical Surgical Supplies & Equipment,(id:42474) Surgical Oncology,NHS SUPPLY CHAIN (MAIDSTONE),id:12846415  , 351.12
Department of Health,Guys and St Thomas NHS Foundation Trust,13/03/2020,(83400) Office Equipment,(id:42474) Surgical Oncology,NHS SUPPLY CHAIN (MAIDSTONE),id:12825586   ,  35.14
Department of Health,Guys and St Thomas NHS Foundation Trust,06/03/2020,(81100) Dressings,(id:42473) Surgical Oncology,JEWEL MANAGEMENT LTD T/A GENERAL MEDICAL,id:12862758   , 527.94
Department of Health,Guys and St Thomas NHS Foundation Trust,13/03/2020,(81100) Dressings,(id:42473) Surgical Oncology,NHS SUPPLY CHAIN (MAIDSTONE),id:12761500,  10.35
Department of Health,Guys and St Thomas NHS Foundation Trust,13/03/2020,(81100) Dressings,(id:42473) Surgical Oncology,NHS SUPPLY CHAIN (MAIDSTONE),id:12812705,   2.04
Department of Health,Guys and St Thomas NHS Foundation Trust,13/03/2020,(81100) Dressings,(id:42473) Surgical Oncology,COOK UK LTD,id:12896561  ,    -1824.00
Department of Health,Guys and St Thomas NHS Foundation Trust,20/03/2020,(81100) Dressings,(id:42473) Surgical Oncology,NHS SUPPLY CHAIN (MAIDSTONE),id:12846415,   1.22
Department of Health,Guys and St Thomas NHS Foundation Trust,13/03/2020,(81200) Medical Surgical Supplies & Equipment,(id:42473) Surgical Oncology,DELTA SURGICAL LTD,id:12852560  , 829.20
Department of Health,Guys and St Thomas NHS Foundation Trust,13/03/2020,(81200) Medical Surgical Supplies & Equipment,(id:42473) Surgical Oncology,SQUADRON MEDICAL LTD,id:12837844, 638.42
Department of Health,Guys and St Thomas NHS Foundation Trust,13/03/2020,(81200) Medical Surgical Supplies & Equipment,(id:42473) Surgical Oncology,MEDTRONIC LTD,id:12797473  , 868.80
Department of Health,Guys and St Thomas NHS Foundation Trust,13/03/2020,(81200) Medical Surgical Supplies & Equipment,(id:42473) Surgical Oncology,NHS SUPPLY CHAIN (MAIDSTONE),id:12761500  ,1992.53
Department of Health,Guys and St Thomas NHS Foundation Trust,13/03/2020,(81200) Medical Surgical Supplies & Equipment,(id:42473) Surgical Oncology,SQUADRON MEDICAL LTD,id:12848689, 720.94
Department of Health,Guys and St Thomas NHS Foundation Trust,20/03/2020,(81200) Medical Surgical Supplies & Equipment,(id:42473) Surgical Oncology,MEDTRONIC LTD,id:12874226  ,1000.80
Department of Health,Guys and St Thomas NHS Foundation Trust,06/03/2020,(81200) Medical Surgical Supplies & Equipment,(id:42473) Surgical Oncology,DELTA SURGICAL LTD,id:12825633  , 619.20
Department of Health,Guys and St Thomas NHS Foundation Trust,20/03/2020,(81200) Medical Surgical Supplies & Equipment,(id:42473) Surgical Oncology,SEVERN HEALTHCARE TECHNOLOGIES LTD,id:12878391 ,1326.00
Department of Health,Guys and St Thomas NHS Foundation Trust,20/03/2020,(81200) Medical Surgical Supplies & Equipment,(id:42473) Surgical Oncology,RICHARD WOLF U K  LTD,id:12830997    ,1206.00
Department of Health,Guys and St Thomas NHS Foundation Trust,20/03/2020,(84500) Establishment,(id:42475) Surgical Oncology,CDP  PRINT MANAGEMENT,id:12868399   ,  22.60
Department of Health,Guys and St Thomas NHS Foundation Trust,13/03/2020,(81200) Medical Surgical Supplies & Equipment,(id:42475) Surgical Oncology,NHS SUPPLY CHAIN (MAIDSTONE),id:12761500  ,   5.10
Department of Health,Guys and St Thomas NHS Foundation Trust,25/03/2020,(54062) Technical Officers,(id:42475) Surgical Oncology,PRICEWATERHOUSECOOPERS LLP,id:12931666   ,1192.25
Department of Health,Guys and St Thomas NHS Foundation Trust,19/03/2020,(54062) Technical Officers,(id:42475) Surgical Oncology,PRICEWATERHOUSECOOPERS LLP,id:12920472   ,1192.25
Department of Health,Guys and St Thomas NHS Foundation Trust,13/03/2020,(81215) Medical Surgical Supplies & Equipment,(id:42475) Surgical Oncology,ADVANCED BIONICS SARL (AND UK LTD),id:12820757 ,7800.00
Department of Health,Guys and St Thomas NHS Foundation Trust,13/03/2020,(81215) Medical Surgical Supplies & Equipment,(id:42475) Surgical Oncology,ADVANCED BIONICS SARL (AND UK LTD),id:12866339 ,6840.00
Department of Health,Guys and St Thomas NHS Foundation Trust,13/03/2020,(81225) Medical Surgical Supplies & Equipment,(id:42475) Surgical Oncology,COCHLEAR EUROPE LTD,id:12890775 ,    19203.60
Department of Health,Guys and St Thomas NHS Foundation Trust,13/03/2020,(81225) Medical Surgical Supplies & Equipment,(id:42475) Surgical Oncology,NHS SUPPLY CHAIN (MAIDSTONE),id:12812705  ,    10787.36
Department of Health,Guys and St Thomas NHS Foundation Trust,13/03/2020,(81225) Medical Surgical Supplies & Equipment,(id:42475) Surgical Oncology,NHS SUPPLY CHAIN (MAIDSTONE),id:12761500  ,7549.32
Department of Health,Guys and St Thomas NHS Foundation Trust,20/03/2020,(81225) Medical Surgical Supplies & Equipment,(id:42475) Surgical Oncology,C J CAPTIONING,id:12923835 , 511.20
Department of Health,Guys and St Thomas NHS Foundation Trust,06/03/2020,(84600) Establishment,(id:42475) Surgical Oncology,CLARITY TRAVEL MANAGEMENT,id:12878449    , 146.89
Department of Health,Guys and St Thomas NHS Foundation Trust,13/03/2020,(81100) Dressings,(id:42286) Surgical Oncology,SQUADRON MEDICAL LTD,id:12845902   , 113.83
Department of Health,Guys and St Thomas NHS Foundation Trust,20/03/2020,(81100) Dressings,(id:42286) Surgical Oncology,SQUADRON MEDICAL LTD,id:12879209   ,  88.54
Department of Health,Guys and St Thomas NHS Foundation Trust,27/03/2020,(81200) Medical Surgical Supplies & Equipment,(id:42286) Surgical Oncology,MEDTRONIC LTD,id:12885450  ,1483.92
Department of Health,Guys and St Thomas NHS Foundation Trust,13/03/2020,(81200) Medical Surgical Supplies & Equipment,(id:42286) Surgical Oncology,SQUADRON MEDICAL LTD,id:12834231, 564.41
Department of Health,Guys and St Thomas NHS Foundation Trust,13/03/2020,(81200) Medical Surgical Supplies & Equipment,(id:42286) Surgical Oncology,JOHNSON & JOHNSON MEDICAL LTD,id:12848677 ,2730.79
Department of Health,Guys and St Thomas NHS Foundation Trust,20/03/2020,(81200) Medical Surgical Supplies & Equipment,(id:42286) Surgical Oncology,SQUADRON MEDICAL LTD,id:12868736, 944.67
Department of Health,Guys and St Thomas NHS Foundation Trust,20/03/2020,(81200) Medical Surgical Supplies & Equipment,(id:42286) Surgical Oncology,SQUADRON MEDICAL LTD,id:12874360, 641.88
Department of Health,Guys and St Thomas NHS Foundation Trust,20/03/2020,(81200) Medical Surgical Supplies & Equipment,(id:42286) Surgical Oncology,KAPITEX HEALTHCARE LTD,id:12894050   ,2511.12
Department of Health,Guys and St Thomas NHS Foundation Trust,20/03/2020,(81200) Medical Surgical Supplies & Equipment,(id:42286) Surgical Oncology,MEDTRONIC LTD,id:12879017  ,1652.40
Department of Health,Guys and St Thomas NHS Foundation Trust,06/03/2020,(81200) Medical Surgical Supplies & Equipment,(id:42286) Surgical Oncology,JOHNSON & JOHNSON MEDICAL LTD,id:12822425 ,3394.63
Department of Health,Guys and St Thomas NHS Foundation Trust,06/03/2020,(81200) Medical Surgical Supplies & Equipment,(id:42286) Surgical Oncology,MEDTRONIC LTD,id:12819078  ,4438.58
Department of Health,Guys and St Thomas NHS Foundation Trust,13/03/2020,(82000) Provisions & Kitchens,(id:42284) Surgical Oncology,NHS SUPPLY CHAIN (MAIDSTONE),id:12825586   , 244.64
Department of Health,Guys and St Thomas NHS Foundation Trust,06/03/2020,(84500) Establishment,(id:42284) Surgical Oncology,CDP  PRINT MANAGEMENT,id:12868400   ,  14.40
Department of Health,Guys and St Thomas NHS Foundation Trust,20/03/2020,(81100) Dressings,(id:42284) Surgical Oncology,NHS SUPPLY CHAIN (MAIDSTONE),id:12846415, 439.05
Department of Health,Guys and St Thomas NHS Foundation Trust,27/03/2020,(81200) Medical Surgical Supplies & Equipment,(id:42284) Surgical Oncology,SQUADRON MEDICAL LTD,id:12883941,1233.31
Department of Health,Guys and St Thomas NHS Foundation Trust,13/03/2020,(81200) Medical Surgical Supplies & Equipment,(id:42284) Surgical Oncology,NHS SUPPLY CHAIN (MAIDSTONE),id:12825586  ,4603.78
Department of Health,Guys and St Thomas NHS Foundation Trust,20/03/2020,(50552) Qualified Nursing Staff,(id:42284) Surgical Oncology,GLOBE LOCUMS LTD,id:12920997   , 252.58
Department of Health,Guys and St Thomas NHS Foundation Trust,20/03/2020,(81700) Lab Equipment Purchase,(id:42284) Surgical Oncology,NHS SUPPLY CHAIN (MAIDSTONE),id:12864175  ,  59.77
Department of Health,Guys and St Thomas NHS Foundation Trust,13/03/2020,(81200) Medical Surgical Supplies & Equipment,(id:42471) Surgical Oncology,SQUADRON MEDICAL LTD,id:12837824, 626.28
Department of Health,Guys and St Thomas NHS Foundation Trust,13/03/2020,(82000) Provisions & Kitchens,(id:42470) Surgical Oncology,NHS SUPPLY CHAIN (MAIDSTONE),id:12812705   ,  60.54
Department of Health,Guys and St Thomas NHS Foundation Trust,13/03/2020,(82000) Provisions & Kitchens,(id:42470) Surgical Oncology,NHS SUPPLY CHAIN (MAIDSTONE),id:12825586   , 130.67
Department of Health,Guys and St Thomas NHS Foundation Trust,13/03/2020,(82600) Uniforms & Clothing,(id:42470) Surgical Oncology,NHS SUPPLY CHAIN (MAIDSTONE),id:12825586,1063.23
Department of Health,Guys and St Thomas NHS Foundation Trust,20/03/2020,(82600) Uniforms & Clothing,(id:42470) Surgical Oncology,NHS SUPPLY CHAIN (MAIDSTONE),id:12846415, 686.87
Department of Health,Guys and St Thomas NHS Foundation Trust,13/03/2020,(83400) Office Equipment,(id:42470) Surgical Oncology,NHS SUPPLY CHAIN (MAIDSTONE),id:12825586   , 180.96
Department of Health,Guys and St Thomas NHS Foundation Trust,13/03/2020,(82600) Uniforms & Clothing,(id:42232) Integrated Therapies and Medicine,NHS SUPPLY CHAIN (MAIDSTONE),id:12761500    ,  18.90
Department of Health,Guys and St Thomas NHS Foundation Trust,06/03/2020,(84500) Establishment,(id:42232) Integrated Therapies and Medicine,CDP  PRINT MANAGEMENT,id:12868400  ,  57.10
Department of Health,Guys and St Thomas NHS Foundation Trust,06/03/2020,(84500) Establishment,(id:42232) Integrated Therapies and Medicine,CDP  PRINT MANAGEMENT,id:12868398  ,  92.70
Department of Health,Guys and St Thomas NHS Foundation Trust,20/03/2020,(83500) Furniture & Fittings,(id:42232) Integrated Therapies and Medicine,NHS SUPPLY CHAIN (MAIDSTONE),id:12864175   , 264.00
Department of Health,Guys and St Thomas NHS Foundation Trust,13/03/2020,(81100) Dressings,(id:42230) Integrated Therapies and Medicine,NHS SUPPLY CHAIN (MAIDSTONE),id:12812705    ,  38.30
Department of Health,Guys and St Thomas NHS Foundation Trust,13/03/2020,(82800) Bedding & Linen,(id:42230) Integrated Therapies and Medicine,NHS SUPPLY CHAIN (MAIDSTONE),id:12825586   ,  20.09
Department of Health,Guys and St Thomas NHS Foundation Trust,20/03/2020,(82800) Bedding & Linen,(id:42230) Integrated Therapies and Medicine,NHS SUPPLY CHAIN (MAIDSTONE),id:12864175   ,  40.18
Department of Health,Guys and St Thomas NHS Foundation Trust,20/03/2020,(83400) Office Equipment,(id:42230) Integrated Therapies and Medicine,NHS SUPPLY CHAIN (MAIDSTONE),id:12846415  , 204.23
Department of Health,Guys and St Thomas NHS Foundation Trust,13/03/2020,(86300) Healthcare from non-NHS bodies,(id:42237) Integrated Therapies and Medicine,PHYSIOTHERAPY SOLUTIONS LTD,id:12896794    ,    46574.00
Department of Health,Guys and St Thomas NHS Foundation Trust,20/03/2020,(81225) Medical Surgical Supplies & Equipment,(id:42240) Integrated Therapies and Medicine,PERFORMANCE HEALTH INTERNATIONAL LTD (PATTERSON),id:12842022 , 748.27
Department of Health,Guys and St Thomas NHS Foundation Trust,20/03/2020,(81100) Dressings,(id:42239) Integrated Therapies and Medicine,PERFORMANCE HEALTH INTERNATIONAL LTD (PATTERSON),id:12908754    , 360.53
Department of Health,Guys and St Thomas NHS Foundation Trust,13/03/2020,(81200) Medical Surgical Supplies & Equipment,(id:42239) Integrated Therapies and Medicine,NHS SUPPLY CHAIN (MAIDSTONE),id:12761500 , 138.29
Department of Health,Guys and St Thomas NHS Foundation Trust,20/03/2020,(81200) Medical Surgical Supplies & Equipment,(id:42239) Integrated Therapies and Medicine,NHS SUPPLY CHAIN (MAIDSTONE),id:12846415 ,  84.89
Department of Health,Guys and St Thomas NHS Foundation Trust,20/03/2020,(81200) Medical Surgical Supplies & Equipment,(id:42239) Integrated Therapies and Medicine,PERFORMANCE HEALTH INTERNATIONAL LTD (PATTERSON),id:12908754 ,1327.71
Department of Health,Guys and St Thomas NHS Foundation Trust,06/03/2020,(81100) Dressings,(id:590530) Integrated Therapies and Medicine,BAILEY INSTRUMENTS LIMITED,id:12814150, 573.31
Department of Health,Guys and St Thomas NHS Foundation Trust,13/03/2020,(81100) Dressings,(id:590530) Integrated Therapies and Medicine,NHS SUPPLY CHAIN (MAIDSTONE),id:12761500   , 274.87
Department of Health,Guys and St Thomas NHS Foundation Trust,20/03/2020,(81100) Dressings,(id:590530) Integrated Therapies and Medicine,NHS SUPPLY CHAIN (MAIDSTONE),id:12864175   , 134.88
Department of Health,Guys and St Thomas NHS Foundation Trust,13/03/2020,(81100) Dressings,(id:590490) Integrated Therapies and Medicine,NHS SUPPLY CHAIN (MAIDSTONE),id:12812705   ,  21.36
Department of Health,Guys and St Thomas NHS Foundation Trust,27/03/2020,(81100) Dressings,(id:590490) Integrated Therapies and Medicine,BAILEY INSTRUMENTS LIMITED,id:12882716, 648.91
Department of Health,Guys and St Thomas NHS Foundation Trust,20/03/2020,(81100) Dressings,(id:590490) Integrated Therapies and Medicine,NHS SUPPLY CHAIN (MAIDSTONE),id:12846415   ,  29.48
Department of Health,Guys and St Thomas NHS Foundation Trust,13/03/2020,(83400) Office Equipment,(id:590490) Integrated Therapies and Medicine,NHS SUPPLY CHAIN (MAIDSTONE),id:12761500 ,  48.78
Department of Health,Guys and St Thomas NHS Foundation Trust,20/03/2020,(83400) Office Equipment,(id:590490) Integrated Therapies and Medicine,NHS SUPPLY CHAIN (MAIDSTONE),id:12864175 ,  86.40
Department of Health,Guys and St Thomas NHS Foundation Trust,20/03/2020,(82600) Uniforms & Clothing,(id:590490) Integrated Therapies and Medicine,NHS SUPPLY CHAIN (MAIDSTONE),id:12864175   ,   8.60
Department of Health,Guys and St Thomas NHS Foundation Trust,06/03/2020,(84500) Establishment,(id:590490) Integrated Therapies and Medicine,CDP  PRINT MANAGEMENT,id:12868400 ,   7.20
Department of Health,Guys and St Thomas NHS Foundation Trust,20/03/2020,(81200) Medical Surgical Supplies & Equipment,(id:42243) Integrated Therapies and Medicine,CANONBURY PRODUCTS LTD,id:12888234  , 771.98
Department of Health,Guys and St Thomas NHS Foundation Trust,13/03/2020,(81100) Dressings,(id:42243) Integrated Therapies and Medicine,NHS SUPPLY CHAIN (MAIDSTONE),id:12825586    , 128.32
Department of Health,Guys and St Thomas NHS Foundation Trust,25/03/2020,(53062) Speech Therapists,(id:42248) Integrated Therapies and Medicine,PRICEWATERHOUSECOOPERS LLP,id:12931666   ,1217.37
Department of Health,Guys and St Thomas NHS Foundation Trust,27/03/2020,(55052) Admin & Clerical,(id:590500) Integrated Therapies and Medicine,PARITY PROFESSIONALS LIMITED,id:12920957 , 803.04
Department of Health,Guys and St Thomas NHS Foundation Trust,20/03/2020,(81200) Medical Surgical Supplies & Equipment,(id:590499) Integrated Therapies and Medicine,SUMED INTERNATIONAL (UK) LIMITED,id:12896822 , 996.00
Department of Health,Guys and St Thomas NHS Foundation Trust,20/03/2020,(81200) Medical Surgical Supplies & Equipment,(id:590499) Integrated Therapies and Medicine,INVACARE LTD,id:12886314 , 524.40
Department of Health,Guys and St Thomas NHS Foundation Trust,20/03/2020,(81200) Medical Surgical Supplies & Equipment,(id:590499) Integrated Therapies and Medicine,INVACARE LTD,id:12886354 ,2869.20
Department of Health,Guys and St Thomas NHS Foundation Trust,20/03/2020,(81225) Medical Surgical Supplies & Equipment,(id:590498) Integrated Therapies and Medicine,JANE SAUNDERS & MANNING LTD,id:12896710 , 669.72
Department of Health,Guys and St Thomas NHS Foundation Trust,20/03/2020,(81225) Medical Surgical Supplies & Equipment,(id:590498) Integrated Therapies and Medicine,JANE SAUNDERS & MANNING LTD,id:12896717 , 935.32
Department of Health,Guys and St Thomas NHS Foundation Trust,27/03/2020,(81000) Surgical Appliances,(id:590498) Integrated Therapies and Medicine,BEAGLE ORTHOPAEDIC LTD,id:12897834    ,1698.43
Department of Health,Guys and St Thomas NHS Foundation Trust,27/03/2020,(81000) Surgical Appliances,(id:590498) Integrated Therapies and Medicine,ANATOMICAL CONCEPTS (UK) LTD,id:12840234   ,6616.14
Department of Health,Guys and St Thomas NHS Foundation Trust,20/03/2020,(81000) Surgical Appliances,(id:590498) Integrated Therapies and Medicine,ALLARD SUPPORT LTD,id:12896761   , 686.40
Department of Health,Guys and St Thomas NHS Foundation Trust,20/03/2020,(81000) Surgical Appliances,(id:590498) Integrated Therapies and Medicine,THUASNE UK LTD,id:12896778  ,1140.00
Department of Health,Guys and St Thomas NHS Foundation Trust,13/03/2020,(83400) Office Equipment,(id:590496) Integrated Therapies and Medicine,NHS SUPPLY CHAIN (MAIDSTONE),id:12761500 ,  10.42
Department of Health,Guys and St Thomas NHS Foundation Trust,20/03/2020,(82800) Bedding & Linen,(id:590496) Integrated Therapies and Medicine,NHS SUPPLY CHAIN (MAIDSTONE),id:12846415  ,  10.46
Department of Health,Guys and St Thomas NHS Foundation Trust,13/03/2020,(81100) Dressings,(id:42242) Integrated Therapies and Medicine,NHS SUPPLY CHAIN (MAIDSTONE),id:12761500    ,   5.54
Department of Health,Guys and St Thomas NHS Foundation Trust,13/03/2020,(81200) Medical Surgical Supplies & Equipment,(id:1042419) Integrated Therapies and Medicine,NHS SUPPLY CHAIN (MAIDSTONE),id:12825586    , 115.20
Department of Health,Guys and St Thomas NHS Foundation Trust,20/03/2020,(81200) Medical Surgical Supplies & Equipment,(id:1042419) Integrated Therapies and Medicine,NHS SUPPLY CHAIN (MAIDSTONE),id:12864175    ,  81.00
Department of Health,Guys and St Thomas NHS Foundation Trust,13/03/2020,(82000) Provisions & Kitchens,(id:1042419) Integrated Therapies and Medicine,NHS SUPPLY CHAIN (MAIDSTONE),id:12825586,  68.86
Department of Health,Guys and St Thomas NHS Foundation Trust,06/03/2020,(84500) Establishment,(id:1042419) Integrated Therapies and Medicine,CDP  PRINT MANAGEMENT,id:12868400,   3.60
Department of Health,Guys and St Thomas NHS Foundation Trust,27/03/2020,(83400) Office Equipment,(id:1042419) Integrated Therapies and Medicine,CITY & KENT CLEANING LTD,id:12914498    , 477.78
Department of Health,Guys and St Thomas NHS Foundation Trust,13/03/2020,(81225) Medical Surgical Supplies & Equipment,(id:2182419) Integrated Therapies and Medicine,NHS SUPPLY CHAIN (MAIDSTONE),id:12812705    ,  69.77
Department of Health,Guys and St Thomas NHS Foundation Trust,13/03/2020,(81700) Lab Equipment Purchase,(id:2182419) Integrated Therapies and Medicine,NHS SUPPLY CHAIN (MAIDSTONE),id:12825586    , 148.74
Department of Health,Guys and St Thomas NHS Foundation Trust,20/03/2020,(82600) Uniforms & Clothing,(id:2182419) Integrated Therapies and Medicine,NHS SUPPLY CHAIN (MAIDSTONE),id:12846415  ,1334.72
Department of Health,Guys and St Thomas NHS Foundation Trust,13/03/2020,(81275) Medical Surgical Supplies & Equipment,(id:2182419) Integrated Therapies and Medicine,NHS SUPPLY CHAIN (MAIDSTONE),id:12812705    ,  68.24
Department of Health,Guys and St Thomas NHS Foundation Trust,20/03/2020,(81275) Medical Surgical Supplies & Equipment,(id:2182419) Integrated Therapies and Medicine,NHS SUPPLY CHAIN (MAIDSTONE),id:12846415    , 166.50
Department of Health,Guys and St Thomas NHS Foundation Trust,20/03/2020,(82800) Bedding & Linen,(id:2182419) Integrated Therapies and Medicine,NHS SUPPLY CHAIN (MAIDSTONE),id:12864175 , 205.92
Department of Health,Guys and St Thomas NHS Foundation Trust,13/03/2020,(81200) Medical Surgical Supplies & Equipment,(id:2182419) Integrated Therapies and Medicine,NHS SUPPLY CHAIN (MAIDSTONE),id:12812705    ,3025.06
Department of Health,Guys and St Thomas NHS Foundation Trust,20/03/2020,(81200) Medical Surgical Supplies & Equipment,(id:2182419) Integrated Therapies and Medicine,NHS SUPPLY CHAIN (MAIDSTONE),id:12864175    ,4392.34
Department of Health,Guys and St Thomas NHS Foundation Trust,27/03/2020,(50552) Qualified Nursing Staff,(id:2182419) Integrated Therapies and Medicine,GLOBE LOCUMS LTD,id:12937438, 613.16
Department of Health,Guys and St Thomas NHS Foundation Trust,27/03/2020,(50552) Qualified Nursing Staff,(id:2182419) Integrated Therapies and Medicine,GLOBE LOCUMS LTD,id:12937379, 309.47
Department of Health,Guys and St Thomas NHS Foundation Trust,27/03/2020,(50552) Qualified Nursing Staff,(id:2182419) Integrated Therapies and Medicine,GLOBE LOCUMS LTD,id:12932749, 325.21
Department of Health,Guys and St Thomas NHS Foundation Trust,27/03/2020,(50552) Qualified Nursing Staff,(id:2182419) Integrated Therapies and Medicine,MSI GROUP LTD,id:12937198   , 327.40
Department of Health,Guys and St Thomas NHS Foundation Trust,27/03/2020,(50552) Qualified Nursing Staff,(id:2182419) Integrated Therapies and Medicine,CARE PROVIDERS HEALTHCARE,id:12932873 , 676.52
Department of Health,Guys and St Thomas NHS Foundation Trust,27/03/2020,(50552) Qualified Nursing Staff,(id:2182419) Integrated Therapies and Medicine,GLOBE LOCUMS LTD,id:12937196, 357.55
Department of Health,Guys and St Thomas NHS Foundation Trust,27/03/2020,(50552) Qualified Nursing Staff,(id:2182419) Integrated Therapies and Medicine,GLOBE LOCUMS LTD,id:12932863, 396.49
Department of Health,Guys and St Thomas NHS Foundation Trust,13/03/2020,(50552) Qualified Nursing Staff,(id:2182419) Integrated Therapies and Medicine,CONTINENTAL NURSE LTD,id:12895897,2316.34
Department of Health,Guys and St Thomas NHS Foundation Trust,13/03/2020,(50552) Qualified Nursing Staff,(id:2182419) Integrated Therapies and Medicine,GLOBE LOCUMS LTD,id:12896016, 371.37
Department of Health,Guys and St Thomas NHS Foundation Trust,20/03/2020,(50552) Qualified Nursing Staff,(id:2182419) Integrated Therapies and Medicine,MSI GROUP LTD,id:12920810   ,1003.43
Department of Health,Guys and St Thomas NHS Foundation Trust,06/03/2020,(50522) Unqualified Nursing Staff,(id:2182419) Integrated Therapies and Medicine,GENEVA HEALTH INTERNATIONAL LIMITED,id:12872182    , 268.54
Department of Health,Guys and St Thomas NHS Foundation Trust,13/03/2020,(50522) Unqualified Nursing Staff,(id:2182419) Integrated Therapies and Medicine,MSI GROUP LTD,id:12900721 , 213.06
Department of Health,Guys and St Thomas NHS Foundation Trust,13/03/2020,(81100) Dressings,(id:2182419) Integrated Therapies and Medicine,NHS SUPPLY CHAIN (MAIDSTONE),id:12761500  , 556.36
Department of Health,Guys and St Thomas NHS Foundation Trust,20/03/2020,(81100) Dressings,(id:2182419) Integrated Therapies and Medicine,NHS SUPPLY CHAIN (MAIDSTONE),id:12864175  ,1560.75
Department of Health,Guys and St Thomas NHS Foundation Trust,20/03/2020,(82800) Bedding & Linen,(id:41860) Integrated Therapies and Medicine,NHS SUPPLY CHAIN (MAIDSTONE),id:12846415   , 194.06
Department of Health,Guys and St Thomas NHS Foundation Trust,06/03/2020,(84500) Establishment,(id:41860) Integrated Therapies and Medicine,CDP  PRINT MANAGEMENT,id:12868395  ,  46.80
Department of Health,Guys and St Thomas NHS Foundation Trust,06/03/2020,(84500) Establishment,(id:41860) Integrated Therapies and Medicine,CDP  PRINT MANAGEMENT,id:12868397  ,  25.20
Department of Health,Guys and St Thomas NHS Foundation Trust,27/03/2020,(50552) Qualified Nursing Staff,(id:41860) Integrated Therapies and Medicine,MSI GROUP LTD,id:12932686, 486.58
Department of Health,Guys and St Thomas NHS Foundation Trust,13/03/2020,(81255) Medical Surgical Supplies & Equipment,(id:41860) Integrated Therapies and Medicine,NHS SUPPLY CHAIN (MAIDSTONE),id:12761500 ,  22.30
Department of Health,Guys and St Thomas NHS Foundation Trust,20/03/2020,(50522) Unqualified Nursing Staff,(id:41860) Integrated Therapies and Medicine,GLOBE LOCUMS LTD,id:12924953, 244.43
Department of Health,Guys and St Thomas NHS Foundation Trust,20/03/2020,(82000) Provisions & Kitchens,(id:41859) Integrated Therapies and Medicine,NHS SUPPLY CHAIN (MAIDSTONE),id:12864175  , 161.67
Department of Health,Guys and St Thomas NHS Foundation Trust,13/03/2020,(82800) Bedding & Linen,(id:41859) Integrated Therapies and Medicine,NHS SUPPLY CHAIN (MAIDSTONE),id:12761500   ,  44.38
Department of Health,Guys and St Thomas NHS Foundation Trust,20/03/2020,(81100) Dressings,(id:41859) Integrated Therapies and Medicine,NHS SUPPLY CHAIN (MAIDSTONE),id:12864175    , 712.56
Department of Health,Guys and St Thomas NHS Foundation Trust,06/03/2020,(84500) Establishment,(id:41859) Integrated Therapies and Medicine,CDP  PRINT MANAGEMENT,id:12868398  ,  10.80
Department of Health,Guys and St Thomas NHS Foundation Trust,20/03/2020,(84500) Establishment,(id:41859) Integrated Therapies and Medicine,CDP  PRINT MANAGEMENT,id:12868399  ,  46.80
Department of Health,Guys and St Thomas NHS Foundation Trust,27/03/2020,(50552) Qualified Nursing Staff,(id:41859) Integrated Therapies and Medicine,CARE PROVIDERS HEALTHCARE,id:12937479   , 654.47
Department of Health,Guys and St Thomas NHS Foundation Trust,13/03/2020,(81255) Medical Surgical Supplies & Equipment,(id:41859) Integrated Therapies and Medicine,NHS SUPPLY CHAIN (MAIDSTONE),id:12761500 ,  10.08
Department of Health,Guys and St Thomas NHS Foundation Trust,27/03/2020,(50522) Unqualified Nursing Staff,(id:41859) Integrated Therapies and Medicine,CARE PROVIDERS HEALTHCARE,id:12937286 , 204.36
Department of Health,Guys and St Thomas NHS Foundation Trust,27/03/2020,(50522) Unqualified Nursing Staff,(id:41859) Integrated Therapies and Medicine,MSI GROUP LTD,id:12937227   , 208.27
Department of Health,Guys and St Thomas NHS Foundation Trust,27/03/2020,(50522) Unqualified Nursing Staff,(id:41859) Integrated Therapies and Medicine,MSI GROUP LTD,id:12939754   , 265.20
Department of Health,Guys and St Thomas NHS Foundation Trust,20/03/2020,(81225) Medical Surgical Supplies & Equipment,(id:41859) Integrated Therapies and Medicine,NHS SUPPLY CHAIN (MAIDSTONE),id:12846415 ,  13.38
Department of Health,Guys and St Thomas NHS Foundation Trust,13/03/2020,(81700) Lab Equipment Purchase,(id:41859) Integrated Therapies and Medicine,NHS SUPPLY CHAIN (MAIDSTONE),id:12761500 ,  15.83
Department of Health,Guys and St Thomas NHS Foundation Trust,20/03/2020,(82600) Uniforms & Clothing,(id:41858) Integrated Therapies and Medicine,NHS SUPPLY CHAIN (MAIDSTONE),id:12846415    , 751.68
Department of Health,Guys and St Thomas NHS Foundation Trust,13/03/2020,(82800) Bedding & Linen,(id:41858) Integrated Therapies and Medicine,NHS SUPPLY CHAIN (MAIDSTONE),id:12761500   , 194.40
Department of Health,Guys and St Thomas NHS Foundation Trust,06/03/2020,(84500) Establishment,(id:41858) Integrated Therapies and Medicine,CDP  PRINT MANAGEMENT,id:12868397  ,  36.00
Department of Health,Guys and St Thomas NHS Foundation Trust,06/03/2020,(84500) Establishment,(id:41858) Integrated Therapies and Medicine,CDP  PRINT MANAGEMENT,id:12868400  ,  21.60
Department of Health,Guys and St Thomas NHS Foundation Trust,06/03/2020,(50552) Qualified Nursing Staff,(id:41858) Integrated Therapies and Medicine,CARE PROVIDERS HEALTHCARE,id:12882348   , 980.06
Department of Health,Guys and St Thomas NHS Foundation Trust,13/03/2020,(81700) Lab Equipment Purchase,(id:41858) Integrated Therapies and Medicine,NHS SUPPLY CHAIN (MAIDSTONE),id:12825586 ,  31.63
Department of Health,Guys and St Thomas NHS Foundation Trust,20/03/2020,(81200) Medical Surgical Supplies & Equipment,(id:860419) Integrated Therapies and Medicine,NHS SUPPLY CHAIN (MAIDSTONE),id:12846415,  29.55
Department of Health,Guys and St Thomas NHS Foundation Trust,13/03/2020,(81200) Medical Surgical Supplies & Equipment,(id:860419) Integrated Therapies and Medicine,NHS SUPPLY CHAIN (MAIDSTONE),id:12761500, 333.45
Department of Health,Guys and St Thomas NHS Foundation Trust,13/03/2020,(82000) Provisions & Kitchens,(id:860419) Integrated Therapies and Medicine,NHS SUPPLY CHAIN (MAIDSTONE),id:12761500 ,  11.28
Department of Health,Guys and St Thomas NHS Foundation Trust,25/03/2020,(50472) Medical Training Grades,(id:41873) Integrated Therapies and Medicine,PRICEWATERHOUSECOOPERS LLP,id:12931666  , 389.05
Department of Health,Guys and St Thomas NHS Foundation Trust,06/03/2020,(50472) Medical Training Grades,(id:41873) Integrated Therapies and Medicine,INTERACT MEDICAL,id:12827140  , 595.58
Department of Health,Guys and St Thomas NHS Foundation Trust,13/03/2020,(81000) Surgical Appliances,(id:41872) Integrated Therapies and Medicine,TALAR MADE ORTHOTICS LTD,id:12893995   , 114.00
Department of Health,Guys and St Thomas NHS Foundation Trust,20/03/2020,(50570) Qualified Nursing Staff,(id:41872) Integrated Therapies and Medicine,SOUTH LONDON AND MAUDSLEY NHS FOUNDATION TRUST,id:12918214  ,9328.37
Department of Health,Guys and St Thomas NHS Foundation Trust,27/03/2020,(50522) Unqualified Nursing Staff,(id:41872) Integrated Therapies and Medicine,MSI GROUP LTD,id:12935477   ,-454.88
Department of Health,Guys and St Thomas NHS Foundation Trust,06/03/2020,(50552) Qualified Nursing Staff,(id:41870) Integrated Therapies and Medicine,MSI GROUP LTD,id:12882330, 318.98
Department of Health,Guys and St Thomas NHS Foundation Trust,13/03/2020,(50552) Qualified Nursing Staff,(id:41870) Integrated Therapies and Medicine,MSI GROUP LTD,id:12900664, 342.02
Department of Health,Guys and St Thomas NHS Foundation Trust,20/03/2020,(50552) Qualified Nursing Staff,(id:41870) Integrated Therapies and Medicine,MSI GROUP LTD,id:12921025, 328.41
Department of Health,Guys and St Thomas NHS Foundation Trust,13/03/2020,(82700) Uniforms & Clothing,(id:41869) Integrated Therapies and Medicine,NHS SUPPLY CHAIN (MAIDSTONE),id:12825586    ,  10.56
Department of Health,Guys and St Thomas NHS Foundation Trust,06/03/2020,(84500) Establishment,(id:41869) Integrated Therapies and Medicine,CDP  PRINT MANAGEMENT,id:12877747  , 601.02
Department of Health,Guys and St Thomas NHS Foundation Trust,06/03/2020,(84500) Establishment,(id:41869) Integrated Therapies and Medicine,CDP  PRINT MANAGEMENT,id:12868400  , 127.50
Department of Health,Guys and St Thomas NHS Foundation Trust,06/03/2020,(84500) Establishment,(id:41869) Integrated Therapies and Medicine,CDP  PRINT MANAGEMENT,id:12868397  ,  45.30
Department of Health,Guys and St Thomas NHS Foundation Trust,20/03/2020,(84500) Establishment,(id:41869) Integrated Therapies and Medicine,ROCHE DIAGNOSTICS LTD,id:12890241  ,2502.61
Department of Health,Guys and St Thomas NHS Foundation Trust,06/03/2020,(84500) Establishment,(id:41869) Integrated Therapies and Medicine,ROCHE DIAGNOSTICS LTD,id:12859654  ,   -60062.69
Department of Health,Guys and St Thomas NHS Foundation Trust,27/03/2020,(83400) Office Equipment,(id:41869) Integrated Therapies and Medicine,SQUADRON MEDICAL LTD,id:12899038,  35.93
Department of Health,Guys and St Thomas NHS Foundation Trust,27/03/2020,(83400) Office Equipment,(id:41869) Integrated Therapies and Medicine,SQUADRON MEDICAL LTD,id:12898958, 269.76
Department of Health,Guys and St Thomas NHS Foundation Trust,20/03/2020,(83400) Office Equipment,(id:41869) Integrated Therapies and Medicine,SQUADRON MEDICAL LTD,id:12868686, 269.76
Department of Health,Guys and St Thomas NHS Foundation Trust,06/03/2020,(83400) Office Equipment,(id:41869) Integrated Therapies and Medicine,SQUADRON MEDICAL LTD,id:12853845,  53.95
Department of Health,Guys and St Thomas NHS Foundation Trust,06/03/2020,(83400) Office Equipment,(id:41869) Integrated Therapies and Medicine,SQUADRON MEDICAL LTD,id:12825214,  80.93
Department of Health,Guys and St Thomas NHS Foundation Trust,06/03/2020,(83400) Office Equipment,(id:41869) Integrated Therapies and Medicine,SQUADRON MEDICAL LTD,id:12822448, 107.90
Department of Health,Guys and St Thomas NHS Foundation Trust,20/03/2020,(83400) Office Equipment,(id:41869) Integrated Therapies and Medicine,SQUADRON MEDICAL LTD,id:12879267,  49.42
Department of Health,Guys and St Thomas NHS Foundation Trust,13/03/2020,(83500) Furniture & Fittings,(id:41869) Integrated Therapies and Medicine,NHS SUPPLY CHAIN (MAIDSTONE),id:12761500   , 197.42
Department of Health,Guys and St Thomas NHS Foundation Trust,13/03/2020,(82800) Bedding & Linen,(id:41869) Integrated Therapies and Medicine,NHS SUPPLY CHAIN (MAIDSTONE),id:12825586   ,  70.12
Department of Health,Guys and St Thomas NHS Foundation Trust,13/03/2020,(82800) Bedding & Linen,(id:41869) Integrated Therapies and Medicine,NHS SUPPLY CHAIN (MAIDSTONE),id:12812705   , 151.86
Department of Health,Guys and St Thomas NHS Foundation Trust,27/03/2020,(81200) Medical Surgical Supplies & Equipment,(id:41869) Integrated Therapies and Medicine,SQUADRON MEDICAL LTD,id:12899022    , 557.92
Department of Health,Guys and St Thomas NHS Foundation Trust,27/03/2020,(81200) Medical Surgical Supplies & Equipment,(id:41869) Integrated Therapies and Medicine,SQUADRON MEDICAL LTD,id:12894681    ,2189.56
Department of Health,Guys and St Thomas NHS Foundation Trust,06/03/2020,(81200) Medical Surgical Supplies & Equipment,(id:41869) Integrated Therapies and Medicine,SQUADRON MEDICAL LTD,id:12822448    , 878.12
Department of Health,Guys and St Thomas NHS Foundation Trust,06/03/2020,(81200) Medical Surgical Supplies & Equipment,(id:41869) Integrated Therapies and Medicine,SQUADRON MEDICAL LTD,id:12853215    ,1192.53
Department of Health,Guys and St Thomas NHS Foundation Trust,13/03/2020,(81200) Medical Surgical Supplies & Equipment,(id:41869) Integrated Therapies and Medicine,SQUADRON MEDICAL LTD,id:12837803    , 543.99
Department of Health,Guys and St Thomas NHS Foundation Trust,13/03/2020,(81200) Medical Surgical Supplies & Equipment,(id:41869) Integrated Therapies and Medicine,SQUADRON MEDICAL LTD,id:12837772    , 522.10
Department of Health,Guys and St Thomas NHS Foundation Trust,13/03/2020,(81200) Medical Surgical Supplies & Equipment,(id:41869) Integrated Therapies and Medicine,SQUADRON MEDICAL LTD,id:12834469    , 818.68
Department of Health,Guys and St Thomas NHS Foundation Trust,13/03/2020,(81200) Medical Surgical Supplies & Equipment,(id:41869) Integrated Therapies and Medicine,NHS SUPPLY CHAIN (MAIDSTONE),id:12761500 ,1443.20
Department of Health,Guys and St Thomas NHS Foundation Trust,13/03/2020,(81200) Medical Surgical Supplies & Equipment,(id:41869) Integrated Therapies and Medicine,SQUADRON MEDICAL LTD,id:12846256    , 901.88
Department of Health,Guys and St Thomas NHS Foundation Trust,13/03/2020,(81200) Medical Surgical Supplies & Equipment,(id:41869) Integrated Therapies and Medicine,SQUADRON MEDICAL LTD,id:12845931    ,1308.02
Department of Health,Guys and St Thomas NHS Foundation Trust,20/03/2020,(81200) Medical Surgical Supplies & Equipment,(id:41869) Integrated Therapies and Medicine,SQUADRON MEDICAL LTD,id:12860068    , 694.42
Department of Health,Guys and St Thomas NHS Foundation Trust,06/03/2020,(81100) Dressings,(id:41869) Integrated Therapies and Medicine,SQUADRON MEDICAL LTD,id:12824903  ,  15.28
Department of Health,Guys and St Thomas NHS Foundation Trust,13/03/2020,(81100) Dressings,(id:41869) Integrated Therapies and Medicine,SQUADRON MEDICAL LTD,id:12848947  , 205.19
Department of Health,Guys and St Thomas NHS Foundation Trust,27/03/2020,(81100) Dressings,(id:41869) Integrated Therapies and Medicine,SQUADRON MEDICAL LTD,id:12885532  ,   6.91
Department of Health,Guys and St Thomas NHS Foundation Trust,20/03/2020,(81100) Dressings,(id:41869) Integrated Therapies and Medicine,SQUADRON MEDICAL LTD,id:12860068  ,  16.18
Department of Health,Guys and St Thomas NHS Foundation Trust,13/03/2020,(81225) Medical Surgical Supplies & Equipment,(id:41869) Integrated Therapies and Medicine,NHS SUPPLY CHAIN (MAIDSTONE),id:12825586 , 654.00
Department of Health,Guys and St Thomas NHS Foundation Trust,20/03/2020,(81700) Lab Equipment Purchase,(id:41869) Integrated Therapies and Medicine,NHS SUPPLY CHAIN (MAIDSTONE),id:12864175 ,  72.81
Department of Health,Guys and St Thomas NHS Foundation Trust,20/03/2020,(81700) Lab Equipment Purchase,(id:41869) Integrated Therapies and Medicine,NHS SUPPLY CHAIN (MAIDSTONE),id:12846415 ,  67.17
Department of Health,Guys and St Thomas NHS Foundation Trust,13/03/2020,(81100) Dressings,(id:41868) Integrated Therapies and Medicine,NHS SUPPLY CHAIN (MAIDSTONE),id:12761500    , 585.49
Department of Health,Guys and St Thomas NHS Foundation Trust,20/03/2020,(81100) Dressings,(id:41868) Integrated Therapies and Medicine,NHS SUPPLY CHAIN (MAIDSTONE),id:12864175    ,    .82
Department of Health,Guys and St Thomas NHS Foundation Trust,20/03/2020,(81200) Medical Surgical Supplies & Equipment,(id:41868) Integrated Therapies and Medicine,NHS SUPPLY CHAIN (MAIDSTONE),id:12864175 ,  23.74
Department of Health,Guys and St Thomas NHS Foundation Trust,13/03/2020,(82000) Provisions & Kitchens,(id:41868) Integrated Therapies and Medicine,NHS SUPPLY CHAIN (MAIDSTONE),id:12825586  , 183.78
Department of Health,Guys and St Thomas NHS Foundation Trust,13/03/2020,(83400) Office Equipment,(id:41868) Integrated Therapies and Medicine,NHS SUPPLY CHAIN (MAIDSTONE),id:12761500  ,  89.38
Department of Health,Guys and St Thomas NHS Foundation Trust,06/03/2020,(83400) Office Equipment,(id:41868) Integrated Therapies and Medicine,SQUADRON MEDICAL LTD,id:12797793,  13.49
Department of Health,Guys and St Thomas NHS Foundation Trust,13/03/2020,(82000) Provisions & Kitchens,(id:41882) Integrated Therapies and Medicine,NHS SUPPLY CHAIN (MAIDSTONE),id:12825586  ,  21.97
Department of Health,Guys and St Thomas NHS Foundation Trust,20/03/2020,(82000) Provisions & Kitchens,(id:41882) Integrated Therapies and Medicine,NHS SUPPLY CHAIN (MAIDSTONE),id:12846415  ,  20.12
Department of Health,Guys and St Thomas NHS Foundation Trust,20/03/2020,(81100) Dressings,(id:41882) Integrated Therapies and Medicine,NHS SUPPLY CHAIN (MAIDSTONE),id:12846415    ,   4.90
Department of Health,Guys and St Thomas NHS Foundation Trust,13/03/2020,(82600) Uniforms & Clothing,(id:41880) Integrated Therapies and Medicine,NHS SUPPLY CHAIN (MAIDSTONE),id:12825586    , 640.66
Department of Health,Guys and St Thomas NHS Foundation Trust,20/03/2020,(82600) Uniforms & Clothing,(id:41880) Integrated Therapies and Medicine,NHS SUPPLY CHAIN (MAIDSTONE),id:12864175    , 362.45
Department of Health,Guys and St Thomas NHS Foundation Trust,20/03/2020,(81100) Dressings,(id:41880) Integrated Therapies and Medicine,NHS SUPPLY CHAIN (MAIDSTONE),id:12846415    , 268.46
Department of Health,Guys and St Thomas NHS Foundation Trust,27/03/2020,(50552) Qualified Nursing Staff,(id:41880) Integrated Therapies and Medicine,MSI GROUP LTD,id:12932717,1018.31
Department of Health,Guys and St Thomas NHS Foundation Trust,20/03/2020,(81200) Medical Surgical Supplies & Equipment,(id:41880) Integrated Therapies and Medicine,NHS SUPPLY CHAIN (MAIDSTONE),id:12864175 ,1174.38
Department of Health,Guys and St Thomas NHS Foundation Trust,20/03/2020,(82600) Uniforms & Clothing,(id:41879) Integrated Therapies and Medicine,NHS SUPPLY CHAIN (MAIDSTONE),id:12846415    ,1382.12
Department of Health,Guys and St Thomas NHS Foundation Trust,20/03/2020,(83400) Office Equipment,(id:41879) Integrated Therapies and Medicine,NHS SUPPLY CHAIN (MAIDSTONE),id:12846415  , 260.19
Department of Health,Guys and St Thomas NHS Foundation Trust,20/03/2020,(83400) Office Equipment,(id:41879) Integrated Therapies and Medicine,NHS SUPPLY CHAIN (MAIDSTONE),id:12864175  , 151.39
Department of Health,Guys and St Thomas NHS Foundation Trust,13/03/2020,(82800) Bedding & Linen,(id:41879) Integrated Therapies and Medicine,NHS SUPPLY CHAIN (MAIDSTONE),id:12812705   , 196.82
Department of Health,Guys and St Thomas NHS Foundation Trust,13/03/2020,(82800) Bedding & Linen,(id:41879) Integrated Therapies and Medicine,NHS SUPPLY CHAIN (MAIDSTONE),id:12825586   , 104.06
Department of Health,Guys and St Thomas NHS Foundation Trust,20/03/2020,(81100) Dressings,(id:41879) Integrated Therapies and Medicine,NHS SUPPLY CHAIN (MAIDSTONE),id:12846415    ,  81.33
Department of Health,Guys and St Thomas NHS Foundation Trust,20/03/2020,(50522) Unqualified Nursing Staff,(id:41879) Integrated Therapies and Medicine,GLOBE LOCUMS LTD,id:12920920, 203.99
Department of Health,Guys and St Thomas NHS Foundation Trust,13/03/2020,(81255) Medical Surgical Supplies & Equipment,(id:41879) Integrated Therapies and Medicine,NHS SUPPLY CHAIN (MAIDSTONE),id:12761500 ,   2.40
Department of Health,Guys and St Thomas NHS Foundation Trust,13/03/2020,(81255) Medical Surgical Supplies & Equipment,(id:41879) Integrated Therapies and Medicine,NHS SUPPLY CHAIN (MAIDSTONE),id:12825586 ,   1.87
Department of Health,Guys and St Thomas NHS Foundation Trust,13/03/2020,(81700) Lab Equipment Purchase,(id:41879) Integrated Therapies and Medicine,NHS SUPPLY CHAIN (MAIDSTONE),id:12761500 ,  14.85
Department of Health,Guys and St Thomas NHS Foundation Trust,13/03/2020,(50552) Qualified Nursing Staff,(id:41879) Integrated Therapies and Medicine,CONTINENTAL NURSE LTD,id:12896106  ,1010.19
Department of Health,Guys and St Thomas NHS Foundation Trust,20/03/2020,(82600) Uniforms & Clothing,(id:41878) Integrated Therapies and Medicine,NHS SUPPLY CHAIN (MAIDSTONE),id:12846415    ,1170.60
Department of Health,Guys and St Thomas NHS Foundation Trust,20/03/2020,(82000) Provisions & Kitchens,(id:41878) Integrated Therapies and Medicine,NHS SUPPLY CHAIN (MAIDSTONE),id:12846415  , 439.14
Department of Health,Guys and St Thomas NHS Foundation Trust,20/03/2020,(81100) Dressings,(id:41878) Integrated Therapies and Medicine,NHS SUPPLY CHAIN (MAIDSTONE),id:12864175    , 287.23
Department of Health,Guys and St Thomas NHS Foundation Trust,27/03/2020,(50552) Qualified Nursing Staff,(id:41878) Integrated Therapies and Medicine,GLOBE LOCUMS LTD,id:12939785  , 323.48
Department of Health,Guys and St Thomas NHS Foundation Trust,27/03/2020,(50552) Qualified Nursing Staff,(id:41878) Integrated Therapies and Medicine,CONTINENTAL NURSE LTD,id:12932913  ,2045.40
Department of Health,Guys and St Thomas NHS Foundation Trust,27/03/2020,(50522) Unqualified Nursing Staff,(id:41878) Integrated Therapies and Medicine,GLOBE LOCUMS LTD,id:12932923, 204.12
Department of Health,Guys and St Thomas NHS Foundation Trust,20/03/2020,(50522) Unqualified Nursing Staff,(id:41878) Integrated Therapies and Medicine,MSI GROUP LTD,id:12920847   ,1021.22
Department of Health,Guys and St Thomas NHS Foundation Trust,20/03/2020,(50522) Unqualified Nursing Staff,(id:41878) Integrated Therapies and Medicine,MSI GROUP LTD,id:12920915   , 337.70
Department of Health,Guys and St Thomas NHS Foundation Trust,13/03/2020,(50522) Unqualified Nursing Staff,(id:41878) Integrated Therapies and Medicine,MSI GROUP LTD,id:12900688   , 209.15
Department of Health,Guys and St Thomas NHS Foundation Trust,13/03/2020,(50522) Unqualified Nursing Staff,(id:41878) Integrated Therapies and Medicine,MSI GROUP LTD,id:12900665   , 210.40
Department of Health,Guys and St Thomas NHS Foundation Trust,13/03/2020,(81225) Medical Surgical Supplies & Equipment,(id:41878) Integrated Therapies and Medicine,NHS SUPPLY CHAIN (MAIDSTONE),id:12761500 ,  20.64
Department of Health,Guys and St Thomas NHS Foundation Trust,20/03/2020,(81700) Lab Equipment Purchase,(id:41878) Integrated Therapies and Medicine,NHS SUPPLY CHAIN (MAIDSTONE),id:12846415 ,  18.04
Department of Health,Guys and St Thomas NHS Foundation Trust,13/03/2020,(81700) Lab Equipment Purchase,(id:41878) Integrated Therapies and Medicine,NHS SUPPLY CHAIN (MAIDSTONE),id:12825586 ,  12.65
Department of Health,Guys and St Thomas NHS Foundation Trust,20/03/2020,(81275) Medical Surgical Supplies & Equipment,(id:41878) Integrated Therapies and Medicine,NHS SUPPLY CHAIN (MAIDSTONE),id:12864175 ,  55.50
Department of Health,Guys and St Thomas NHS Foundation Trust,20/03/2020,(82600) Uniforms & Clothing,(id:41881) Integrated Therapies and Medicine,NHS SUPPLY CHAIN (MAIDSTONE),id:12846415    , 234.65
Department of Health,Guys and St Thomas NHS Foundation Trust,13/03/2020,(82000) Provisions & Kitchens,(id:41881) Integrated Therapies and Medicine,NHS SUPPLY CHAIN (MAIDSTONE),id:12812705  ,  63.48
Department of Health,Guys and St Thomas NHS Foundation Trust,20/03/2020,(83400) Office Equipment,(id:41881) Integrated Therapies and Medicine,NHS SUPPLY CHAIN (MAIDSTONE),id:12846415  , 131.71
Department of Health,Guys and St Thomas NHS Foundation Trust,27/03/2020,(50552) Qualified Nursing Staff,(id:41881) Integrated Therapies and Medicine,GLOBE LOCUMS LTD,id:12937379  , 309.47
Department of Health,Guys and St Thomas NHS Foundation Trust,27/03/2020,(50552) Qualified Nursing Staff,(id:41881) Integrated Therapies and Medicine,MSI GROUP LTD,id:12937373, 329.51
Department of Health,Guys and St Thomas NHS Foundation Trust,20/03/2020,(50552) Qualified Nursing Staff,(id:41881) Integrated Therapies and Medicine,GLOBE LOCUMS LTD,id:12921046  , 327.85
Department of Health,Guys and St Thomas NHS Foundation Trust,27/03/2020,(50522) Unqualified Nursing Staff,(id:41881) Integrated Therapies and Medicine,MSI GROUP LTD,id:12937227   , 208.27
Department of Health,Guys and St Thomas NHS Foundation Trust,27/03/2020,(50522) Unqualified Nursing Staff,(id:41881) Integrated Therapies and Medicine,GLOBE LOCUMS LTD,id:12939713, 433.65
Department of Health,Guys and St Thomas NHS Foundation Trust,13/03/2020,(50522) Unqualified Nursing Staff,(id:41881) Integrated Therapies and Medicine,MSI GROUP LTD,id:12900689   , 147.17
Department of Health,Guys and St Thomas NHS Foundation Trust,20/03/2020,(50522) Unqualified Nursing Staff,(id:41881) Integrated Therapies and Medicine,GLOBE LOCUMS LTD,id:12920919, 421.52
Department of Health,Guys and St Thomas NHS Foundation Trust,13/03/2020,(81200) Medical Surgical Supplies & Equipment,(id:41881) Integrated Therapies and Medicine,NHS SUPPLY CHAIN (MAIDSTONE),id:12761500 , 910.29
Department of Health,Guys and St Thomas NHS Foundation Trust,30/03/2020,(84600) Establishment,(id:1435419) Integrated Therapies and Medicine,CLARITY TRAVEL MANAGEMENT,id:12941614 , 155.15
Department of Health,Guys and St Thomas NHS Foundation Trust,13/03/2020,(82800) Bedding & Linen,(id:590598) Integrated Local Services,NHS SUPPLY CHAIN (MAIDSTONE),id:12825586,  40.18
Department of Health,Guys and St Thomas NHS Foundation Trust,20/03/2020,(83400) Office Equipment,(id:590596) Integrated Local Services,NHS SUPPLY CHAIN (MAIDSTONE),id:12846415    ,  35.16
Department of Health,Guys and St Thomas NHS Foundation Trust,13/03/2020,(82000) Provisions & Kitchens,(id:590595) Integrated Local Services,NHS SUPPLY CHAIN (MAIDSTONE),id:12825586    ,  25.76
Department of Health,Guys and St Thomas NHS Foundation Trust,13/03/2020,(83400) Office Equipment,(id:590595) Integrated Local Services,NHS SUPPLY CHAIN (MAIDSTONE),id:12812705    ,  84.06
Department of Health,Guys and St Thomas NHS Foundation Trust,27/03/2020,(83410) Office Equipment,(id:590595) Integrated Local Services,RICOH UK LTD,id:12936081,1000.51
Department of Health,Guys and St Thomas NHS Foundation Trust,13/03/2020,(83400) Office Equipment,(id:590592) Integrated Local Services,NHS SUPPLY CHAIN (MAIDSTONE),id:12825586    ,  15.98
Department of Health,Guys and St Thomas NHS Foundation Trust,20/03/2020,(82600) Uniforms & Clothing,(id:590592) Integrated Local Services,NHS SUPPLY CHAIN (MAIDSTONE),id:12846415 ,  99.98
Department of Health,Guys and St Thomas NHS Foundation Trust,20/03/2020,(84500) Establishment,(id:590588) Integrated Local Services,CDP  PRINT MANAGEMENT,id:12868399    ,  10.80
Department of Health,Guys and St Thomas NHS Foundation Trust,06/03/2020,(83410) Office Equipment,(id:590584) Integrated Local Services,RICOH UK LTD,id:12878639, 515.37
Department of Health,Guys and St Thomas NHS Foundation Trust,20/03/2020,(82000) Provisions & Kitchens,(id:590464) Integrated Local Services,NHS SUPPLY CHAIN (MAIDSTONE),id:12846415    ,  19.20
Department of Health,Guys and St Thomas NHS Foundation Trust,30/03/2020,(84600) Establishment,(id:590529) Integrated Local Services,CLARITY TRAVEL MANAGEMENT,id:12941614,  63.24
Department of Health,Guys and St Thomas NHS Foundation Trust,20/03/2020,(50562) Qualified Nursing Staff,(id:590563) Integrated Local Services,CONTINENTAL NURSE LTD,id:12924333    ,2313.75
Department of Health,Guys and St Thomas NHS Foundation Trust,20/03/2020,(81200) Medical Surgical Supplies & Equipment,(id:839420) Integrated Local Services,NHS SUPPLY CHAIN (MAIDSTONE),id:12846415   ,  51.00
Department of Health,Guys and St Thomas NHS Foundation Trust,20/03/2020,(83400) Office Equipment,(id:590495) Integrated Local Services,NHS SUPPLY CHAIN (MAIDSTONE),id:12864175    ,   2.93
Department of Health,Guys and St Thomas NHS Foundation Trust,13/03/2020,(82800) Bedding & Linen,(id:590494) Integrated Local Services,NHS SUPPLY CHAIN (MAIDSTONE),id:12825586,  40.28
Department of Health,Guys and St Thomas NHS Foundation Trust,25/03/2020,(51462) Occupational Therapists,(id:1885422) Integrated Local Services,PRICEWATERHOUSECOOPERS LLP,id:12931666   ,1217.37
Department of Health,Guys and St Thomas NHS Foundation Trust,19/03/2020,(51462) Occupational Therapists,(id:1885422) Integrated Local Services,PRICEWATERHOUSECOOPERS LLP,id:12920472   ,1674.55
Department of Health,Guys and St Thomas NHS Foundation Trust,19/03/2020,(51872) Physiotherapists,(id:1885422) Integrated Local Services,PRICEWATERHOUSECOOPERS LLP,id:12920472,2898.02
Department of Health,Guys and St Thomas NHS Foundation Trust,13/03/2020,(83400) Office Equipment,(id:1885424) Integrated Local Services,NHS SUPPLY CHAIN (MAIDSTONE),id:12812705   ,  98.54
Department of Health,Guys and St Thomas NHS Foundation Trust,19/03/2020,(51862) Physiotherapists,(id:1885424) Integrated Local Services,PRICEWATERHOUSECOOPERS LLP,id:12920621, 962.28
Department of Health,Guys and St Thomas NHS Foundation Trust,31/03/2020,(51862) Physiotherapists,(id:1371419) Integrated Local Services,PRICEWATERHOUSECOOPERS LLP,id:12945319,2499.90
Department of Health,Guys and St Thomas NHS Foundation Trust,19/03/2020,(51862) Physiotherapists,(id:1371419) Integrated Local Services,PRICEWATERHOUSECOOPERS LLP,id:12920472, 664.60
Department of Health,Guys and St Thomas NHS Foundation Trust,20/03/2020,(50562) Qualified Nursing Staff,(id:1371419) Integrated Local Services,MSI GROUP LTD,id:12921185 ,1275.11
Department of Health,Guys and St Thomas NHS Foundation Trust,25/03/2020,(51462) Occupational Therapists,(id:699422) Integrated Local Services,PRICEWATERHOUSECOOPERS LLP,id:12931666    , 745.02
Department of Health,Guys and St Thomas NHS Foundation Trust,20/03/2020,(50562) Qualified Nursing Staff,(id:699422) Integrated Local Services,CARE PROVIDERS HEALTHCARE,id:12920834,1316.73
Department of Health,Guys and St Thomas NHS Foundation Trust,20/03/2020,(81200) Medical Surgical Supplies & Equipment,(id:699422) Integrated Local Services,NHS SUPPLY CHAIN (MAIDSTONE),id:12846415   ,  17.16
Department of Health,Guys and St Thomas NHS Foundation Trust,19/03/2020,(51472) Occupational Therapists,(id:699422) Integrated Local Services,PRICEWATERHOUSECOOPERS LLP,id:12920621    ,2528.29
Department of Health,Guys and St Thomas NHS Foundation Trust,19/03/2020,(51472) Occupational Therapists,(id:699422) Integrated Local Services,PRICEWATERHOUSECOOPERS LLP,id:12920472    ,1015.77
Department of Health,Guys and St Thomas NHS Foundation Trust,31/03/2020,(51862) Physiotherapists,(id:590492) Integrated Local Services,PRICEWATERHOUSECOOPERS LLP,id:12945319 ,2732.71
Department of Health,Guys and St Thomas NHS Foundation Trust,20/03/2020,(83400) Office Equipment,(id:590492) Integrated Local Services,NHS SUPPLY CHAIN (MAIDSTONE),id:12846415    , 118.08
Department of Health,Guys and St Thomas NHS Foundation Trust,06/03/2020,(84500) Establishment,(id:1913419) Integrated Local Services,CDP  PRINT MANAGEMENT,id:12868395   ,  19.60
Department of Health,Guys and St Thomas NHS Foundation Trust,06/03/2020,(84500) Establishment,(id:590504) Integrated Local Services,CDP  PRINT MANAGEMENT,id:12868397    ,  27.90
Department of Health,Guys and St Thomas NHS Foundation Trust,19/03/2020,(51862) Physiotherapists,(id:590504) Integrated Local Services,PRICEWATERHOUSECOOPERS LLP,id:12920541 ,1904.09
Department of Health,Guys and St Thomas NHS Foundation Trust,20/03/2020,(83400) Office Equipment,(id:590504) Integrated Local Services,NHS SUPPLY CHAIN (MAIDSTONE),id:12846415    ,  23.62
Department of Health,Guys and St Thomas NHS Foundation Trust,25/03/2020,(51462) Occupational Therapists,(id:684419) Integrated Local Services,PRICEWATERHOUSECOOPERS LLP,id:12931666    , 472.79
Department of Health,Guys and St Thomas NHS Foundation Trust,19/03/2020,(51462) Occupational Therapists,(id:684419) Integrated Local Services,PRICEWATERHOUSECOOPERS LLP,id:12920621    ,1217.37
Department of Health,Guys and St Thomas NHS Foundation Trust,13/03/2020,(82000) Provisions & Kitchens,(id:684419) Integrated Local Services,NHS SUPPLY CHAIN (MAIDSTONE),id:12812705    ,  39.00
Department of Health,Guys and St Thomas NHS Foundation Trust,06/03/2020,(84500) Establishment,(id:590503) Integrated Local Services,CDP  PRINT MANAGEMENT,id:12868395    ,   3.60
Department of Health,Guys and St Thomas NHS Foundation Trust,06/03/2020,(50552) Qualified Nursing Staff,(id:4460419) Integrated Local Services,YOUR WORLD RECRUITMENT LIMITED(YOUR WORLD HEALTHCARE),id:12872239 , 987.75
Department of Health,Guys and St Thomas NHS Foundation Trust,06/03/2020,(50552) Qualified Nursing Staff,(id:4460419) Integrated Local Services,MSI GROUP LTD,id:12872053 ,1363.71
Department of Health,Guys and St Thomas NHS Foundation Trust,13/03/2020,(81225) Medical Surgical Supplies & Equipment,(id:590522) Integrated Local Services,NHS SUPPLY CHAIN (MAIDSTONE),id:12761500   ,  59.10
Department of Health,Guys and St Thomas NHS Foundation Trust,13/03/2020,(81700) Lab Equipment Purchase,(id:590521) Integrated Local Services,NHS SUPPLY CHAIN (MAIDSTONE),id:12812705   ,  12.58
Department of Health,Guys and St Thomas NHS Foundation Trust,20/03/2020,(81200) Medical Surgical Supplies & Equipment,(id:590521) Integrated Local Services,NHS SUPPLY CHAIN (MAIDSTONE),id:12864175   , 169.90
Department of Health,Guys and St Thomas NHS Foundation Trust,06/03/2020,(50552) Qualified Nursing Staff,(id:590521) Integrated Local Services,NURSING 2000 LTD,id:12882230    ,1111.15
Department of Health,Guys and St Thomas NHS Foundation Trust,06/03/2020,(50552) Qualified Nursing Staff,(id:590521) Integrated Local Services,NURSING 2000 LTD,id:12882163    , 635.67
Department of Health,Guys and St Thomas NHS Foundation Trust,27/03/2020,(50552) Qualified Nursing Staff,(id:590521) Integrated Local Services,MSI GROUP LTD,id:12937212  , 794.40
Department of Health,Guys and St Thomas NHS Foundation Trust,13/03/2020,(81100) Dressings,(id:590520) Integrated Local Services,NHS SUPPLY CHAIN (MAIDSTONE),id:12761500 ,   3.26
Department of Health,Guys and St Thomas NHS Foundation Trust,13/03/2020,(83400) Office Equipment,(id:590520) Integrated Local Services,NHS SUPPLY CHAIN (MAIDSTONE),id:12761500    , 112.18
Department of Health,Guys and St Thomas NHS Foundation Trust,20/03/2020,(50552) Qualified Nursing Staff,(id:590520) Integrated Local Services,MSI GROUP LTD,id:12920877  , 969.38
Department of Health,Guys and St Thomas NHS Foundation Trust,20/03/2020,(50552) Qualified Nursing Staff,(id:590520) Integrated Local Services,CARE PROVIDERS HEALTHCARE,id:12921183, 795.00
Department of Health,Guys and St Thomas NHS Foundation Trust,06/03/2020,(50552) Qualified Nursing Staff,(id:590520) Integrated Local Services,YOUR WORLD RECRUITMENT LIMITED(YOUR WORLD HEALTHCARE),id:12872022  ,1145.79
Department of Health,Guys and St Thomas NHS Foundation Trust,20/03/2020,(81200) Medical Surgical Supplies & Equipment,(id:590473) Integrated Local Services,NHS SUPPLY CHAIN (MAIDSTONE),id:12846415   , 441.08
Department of Health,Guys and St Thomas NHS Foundation Trust,27/03/2020,(50552) Qualified Nursing Staff,(id:590473) Integrated Local Services,MSI GROUP LTD,id:12937336  , 775.49
Department of Health,Guys and St Thomas NHS Foundation Trust,06/03/2020,(84500) Establishment,(id:590473) Integrated Local Services,CDP  PRINT MANAGEMENT,id:12868395    ,  91.50
Department of Health,Guys and St Thomas NHS Foundation Trust,13/03/2020,(81700) Lab Equipment Purchase,(id:590473) Integrated Local Services,NHS SUPPLY CHAIN (MAIDSTONE),id:12825586   ,  89.26
Department of Health,Guys and St Thomas NHS Foundation Trust,20/03/2020,(81200) Medical Surgical Supplies & Equipment,(id:590470) Integrated Local Services,NHS SUPPLY CHAIN (MAIDSTONE),id:12864175   ,  39.10
Department of Health,Guys and St Thomas NHS Foundation Trust,06/03/2020,(50552) Qualified Nursing Staff,(id:590470) Integrated Local Services,NURSING 2000 LTD,id:12882164    , 795.00
Department of Health,Guys and St Thomas NHS Foundation Trust,13/03/2020,(81200) Medical Surgical Supplies & Equipment,(id:590481) Integrated Local Services,NHS SUPPLY CHAIN (MAIDSTONE),id:12842747   ,1183.46
Department of Health,Guys and St Thomas NHS Foundation Trust,13/03/2020,(81200) Medical Surgical Supplies & Equipment,(id:590481) Integrated Local Services,NHS SUPPLY CHAIN (MAIDSTONE),id:12842639   ,4136.89
Department of Health,Guys and St Thomas NHS Foundation Trust,13/03/2020,(81200) Medical Surgical Supplies & Equipment,(id:590481) Integrated Local Services,NHS SUPPLY CHAIN (MAIDSTONE),id:12842848   , 590.50
Department of Health,Guys and St Thomas NHS Foundation Trust,13/03/2020,(82000) Provisions & Kitchens,(id:590527) Integrated Local Services,NHS SUPPLY CHAIN (MAIDSTONE),id:12761500    ,  14.36
Department of Health,Guys and St Thomas NHS Foundation Trust,20/03/2020,(82800) Bedding & Linen,(id:590527) Integrated Local Services,NHS SUPPLY CHAIN (MAIDSTONE),id:12846415, 161.71
Department of Health,Guys and St Thomas NHS Foundation Trust,13/03/2020,(83400) Office Equipment,(id:590527) Integrated Local Services,NHS SUPPLY CHAIN (MAIDSTONE),id:12761500    ,  32.16
Department of Health,Guys and St Thomas NHS Foundation Trust,13/03/2020,(83400) Office Equipment,(id:590527) Integrated Local Services,NHS SUPPLY CHAIN (MAIDSTONE),id:12812705    , 172.51
Department of Health,Guys and St Thomas NHS Foundation Trust,20/03/2020,(83400) Office Equipment,(id:590527) Integrated Local Services,NHS SUPPLY CHAIN (MAIDSTONE),id:12846415    ,  50.04
Department of Health,Guys and St Thomas NHS Foundation Trust,13/03/2020,(82700) Uniforms & Clothing,(id:590527) Integrated Local Services,NHS SUPPLY CHAIN (MAIDSTONE),id:12761500 ,  47.38
Department of Health,Guys and St Thomas NHS Foundation Trust,13/03/2020,(81100) Dressings,(id:590527) Integrated Local Services,NHS SUPPLY CHAIN (MAIDSTONE),id:12761500 ,  68.64
Department of Health,Guys and St Thomas NHS Foundation Trust,20/03/2020,(82600) Uniforms & Clothing,(id:590527) Integrated Local Services,NHS SUPPLY CHAIN (MAIDSTONE),id:12846415 , 300.80
Department of Health,Guys and St Thomas NHS Foundation Trust,20/03/2020,(82800) Bedding & Linen,(id:590526) Integrated Local Services,NHS SUPPLY CHAIN (MAIDSTONE),id:12864175, 201.02
Department of Health,Guys and St Thomas NHS Foundation Trust,20/03/2020,(81100) Dressings,(id:590526) Integrated Local Services,NHS SUPPLY CHAIN (MAIDSTONE),id:12864175 ,   5.22
Department of Health,Guys and St Thomas NHS Foundation Trust,27/03/2020,(86300) Healthcare from non-NHS bodies,(id:590526) Integrated Local Services,HETHERINGTON GROUP PRACTICE,id:12936415 ,2604.00
Department of Health,Guys and St Thomas NHS Foundation Trust,19/03/2020,(51462) Occupational Therapists,(id:903421) Integrated Local Services,PRICEWATERHOUSECOOPERS LLP,id:12920472    ,1993.16
Department of Health,Guys and St Thomas NHS Foundation Trust,13/03/2020,(81100) Dressings,(id:903421) Integrated Local Services,NHS SUPPLY CHAIN (MAIDSTONE),id:12761500 , 132.72
Department of Health,Guys and St Thomas NHS Foundation Trust,20/03/2020,(81700) Lab Equipment Purchase,(id:903421) Integrated Local Services,NHS SUPPLY CHAIN (MAIDSTONE),id:12864175   ,  62.88
Department of Health,Guys and St Thomas NHS Foundation Trust,06/03/2020,(89270) Establishment,(id:903421) Integrated Local Services,SELDOC LTD,id:12861709,-617.50
Department of Health,Guys and St Thomas NHS Foundation Trust,06/03/2020,(89270) Establishment,(id:903421) Integrated Local Services,SELDOC LTD,id:12860774,-760.00
Department of Health,Guys and St Thomas NHS Foundation Trust,06/03/2020,(89270) Establishment,(id:903421) Integrated Local Services,SELDOC LTD,id:12861714,    -2565.00
Department of Health,Guys and St Thomas NHS Foundation Trust,06/03/2020,(89270) Establishment,(id:903421) Integrated Local Services,SELDOC LTD,id:12861699,2677.73
Department of Health,Guys and St Thomas NHS Foundation Trust,06/03/2020,(89270) Establishment,(id:903421) Integrated Local Services,SELDOC LTD,id:12656196,7453.58
Department of Health,Guys and St Thomas NHS Foundation Trust,06/03/2020,(89270) Establishment,(id:903421) Integrated Local Services,SELDOC LTD,id:12861698,-570.00
Department of Health,Guys and St Thomas NHS Foundation Trust,13/03/2020,(81200) Medical Surgical Supplies & Equipment,(id:903421) Integrated Local Services,NHS SUPPLY CHAIN (MAIDSTONE),id:12761500   , 162.08
Department of Health,Guys and St Thomas NHS Foundation Trust,06/03/2020,(84500) Establishment,(id:903421) Integrated Local Services,CDP  PRINT MANAGEMENT,id:12868395    ,  57.40
Department of Health,Guys and St Thomas NHS Foundation Trust,20/03/2020,(82000) Provisions & Kitchens,(id:903421) Integrated Local Services,NHS SUPPLY CHAIN (MAIDSTONE),id:12846415    ,  16.48
Department of Health,Guys and St Thomas NHS Foundation Trust,06/03/2020,(83410) Office Equipment,(id:903421) Integrated Local Services,RICOH UK LTD,id:12878637, 502.58
Department of Health,Guys and St Thomas NHS Foundation Trust,19/03/2020,(51862) Physiotherapists,(id:903421) Integrated Local Services,PRICEWATERHOUSECOOPERS LLP,id:12920621 ,2776.72
Department of Health,Guys and St Thomas NHS Foundation Trust,06/03/2020,(84600) Establishment,(id:699421) Integrated Local Services,CLARITY TRAVEL MANAGEMENT,id:12878449,  59.34
Department of Health,Guys and St Thomas NHS Foundation Trust,13/03/2020,(82600) Uniforms & Clothing,(id:4263422) Integrated Local Services,NHS SUPPLY CHAIN (MAIDSTONE),id:12761500,   2.52
Department of Health,Guys and St Thomas NHS Foundation Trust,13/03/2020,(82000) Provisions & Kitchens,(id:42348) Evelina Central R&D and Charity,NHS SUPPLY CHAIN (MAIDSTONE),id:12761500    ,  65.08
Department of Health,Guys and St Thomas NHS Foundation Trust,20/03/2020,(82000) Provisions & Kitchens,(id:42348) Evelina Central R&D and Charity,NHS SUPPLY CHAIN (MAIDSTONE),id:12846415    ,   9.36
Department of Health,Guys and St Thomas NHS Foundation Trust,20/03/2020,(82800) Bedding & Linen,(id:42348) Evelina Central R&D and Charity,NHS SUPPLY CHAIN (MAIDSTONE),id:12846415,  70.68
Department of Health,Guys and St Thomas NHS Foundation Trust,13/03/2020,(81100) Dressings,(id:42348) Evelina Central R&D and Charity,NHS SUPPLY CHAIN (MAIDSTONE),id:12812705 , 169.21
Department of Health,Guys and St Thomas NHS Foundation Trust,20/03/2020,(81100) Dressings,(id:42348) Evelina Central R&D and Charity,NHS SUPPLY CHAIN (MAIDSTONE),id:12846415 , 359.16
Department of Health,Guys and St Thomas NHS Foundation Trust,13/03/2020,(81275) Medical Surgical Supplies & Equipment,(id:42348) Evelina Central R&D and Charity,NHS SUPPLY CHAIN (MAIDSTONE),id:12761500   ,  55.50
Department of Health,Guys and St Thomas NHS Foundation Trust,20/03/2020,(82800) Bedding & Linen,(id:42331) Evelina Central R&D and Charity,NHS SUPPLY CHAIN (MAIDSTONE),id:12864175,  60.48
Department of Health,Guys and St Thomas NHS Foundation Trust,13/03/2020,(82800) Bedding & Linen,(id:42331) Evelina Central R&D and Charity,NHS SUPPLY CHAIN (MAIDSTONE),id:12761500, 244.47
Department of Health,Guys and St Thomas NHS Foundation Trust,20/03/2020,(81200) Medical Surgical Supplies & Equipment,(id:42331) Evelina Central R&D and Charity,NHS SUPPLY CHAIN (MAIDSTONE),id:12846415   ,2179.52
Department of Health,Guys and St Thomas NHS Foundation Trust,20/03/2020,(81255) Medical Surgical Supplies & Equipment,(id:42331) Evelina Central R&D and Charity,NHS SUPPLY CHAIN (MAIDSTONE),id:12846415   ,   5.28
Department of Health,Guys and St Thomas NHS Foundation Trust,20/03/2020,(81275) Medical Surgical Supplies & Equipment,(id:42331) Evelina Central R&D and Charity,NHS SUPPLY CHAIN (MAIDSTONE),id:12864175   ,  55.50
Department of Health,Guys and St Thomas NHS Foundation Trust,13/03/2020,(81100) Dressings,(id:42331) Evelina Central R&D and Charity,NHS SUPPLY CHAIN (MAIDSTONE),id:12825586 , 380.17
Department of Health,Guys and St Thomas NHS Foundation Trust,20/03/2020,(81700) Lab Equipment Purchase,(id:42331) Evelina Central R&D and Charity,NHS SUPPLY CHAIN (MAIDSTONE),id:12846415   ,  29.66
Department of Health,Guys and St Thomas NHS Foundation Trust,20/03/2020,(82600) Uniforms & Clothing,(id:42325) Evelina Central R&D and Charity,NHS SUPPLY CHAIN (MAIDSTONE),id:12846415 , 244.80
Department of Health,Guys and St Thomas NHS Foundation Trust,06/03/2020,(84500) Establishment,(id:42325) Evelina Central R&D and Charity,CDP  PRINT MANAGEMENT,id:12868395    ,  77.50
Department of Health,Guys and St Thomas NHS Foundation Trust,20/03/2020,(84500) Establishment,(id:42325) Evelina Central R&D and Charity,CDP  PRINT MANAGEMENT,id:12868399    ,   3.10
Department of Health,Guys and St Thomas NHS Foundation Trust,13/03/2020,(81200) Medical Surgical Supplies & Equipment,(id:42325) Evelina Central R&D and Charity,ARDO MEDICAL LTD,id:12845443, 507.72
Department of Health,Guys and St Thomas NHS Foundation Trust,13/03/2020,(82000) Provisions & Kitchens,(id:42319) Evelina Central R&D and Charity,NHS SUPPLY CHAIN (MAIDSTONE),id:12761500    ,   5.44
Department of Health,Guys and St Thomas NHS Foundation Trust,13/03/2020,(81200) Medical Surgical Supplies & Equipment,(id:42319) Evelina Central R&D and Charity,NHS SUPPLY CHAIN (MAIDSTONE),id:12812705   , 216.80
Department of Health,Guys and St Thomas NHS Foundation Trust,06/03/2020,(84600) Establishment,(id:4199419) Evelina Central R&D and Charity,CLARITY TRAVEL MANAGEMENT,id:12878449   , 248.45
Department of Health,Guys and St Thomas NHS Foundation Trust,30/03/2020,(84600) Establishment,(id:4198419) Evelina Central R&D and Charity,CLARITY TRAVEL MANAGEMENT,id:12941614   ,   5.69
Department of Health,Guys and St Thomas NHS Foundation Trust,20/03/2020,(89270) Establishment,(id:2972420) Evelina Central R&D and Charity,KINGS COLLEGE LONDON:03529700,id:12921330    ,    23729.04
Department of Health,Guys and St Thomas NHS Foundation Trust,06/03/2020,(84600) Establishment,(id:2972419) Evelina Central R&D and Charity,CLARITY TRAVEL MANAGEMENT,id:12878449   ,  62.01
Department of Health,Guys and St Thomas NHS Foundation Trust,06/03/2020,(84500) Establishment,(id:42399) Evelina Central R&D and Charity,CDP  PRINT MANAGEMENT,id:12868400    ,  18.60
Department of Health,Guys and St Thomas NHS Foundation Trust,06/03/2020,(84500) Establishment,(id:3008419) Evelina Central R&D and Charity,CDP  PRINT MANAGEMENT,id:12868400  ,  16.44
Department of Health,Guys and St Thomas NHS Foundation Trust,20/03/2020,(81200) Medical Surgical Supplies & Equipment,(id:3805419) Evelina Central R&D and Charity,NHS SUPPLY CHAIN (MAIDSTONE),id:12846415 ,  12.90
Department of Health,Guys and St Thomas NHS Foundation Trust,13/03/2020,(84600) Establishment,(id:3377419) Evelina Central R&D and Charity,PORTSMOUTH HOSPITALS NHS TRUST,id:11752731   ,4516.25
Department of Health,Guys and St Thomas NHS Foundation Trust,13/03/2020,(81200) Medical Surgical Supplies & Equipment,(id:1622419) Evelina Central R&D and Charity,NHS SUPPLY CHAIN (MAIDSTONE),id:12761500 ,  76.12
Department of Health,Guys and St Thomas NHS Foundation Trust,06/03/2020,(84600) Establishment,(id:1000419) Evelina Central R&D and Charity,CLARITY TRAVEL MANAGEMENT,id:12878449   , 126.94
Department of Health,Guys and St Thomas NHS Foundation Trust,13/03/2020,(83610) IT Costs,(id:2634419) Evelina Central R&D and Charity,MEDSCINET UK LTD,id:12855667  ,3600.00
Department of Health,Guys and St Thomas NHS Foundation Trust,27/03/2020,(81200) Medical Surgical Supplies & Equipment,(id:590541) Evelina Community Services,SCC PLC)SPECIALIST COMPUTER CENTRES,id:12928136,  18.00
Department of Health,Guys and St Thomas NHS Foundation Trust,13/03/2020,(82000) Provisions & Kitchens,(id:590539) Evelina Community Services,NHS SUPPLY CHAIN (MAIDSTONE),id:12825586   ,  42.84
Department of Health,Guys and St Thomas NHS Foundation Trust,20/03/2020,(84500) Establishment,(id:590539) Evelina Community Services,CDP  PRINT MANAGEMENT,id:12868399   ,  12.40
Department of Health,Guys and St Thomas NHS Foundation Trust,27/03/2020,(50562) Qualified Nursing Staff,(id:590418) Evelina Community Services,MSI GROUP LTD,id:12939753 ,1167.94
Department of Health,Guys and St Thomas NHS Foundation Trust,06/03/2020,(50562) Qualified Nursing Staff,(id:590542) Evelina Community Services,ARTHUR RAI MEDICAL SERVICES LTD,id:12874683   ,1040.70
Department of Health,Guys and St Thomas NHS Foundation Trust,13/03/2020,(82800) Bedding & Linen,(id:590421) Evelina Community Services,NHS SUPPLY CHAIN (MAIDSTONE),id:12812705    ,  52.74
Department of Health,Guys and St Thomas NHS Foundation Trust,06/03/2020,(84500) Establishment,(id:590444) Evelina Community Services,CDP  PRINT MANAGEMENT,id:12868395   ,   7.20
Department of Health,Guys and St Thomas NHS Foundation Trust,13/03/2020,(81100) Dressings,(id:590545) Evelina Community Services,NHS SUPPLY CHAIN (MAIDSTONE),id:12825586, 143.95
Department of Health,Guys and St Thomas NHS Foundation Trust,13/03/2020,(81225) Medical Surgical Supplies & Equipment,(id:590550) Evelina Community Services,R82 UK LTD,id:12892195,1110.00
Department of Health,Guys and St Thomas NHS Foundation Trust,13/03/2020,(82000) Provisions & Kitchens,(id:1831419) Evelina Community Services,NHS SUPPLY CHAIN (MAIDSTONE),id:12825586  , 740.22
Department of Health,Guys and St Thomas NHS Foundation Trust,06/03/2020,(84500) Establishment,(id:590555) Evelina Community Services,CDP  PRINT MANAGEMENT,id:12868400   ,  18.60
Department of Health,Guys and St Thomas NHS Foundation Trust,25/03/2020,(51262) Dieticians,(id:590412) Evelina Community Services,PRICEWATERHOUSECOOPERS LLP,id:12931666 ,1270.44
Department of Health,Guys and St Thomas NHS Foundation Trust,31/03/2020,(83400) Office Equipment,(id:590557) Evelina Community Services,GSTT PROCUREMENT CARD,id:12946447, 154.50
Department of Health,Guys and St Thomas NHS Foundation Trust,13/03/2020,(83400) Office Equipment,(id:590557) Evelina Community Services,NHS SUPPLY CHAIN (MAIDSTONE),id:12812705   ,  95.58
Department of Health,Guys and St Thomas NHS Foundation Trust,20/03/2020,(82000) Provisions & Kitchens,(id:590446) Evelina Community Services,NHS SUPPLY CHAIN (MAIDSTONE),id:12846415   ,  33.73
Department of Health,Guys and St Thomas NHS Foundation Trust,20/03/2020,(82800) Bedding & Linen,(id:590561) Evelina Community Services,NHS SUPPLY CHAIN (MAIDSTONE),id:12864175    ,   4.56
Department of Health,Guys and St Thomas NHS Foundation Trust,20/03/2020,(81200) Medical Surgical Supplies & Equipment,(id:2495419) Evelina Medicine & Neonatology,NHS SUPPLY CHAIN (MAIDSTONE),id:12846415  , 300.48
Department of Health,Guys and St Thomas NHS Foundation Trust,06/03/2020,(50200) Consultants,(id:42326) Evelina Medicine & Neonatology,KING'S COLLEGE HOSPITAL NHS FOUNDATION TRUST,id:12875386    ,    -2736.33
Department of Health,Guys and St Thomas NHS Foundation Trust,06/03/2020,(84500) Establishment,(id:42326) Evelina Medicine & Neonatology,CDP  PRINT MANAGEMENT,id:12868398,   6.20
Department of Health,Guys and St Thomas NHS Foundation Trust,06/03/2020,(84500) Establishment,(id:42326) Evelina Medicine & Neonatology,CDP  PRINT MANAGEMENT,id:12868395,   3.10
Department of Health,Guys and St Thomas NHS Foundation Trust,13/03/2020,(89595) Non-Healthcare from Foundation Trusts,(id:42326) Evelina Medicine & Neonatology,THE ROYAL MARSDEN NHS FOUNDATION TRUST,id:12617623    , 510.00
Department of Health,Guys and St Thomas NHS Foundation Trust,13/03/2020,(89595) Non-Healthcare from Foundation Trusts,(id:42326) Evelina Medicine & Neonatology,GREAT ORMOND STREET HOSPITAL FOR CHILDREN NHS FOUNDATION TRUST,id:12794725,1126.42
Department of Health,Guys and St Thomas NHS Foundation Trust,27/03/2020,(81200) Medical Surgical Supplies & Equipment,(id:42326) Evelina Medicine & Neonatology,MEDTRONIC LTD,id:12582841    ,1146.23
Department of Health,Guys and St Thomas NHS Foundation Trust,20/03/2020,(82700) Uniforms & Clothing,(id:42327) Evelina Medicine & Neonatology,NHS SUPPLY CHAIN (MAIDSTONE),id:12846415  , 151.58
Department of Health,Guys and St Thomas NHS Foundation Trust,13/03/2020,(82000) Provisions & Kitchens,(id:42327) Evelina Medicine & Neonatology,NHS SUPPLY CHAIN (MAIDSTONE),id:12825586, 349.05
Department of Health,Guys and St Thomas NHS Foundation Trust,20/03/2020,(82000) Provisions & Kitchens,(id:42327) Evelina Medicine & Neonatology,NHS SUPPLY CHAIN (MAIDSTONE),id:12864175,  71.34
Department of Health,Guys and St Thomas NHS Foundation Trust,20/03/2020,(82000) Provisions & Kitchens,(id:42327) Evelina Medicine & Neonatology,NHS SUPPLY CHAIN (MAIDSTONE),id:12846415,  95.70
Department of Health,Guys and St Thomas NHS Foundation Trust,13/03/2020,(81100) Dressings,(id:42327) Evelina Medicine & Neonatology,NHS SUPPLY CHAIN (MAIDSTONE),id:12825586  , 636.93
Department of Health,Guys and St Thomas NHS Foundation Trust,20/03/2020,(81100) Dressings,(id:42327) Evelina Medicine & Neonatology,NHS SUPPLY CHAIN (MAIDSTONE),id:12864175  , 411.15
Department of Health,Guys and St Thomas NHS Foundation Trust,06/03/2020,(81200) Medical Surgical Supplies & Equipment,(id:42327) Evelina Medicine & Neonatology,CENTRAL MEDICAL SUPPLIES LTD,id:12779508    ,1700.18
Department of Health,Guys and St Thomas NHS Foundation Trust,06/03/2020,(81200) Medical Surgical Supplies & Equipment,(id:42327) Evelina Medicine & Neonatology,SQUADRON MEDICAL LTD,id:12822454  , 830.56
Department of Health,Guys and St Thomas NHS Foundation Trust,20/03/2020,(81200) Medical Surgical Supplies & Equipment,(id:42327) Evelina Medicine & Neonatology,NHS SUPPLY CHAIN (MAIDSTONE),id:12846415    ,4949.69
Department of Health,Guys and St Thomas NHS Foundation Trust,13/03/2020,(50552) Qualified Nursing Staff,(id:42327) Evelina Medicine & Neonatology,CONTINENTAL NURSE LTD,id:12896065,2050.56
Department of Health,Guys and St Thomas NHS Foundation Trust,13/03/2020,(81230) Medical Surgical Supplies & Equipment,(id:42327) Evelina Medicine & Neonatology,SQUADRON MEDICAL LTD,id:12834239  , 604.18
Department of Health,Guys and St Thomas NHS Foundation Trust,13/03/2020,(81700) Lab Equipment Purchase,(id:42327) Evelina Medicine & Neonatology,NHS SUPPLY CHAIN (MAIDSTONE),id:12812705    , 101.76
Department of Health,Guys and St Thomas NHS Foundation Trust,13/03/2020,(81700) Lab Equipment Purchase,(id:42327) Evelina Medicine & Neonatology,NHS SUPPLY CHAIN (MAIDSTONE),id:12825586    , 165.56
Department of Health,Guys and St Thomas NHS Foundation Trust,20/03/2020,(81700) Lab Equipment Purchase,(id:42327) Evelina Medicine & Neonatology,NHS SUPPLY CHAIN (MAIDSTONE),id:12846415    ,  29.28
Department of Health,Guys and St Thomas NHS Foundation Trust,13/03/2020,(82800) Bedding & Linen,(id:2497419) Evelina Medicine & Neonatology,NHS SUPPLY CHAIN (MAIDSTONE),id:12812705    ,  92.16
Department of Health,Guys and St Thomas NHS Foundation Trust,06/03/2020,(84500) Establishment,(id:42398) Evelina Medicine & Neonatology,CDP  PRINT MANAGEMENT,id:12868398,   6.20
Department of Health,Guys and St Thomas NHS Foundation Trust,06/03/2020,(81200) Medical Surgical Supplies & Equipment,(id:42335) Evelina Medicine & Neonatology,SEVERN HEALTHCARE TECHNOLOGIES LTD,id:12842987   ,2900.23
Department of Health,Guys and St Thomas NHS Foundation Trust,27/03/2020,(80100) Drug Costs,(id:42335) Evelina Medicine & Neonatology,BOC LTD :02107500,id:12869334  , 828.92
Department of Health,Guys and St Thomas NHS Foundation Trust,27/03/2020,(89595) Non-Healthcare from Foundation Trusts,(id:42335) Evelina Medicine & Neonatology,UNIVERSITY COLLEGE LONDON,id:12918255  , 900.00
Department of Health,Guys and St Thomas NHS Foundation Trust,25/03/2020,(81275) Medical Surgical Supplies & Equipment,(id:42335) Evelina Medicine & Neonatology,AMPLEXA GENETICS A/S,id:12931735  ,1740.00
Department of Health,Guys and St Thomas NHS Foundation Trust,25/03/2020,(81275) Medical Surgical Supplies & Equipment,(id:42335) Evelina Medicine & Neonatology,AMPLEXA GENETICS A/S,id:12931740  ,3030.00
Department of Health,Guys and St Thomas NHS Foundation Trust,13/03/2020,(81000) Surgical Appliances,(id:42350) Evelina Medicine & Neonatology,TALAR MADE ORTHOTICS LTD,id:12893575 ,  46.50
Department of Health,Guys and St Thomas NHS Foundation Trust,13/03/2020,(81200) Medical Surgical Supplies & Equipment,(id:42349) Evelina Medicine & Neonatology,NHS SUPPLY CHAIN (MAIDSTONE),id:12761500    ,  31.70
Department of Health,Guys and St Thomas NHS Foundation Trust,13/03/2020,(81200) Medical Surgical Supplies & Equipment,(id:42349) Evelina Medicine & Neonatology,SQUADRON MEDICAL LTD,id:12845913  , 116.66
Department of Health,Guys and St Thomas NHS Foundation Trust,06/03/2020,(81200) Medical Surgical Supplies & Equipment,(id:42349) Evelina Medicine & Neonatology,SQUADRON MEDICAL LTD,id:12853797  , 671.97
Department of Health,Guys and St Thomas NHS Foundation Trust,06/03/2020,(81200) Medical Surgical Supplies & Equipment,(id:42349) Evelina Medicine & Neonatology,BARD LTD,id:12827973    ,1262.52
Department of Health,Guys and St Thomas NHS Foundation Trust,13/03/2020,(81225) Medical Surgical Supplies & Equipment,(id:42349) Evelina Medicine & Neonatology,NHS SUPPLY CHAIN (MAIDSTONE),id:12812705    , 142.63
Department of Health,Guys and St Thomas NHS Foundation Trust,20/03/2020,(80010) Drug Costs,(id:42349) Evelina Medicine & Neonatology,BAXTER HEALTHCARE LTD,id:10876251   , 903.28
Department of Health,Guys and St Thomas NHS Foundation Trust,06/03/2020,(84600) Establishment,(id:42336) Evelina Medicine & Neonatology,CLARITY TRAVEL MANAGEMENT,id:12878449 ,  98.78
Department of Health,Guys and St Thomas NHS Foundation Trust,13/03/2020,(81200) Medical Surgical Supplies & Equipment,(id:1196422) Evelina Medicine & Neonatology,NHS SUPPLY CHAIN (MAIDSTONE),id:12812705  , 627.00
Department of Health,Guys and St Thomas NHS Foundation Trust,06/03/2020,(81200) Medical Surgical Supplies & Equipment,(id:1196422) Evelina Medicine & Neonatology,LINDSAY SURGICAL SUPPLIES LIMITED,id:12863404  ,1146.00
Department of Health,Guys and St Thomas NHS Foundation Trust,20/03/2020,(83400) Office Equipment,(id:1561419) Evelina Medicine & Neonatology,NHS SUPPLY CHAIN (MAIDSTONE),id:12864175   ,1000.80
Department of Health,Guys and St Thomas NHS Foundation Trust,06/03/2020,(50552) Qualified Nursing Staff,(id:42323) Evelina Medicine & Neonatology,CONTINENTAL NURSE LTD,id:12882106,2164.05
Department of Health,Guys and St Thomas NHS Foundation Trust,13/03/2020,(81700) Lab Equipment Purchase,(id:42323) Evelina Medicine & Neonatology,NHS SUPPLY CHAIN (MAIDSTONE),id:12761500    ,  44.79
Department of Health,Guys and St Thomas NHS Foundation Trust,20/03/2020,(81700) Lab Equipment Purchase,(id:42323) Evelina Medicine & Neonatology,NHS SUPPLY CHAIN (MAIDSTONE),id:12864175    ,  14.34
Department of Health,Guys and St Thomas NHS Foundation Trust,13/03/2020,(81200) Medical Surgical Supplies & Equipment,(id:42323) Evelina Medicine & Neonatology,NHS SUPPLY CHAIN (MAIDSTONE),id:12812705    ,  63.58
Department of Health,Guys and St Thomas NHS Foundation Trust,13/03/2020,(82800) Bedding & Linen,(id:42323) Evelina Medicine & Neonatology,NHS SUPPLY CHAIN (MAIDSTONE),id:12825586 ,  77.45
Department of Health,Guys and St Thomas NHS Foundation Trust,13/03/2020,(81225) Medical Surgical Supplies & Equipment,(id:42323) Evelina Medicine & Neonatology,NHS SUPPLY CHAIN (MAIDSTONE),id:12761500    ,  17.66
Department of Health,Guys and St Thomas NHS Foundation Trust,13/03/2020,(82800) Bedding & Linen,(id:42315) Evelina Medicine & Neonatology,NHS SUPPLY CHAIN (MAIDSTONE),id:12825586 ,  71.21
Department of Health,Guys and St Thomas NHS Foundation Trust,20/03/2020,(83400) Office Equipment,(id:42315) Evelina Medicine & Neonatology,NHS SUPPLY CHAIN (MAIDSTONE),id:12846415,   3.60
Department of Health,Guys and St Thomas NHS Foundation Trust,13/03/2020,(81700) Lab Equipment Purchase,(id:42315) Evelina Medicine & Neonatology,NHS SUPPLY CHAIN (MAIDSTONE),id:12812705    ,  11.86
Department of Health,Guys and St Thomas NHS Foundation Trust,13/03/2020,(81200) Medical Surgical Supplies & Equipment,(id:2356419) Evelina Medicine & Neonatology,NHS SUPPLY CHAIN (MAIDSTONE),id:12825586  ,2470.16
Department of Health,Guys and St Thomas NHS Foundation Trust,13/03/2020,(82800) Bedding & Linen,(id:2356419) Evelina Medicine & Neonatology,NHS SUPPLY CHAIN (MAIDSTONE),id:12825586    ,  26.95
Department of Health,Guys and St Thomas NHS Foundation Trust,13/03/2020,(81700) Lab Equipment Purchase,(id:2356419) Evelina Medicine & Neonatology,NHS SUPPLY CHAIN (MAIDSTONE),id:12812705  ,  21.25
Department of Health,Guys and St Thomas NHS Foundation Trust,13/03/2020,(81700) Lab Equipment Purchase,(id:2356419) Evelina Medicine & Neonatology,NHS SUPPLY CHAIN (MAIDSTONE),id:12825586  ,  11.75
Department of Health,Guys and St Thomas NHS Foundation Trust,27/03/2020,(84656) Establishment,(id:42058) Evelina Medicine & Neonatology,DICT8 LIMITED,id:12893378   ,1282.08
Department of Health,Guys and St Thomas NHS Foundation Trust,27/03/2020,(81200) Medical Surgical Supplies & Equipment,(id:2981419) Evelina Medicine & Neonatology,MEDTRONIC LTD,id:12885467  ,    13200.00
Department of Health,Guys and St Thomas NHS Foundation Trust,20/03/2020,(83500) Furniture & Fittings,(id:2982419) Evelina Medicine & Neonatology,NHS SUPPLY CHAIN (MAIDSTONE),id:12864175    ,  21.60
Department of Health,Guys and St Thomas NHS Foundation Trust,13/03/2020,(81200) Medical Surgical Supplies & Equipment,(id:2496419) Evelina Medicine & Neonatology,NHS SUPPLY CHAIN (MAIDSTONE),id:12812705  , 270.16
Department of Health,Guys and St Thomas NHS Foundation Trust,13/03/2020,(81200) Medical Surgical Supplies & Equipment,(id:2496419) Evelina Medicine & Neonatology,NHS SUPPLY CHAIN (MAIDSTONE),id:12825586  , 756.08
Department of Health,Guys and St Thomas NHS Foundation Trust,13/03/2020,(82800) Bedding & Linen,(id:2496419) Evelina Medicine & Neonatology,NHS SUPPLY CHAIN (MAIDSTONE),id:12812705    ,  24.89
Department of Health,Guys and St Thomas NHS Foundation Trust,13/03/2020,(82600) Uniforms & Clothing,(id:2496419) Evelina Medicine & Neonatology,NHS SUPPLY CHAIN (MAIDSTONE),id:12825586,  59.66
Department of Health,Guys and St Thomas NHS Foundation Trust,13/03/2020,(81200) Medical Surgical Supplies & Equipment,(id:1196420) Evelina Medicine & Neonatology,MEDTRONIC LTD,id:12819196  ,2913.60
Department of Health,Guys and St Thomas NHS Foundation Trust,20/03/2020,(83400) Office Equipment,(id:1196420) Evelina Medicine & Neonatology,INSULET INTERNATIONAL LTD,id:12921976 , 712.08
Department of Health,Guys and St Thomas NHS Foundation Trust,20/03/2020,(83400) Office Equipment,(id:1196420) Evelina Medicine & Neonatology,INSULET INTERNATIONAL LTD,id:12921986 , 706.32
Department of Health,Guys and St Thomas NHS Foundation Trust,13/03/2020,(83400) Office Equipment,(id:1196420) Evelina Medicine & Neonatology,INSULET INTERNATIONAL LTD,id:12905415 , 708.24
Department of Health,Guys and St Thomas NHS Foundation Trust,13/03/2020,(83400) Office Equipment,(id:1196420) Evelina Medicine & Neonatology,MEDTRONIC LTD,id:12819196   , 222.07
Department of Health,Guys and St Thomas NHS Foundation Trust,31/03/2020,(51472) Occupational Therapists,(id:1196420) Evelina Medicine & Neonatology,PRICEWATERHOUSECOOPERS LLP,id:12945319   ,1361.10
Department of Health,Guys and St Thomas NHS Foundation Trust,13/03/2020,(81100) Dressings,(id:817420) Evelina Medicine & Neonatology,NHS SUPPLY CHAIN (MAIDSTONE),id:12761500 ,  21.48
Department of Health,Guys and St Thomas NHS Foundation Trust,27/03/2020,(50552) Qualified Nursing Staff,(id:41874) Evelina Medicine & Neonatology,HAYS HEALTHCARE LTD,id:12932922  , 725.35
Department of Health,Guys and St Thomas NHS Foundation Trust,13/03/2020,(81200) Medical Surgical Supplies & Equipment,(id:41874) Evelina Medicine & Neonatology,NHS SUPPLY CHAIN (MAIDSTONE),id:12761500    ,  49.34
Department of Health,Guys and St Thomas NHS Foundation Trust,13/03/2020,(82000) Provisions & Kitchens,(id:41874) Evelina Medicine & Neonatology,NHS SUPPLY CHAIN (MAIDSTONE),id:12812705,   3.60
Department of Health,Guys and St Thomas NHS Foundation Trust,13/03/2020,(82000) Provisions & Kitchens,(id:41874) Evelina Medicine & Neonatology,NHS SUPPLY CHAIN (MAIDSTONE),id:12825586,  26.81
Department of Health,Guys and St Thomas NHS Foundation Trust,13/03/2020,(83400) Office Equipment,(id:41874) Evelina Medicine & Neonatology,NHS SUPPLY CHAIN (MAIDSTONE),id:12812705,   3.02
Department of Health,Guys and St Thomas NHS Foundation Trust,20/03/2020,(83400) Office Equipment,(id:41874) Evelina Medicine & Neonatology,NHS SUPPLY CHAIN (MAIDSTONE),id:12864175,    .76
Department of Health,Guys and St Thomas NHS Foundation Trust,06/03/2020,(84500) Establishment,(id:42312) Evelina Surgery & PICU,CDP  PRINT MANAGEMENT,id:12868395   ,   3.60
Department of Health,Guys and St Thomas NHS Foundation Trust,06/03/2020,(81200) Medical Surgical Supplies & Equipment,(id:42312) Evelina Surgery & PICU,ABBOTT MEDICAL UK LTD,id:12866274    , 960.00
Department of Health,Guys and St Thomas NHS Foundation Trust,06/03/2020,(81200) Medical Surgical Supplies & Equipment,(id:42312) Evelina Surgery & PICU,ABBOTT MEDICAL UK LTD,id:12852795    ,3600.00
Department of Health,Guys and St Thomas NHS Foundation Trust,13/03/2020,(81200) Medical Surgical Supplies & Equipment,(id:42312) Evelina Surgery & PICU,COOK UK LTD,id:12837992    ,  96.00
Department of Health,Guys and St Thomas NHS Foundation Trust,13/03/2020,(81200) Medical Surgical Supplies & Equipment,(id:42312) Evelina Surgery & PICU,MEDTRONIC LTD,id:12837669  , 720.00
Department of Health,Guys and St Thomas NHS Foundation Trust,13/03/2020,(81200) Medical Surgical Supplies & Equipment,(id:42312) Evelina Surgery & PICU,ABBOTT MEDICAL UK LTD,id:12893217    ,3630.00
Department of Health,Guys and St Thomas NHS Foundation Trust,20/03/2020,(81200) Medical Surgical Supplies & Equipment,(id:42312) Evelina Surgery & PICU,BARD LTD,id:12879301  ,1080.00
Department of Health,Guys and St Thomas NHS Foundation Trust,27/03/2020,(81280) Medical Surgical Supplies & Equipment,(id:42312) Evelina Surgery & PICU,OCCLUTECH UK LTD,id:12914164    ,1140.00
Department of Health,Guys and St Thomas NHS Foundation Trust,20/03/2020,(81280) Medical Surgical Supplies & Equipment,(id:42312) Evelina Surgery & PICU,NHS BLOOD AND TRANSPLANT,id:12920463 ,3321.76
Department of Health,Guys and St Thomas NHS Foundation Trust,06/03/2020,(81235) Medical Surgical Supplies & Equipment,(id:42312) Evelina Surgery & PICU,ACROSTAK-UK LTD,id:12848421,2366.40
Department of Health,Guys and St Thomas NHS Foundation Trust,13/03/2020,(81235) Medical Surgical Supplies & Equipment,(id:42312) Evelina Surgery & PICU,NHS SUPPLY CHAIN (MAIDSTONE),id:12825586  ,1302.00
Department of Health,Guys and St Thomas NHS Foundation Trust,13/03/2020,(81235) Medical Surgical Supplies & Equipment,(id:42312) Evelina Surgery & PICU,NHS SUPPLY CHAIN (MAIDSTONE),id:12761500  ,3960.00
Department of Health,Guys and St Thomas NHS Foundation Trust,13/03/2020,(81230) Medical Surgical Supplies & Equipment,(id:42312) Evelina Surgery & PICU,COOK UK LTD,id:9265256, 510.00
Department of Health,Guys and St Thomas NHS Foundation Trust,06/03/2020,(81230) Medical Surgical Supplies & Equipment,(id:42312) Evelina Surgery & PICU,COOK UK LTD,id:12759640    , 624.06
Department of Health,Guys and St Thomas NHS Foundation Trust,13/03/2020,(83400) Office Equipment,(id:42312) Evelina Surgery & PICU,NHS SUPPLY CHAIN (MAIDSTONE),id:12812705   ,  50.54
Department of Health,Guys and St Thomas NHS Foundation Trust,20/03/2020,(82000) Provisions & Kitchens,(id:42344) Evelina Surgery & PICU,NHS SUPPLY CHAIN (MAIDSTONE),id:12864175   ,  46.08
Department of Health,Guys and St Thomas NHS Foundation Trust,27/03/2020,(84400) Transport,(id:42344) Evelina Surgery & PICU,ST JOHN AMBULANCE ASSOCIATION,id:12912758    ,    50388.00
Department of Health,Guys and St Thomas NHS Foundation Trust,13/03/2020,(82700) Uniforms & Clothing,(id:42339) Evelina Surgery & PICU,NHS SUPPLY CHAIN (MAIDSTONE),id:12825586,  64.42
Department of Health,Guys and St Thomas NHS Foundation Trust,13/03/2020,(82700) Uniforms & Clothing,(id:42339) Evelina Surgery & PICU,NHS SUPPLY CHAIN (MAIDSTONE),id:12761500,  35.65
Department of Health,Guys and St Thomas NHS Foundation Trust,13/03/2020,(82000) Provisions & Kitchens,(id:42339) Evelina Surgery & PICU,NHS SUPPLY CHAIN (MAIDSTONE),id:12761500   , 166.68
Department of Health,Guys and St Thomas NHS Foundation Trust,13/03/2020,(81100) Dressings,(id:42339) Evelina Surgery & PICU,NHS SUPPLY CHAIN (MAIDSTONE),id:12812705, 696.47
Department of Health,Guys and St Thomas NHS Foundation Trust,20/03/2020,(81100) Dressings,(id:42339) Evelina Surgery & PICU,NHS SUPPLY CHAIN (MAIDSTONE),id:12846415, 480.70
Department of Health,Guys and St Thomas NHS Foundation Trust,13/03/2020,(81200) Medical Surgical Supplies & Equipment,(id:42339) Evelina Surgery & PICU,NHS SUPPLY CHAIN (MAIDSTONE),id:12761500  ,9238.48
Department of Health,Guys and St Thomas NHS Foundation Trust,20/03/2020,(81200) Medical Surgical Supplies & Equipment,(id:42339) Evelina Surgery & PICU,NHS SUPPLY CHAIN (MAIDSTONE),id:12846415  ,3823.04
Department of Health,Guys and St Thomas NHS Foundation Trust,20/03/2020,(81200) Medical Surgical Supplies & Equipment,(id:42339) Evelina Surgery & PICU,KAPITEX HEALTHCARE LTD,id:12894052   ,1111.02
Department of Health,Guys and St Thomas NHS Foundation Trust,06/03/2020,(83410) Office Equipment,(id:42339) Evelina Surgery & PICU,RICOH UK LTD,id:12878794    , 715.09
Department of Health,Guys and St Thomas NHS Foundation Trust,13/03/2020,(83400) Office Equipment,(id:42339) Evelina Surgery & PICU,NHS SUPPLY CHAIN (MAIDSTONE),id:12761500   , 451.43
Department of Health,Guys and St Thomas NHS Foundation Trust,13/03/2020,(81230) Medical Surgical Supplies & Equipment,(id:42339) Evelina Surgery & PICU,NHS SUPPLY CHAIN (MAIDSTONE),id:12761500  , 149.04
Department of Health,Guys and St Thomas NHS Foundation Trust,27/03/2020,(81200) Medical Surgical Supplies & Equipment,(id:42347) Evelina Surgery & PICU,COOK UK LTD,id:12682197    , 376.80
Department of Health,Guys and St Thomas NHS Foundation Trust,06/03/2020,(81200) Medical Surgical Supplies & Equipment,(id:42347) Evelina Surgery & PICU,SQUADRON MEDICAL LTD,id:12853797, 206.24
Department of Health,Guys and St Thomas NHS Foundation Trust,13/03/2020,(81200) Medical Surgical Supplies & Equipment,(id:42347) Evelina Surgery & PICU,SQUADRON MEDICAL LTD,id:12845913, 510.66
Department of Health,Guys and St Thomas NHS Foundation Trust,20/03/2020,(81275) Medical Surgical Supplies & Equipment,(id:42351) Evelina Surgery & PICU,NHS SUPPLY CHAIN (MAIDSTONE),id:12846415  ,   7.07
Department of Health,Guys and St Thomas NHS Foundation Trust,06/03/2020,(84656) Establishment,(id:42351) Evelina Surgery & PICU,DICTATE IT,id:12691953    , 623.70
Department of Health,Guys and St Thomas NHS Foundation Trust,27/03/2020,(81200) Medical Surgical Supplies & Equipment,(id:468409) Evelina Surgery & PICU,SQUADRON MEDICAL LTD,id:12894660    ,  26.88
Department of Health,Guys and St Thomas NHS Foundation Trust,13/03/2020,(81200) Medical Surgical Supplies & Equipment,(id:468409) Evelina Surgery & PICU,T J SMITH & NEPHEW LTD,id:12865296  ,1634.69
Department of Health,Guys and St Thomas NHS Foundation Trust,06/03/2020,(81200) Medical Surgical Supplies & Equipment,(id:468409) Evelina Surgery & PICU,SQUADRON MEDICAL LTD,id:12825217    ,1029.93
Department of Health,Guys and St Thomas NHS Foundation Trust,20/03/2020,(81200) Medical Surgical Supplies & Equipment,(id:468409) Evelina Surgery & PICU,T J SMITH & NEPHEW LTD,id:12913464  , 824.54
Department of Health,Guys and St Thomas NHS Foundation Trust,20/03/2020,(81200) Medical Surgical Supplies & Equipment,(id:468409) Evelina Surgery & PICU,SQUADRON MEDICAL LTD,id:12856343    , 147.97
Department of Health,Guys and St Thomas NHS Foundation Trust,20/03/2020,(81200) Medical Surgical Supplies & Equipment,(id:468409) Evelina Surgery & PICU,MEDITECH SYSTEMS LTD,id:12888585    ,1876.80
Department of Health,Guys and St Thomas NHS Foundation Trust,13/03/2020,(81100) Dressings,(id:468409) Evelina Surgery & PICU,NHS SUPPLY CHAIN (MAIDSTONE),id:12761500    ,   2.45
Department of Health,Guys and St Thomas NHS Foundation Trust,06/03/2020,(81200) Medical Surgical Supplies & Equipment,(id:468410) Evelina Surgery & PICU,SQUADRON MEDICAL LTD,id:12853847    ,  57.74
Department of Health,Guys and St Thomas NHS Foundation Trust,06/03/2020,(81200) Medical Surgical Supplies & Equipment,(id:468410) Evelina Surgery & PICU,MEDITECH SYSTEMS LTD,id:12843117    ,1296.00
Department of Health,Guys and St Thomas NHS Foundation Trust,13/03/2020,(81100) Dressings,(id:431409) Evelina Surgery & PICU,ZIMMER BIOMET UK LTD,id:12907574  , 171.36
Department of Health,Guys and St Thomas NHS Foundation Trust,27/03/2020,(81200) Medical Surgical Supplies & Equipment,(id:431409) Evelina Surgery & PICU,LAVENDER MEDICAL LTD,id:12833717    ,6092.40
Department of Health,Guys and St Thomas NHS Foundation Trust,27/03/2020,(81200) Medical Surgical Supplies & Equipment,(id:431409) Evelina Surgery & PICU,SQUADRON MEDICAL LTD,id:12883761    , 220.50
Department of Health,Guys and St Thomas NHS Foundation Trust,27/03/2020,(81200) Medical Surgical Supplies & Equipment,(id:431409) Evelina Surgery & PICU,SQUADRON MEDICAL LTD,id:12894721    ,  17.10
Department of Health,Guys and St Thomas NHS Foundation Trust,13/03/2020,(81200) Medical Surgical Supplies & Equipment,(id:431409) Evelina Surgery & PICU,SQUADRON MEDICAL LTD,id:12897615    ,   3.67
Department of Health,Guys and St Thomas NHS Foundation Trust,13/03/2020,(81200) Medical Surgical Supplies & Equipment,(id:431409) Evelina Surgery & PICU,ORTHOPEDIATRICS EU LIMITED,id:12901714   , 672.00
Department of Health,Guys and St Thomas NHS Foundation Trust,06/03/2020,(81200) Medical Surgical Supplies & Equipment,(id:431409) Evelina Surgery & PICU,HOSPITAL INNOVATIONS LTD,id:12854645,1650.50
Department of Health,Guys and St Thomas NHS Foundation Trust,06/03/2020,(81000) Surgical Appliances,(id:431409) Evelina Surgery & PICU,JOHN FLORENCE LTD,id:12871074, 669.27
Department of Health,Guys and St Thomas NHS Foundation Trust,06/03/2020,(81000) Surgical Appliances,(id:431409) Evelina Surgery & PICU,JOHN FLORENCE LTD,id:12870120, 651.30
Department of Health,Guys and St Thomas NHS Foundation Trust,06/03/2020,(81000) Surgical Appliances,(id:431409) Evelina Surgery & PICU,JOHN FLORENCE LTD,id:12870121, 702.17
Department of Health,Guys and St Thomas NHS Foundation Trust,06/03/2020,(81000) Surgical Appliances,(id:431409) Evelina Surgery & PICU,JOHN FLORENCE LTD,id:12870514, 653.06
Department of Health,Guys and St Thomas NHS Foundation Trust,06/03/2020,(81000) Surgical Appliances,(id:431409) Evelina Surgery & PICU,JOHN FLORENCE LTD,id:12870124, 740.96
Department of Health,Guys and St Thomas NHS Foundation Trust,13/03/2020,(81000) Surgical Appliances,(id:431409) Evelina Surgery & PICU,JOHN FLORENCE LTD,id:12890796, 721.78
Department of Health,Guys and St Thomas NHS Foundation Trust,13/03/2020,(81000) Surgical Appliances,(id:431409) Evelina Surgery & PICU,JOHN FLORENCE LTD,id:12890501, 656.54
Department of Health,Guys and St Thomas NHS Foundation Trust,13/03/2020,(81000) Surgical Appliances,(id:431409) Evelina Surgery & PICU,JOHN FLORENCE LTD,id:12891374, 685.07
Department of Health,Guys and St Thomas NHS Foundation Trust,20/03/2020,(84656) Establishment,(id:431409) Evelina Surgery & PICU,DICT8 LIMITED,id:12893335,1962.60
Department of Health,Guys and St Thomas NHS Foundation Trust,27/03/2020,(81200) Medical Surgical Supplies & Equipment,(id:1196421) Evelina Surgery & PICU,ZIMMER BIOMET UK LTD,id:12921277   ,3124.80
Department of Health,Guys and St Thomas NHS Foundation Trust,06/03/2020,(81200) Medical Surgical Supplies & Equipment,(id:1196421) Evelina Surgery & PICU,NUVASIVE UK LTD,id:12846734   ,9037.20
Department of Health,Guys and St Thomas NHS Foundation Trust,06/03/2020,(81200) Medical Surgical Supplies & Equipment,(id:1196421) Evelina Surgery & PICU,NUVASIVE UK LTD,id:12876784   ,9037.20
Department of Health,Guys and St Thomas NHS Foundation Trust,06/03/2020,(81200) Medical Surgical Supplies & Equipment,(id:1196421) Evelina Surgery & PICU,ZIMMER BIOMET UK LTD,id:12858681   ,-750.00
Department of Health,Guys and St Thomas NHS Foundation Trust,13/03/2020,(81200) Medical Surgical Supplies & Equipment,(id:1196421) Evelina Surgery & PICU,IMPLANET UK,id:11462292  , 682.84
Department of Health,Guys and St Thomas NHS Foundation Trust,13/03/2020,(81200) Medical Surgical Supplies & Equipment,(id:1196421) Evelina Surgery & PICU,NUVASIVE UK LTD,id:12893578   ,9037.20
Department of Health,Guys and St Thomas NHS Foundation Trust,13/03/2020,(81200) Medical Surgical Supplies & Equipment,(id:1196421) Evelina Surgery & PICU,ZIMMER BIOMET UK LTD,id:12907574   ,1562.40
Department of Health,Guys and St Thomas NHS Foundation Trust,13/03/2020,(81200) Medical Surgical Supplies & Equipment,(id:1196421) Evelina Surgery & PICU,IMPLANET UK,id:12906064  ,-569.04
Department of Health,Guys and St Thomas NHS Foundation Trust,20/03/2020,(81200) Medical Surgical Supplies & Equipment,(id:1196421) Evelina Surgery & PICU,NHS SUPPLY CHAIN (MAIDSTONE),id:12864175,3213.60
Department of Health,Guys and St Thomas NHS Foundation Trust,13/03/2020,(82600) Uniforms & Clothing,(id:41914) Evelina Surgery & PICU,NHS SUPPLY CHAIN (MAIDSTONE),id:12812705, 294.75
Department of Health,Guys and St Thomas NHS Foundation Trust,13/03/2020,(82000) Provisions & Kitchens,(id:41914) Evelina Surgery & PICU,NHS SUPPLY CHAIN (MAIDSTONE),id:12825586   ,  26.04
Department of Health,Guys and St Thomas NHS Foundation Trust,13/03/2020,(83400) Office Equipment,(id:41914) Evelina Surgery & PICU,NHS SUPPLY CHAIN (MAIDSTONE),id:12812705   , 299.02
Department of Health,Guys and St Thomas NHS Foundation Trust,06/03/2020,(83400) Office Equipment,(id:41914) Evelina Surgery & PICU,SQUADRON MEDICAL LTD,id:12805142 , 203.78
Department of Health,Guys and St Thomas NHS Foundation Trust,27/03/2020,(82800) Bedding & Linen,(id:41914) Evelina Surgery & PICU,SQUADRON MEDICAL LTD,id:12894660  ,  65.41
Department of Health,Guys and St Thomas NHS Foundation Trust,20/03/2020,(82800) Bedding & Linen,(id:41914) Evelina Surgery & PICU,NHS SUPPLY CHAIN (MAIDSTONE),id:12864175    , 365.18
Department of Health,Guys and St Thomas NHS Foundation Trust,27/03/2020,(81200) Medical Surgical Supplies & Equipment,(id:41914) Evelina Surgery & PICU,SQUADRON MEDICAL LTD,id:12680926, 162.19
Department of Health,Guys and St Thomas NHS Foundation Trust,27/03/2020,(81200) Medical Surgical Supplies & Equipment,(id:41914) Evelina Surgery & PICU,SQUADRON MEDICAL LTD,id:12693054, 228.09
Department of Health,Guys and St Thomas NHS Foundation Trust,06/03/2020,(81200) Medical Surgical Supplies & Equipment,(id:41914) Evelina Surgery & PICU,SQUADRON MEDICAL LTD,id:12853798, 429.35
Department of Health,Guys and St Thomas NHS Foundation Trust,06/03/2020,(81200) Medical Surgical Supplies & Equipment,(id:41914) Evelina Surgery & PICU,SQUADRON MEDICAL LTD,id:12827830, 316.37
Department of Health,Guys and St Thomas NHS Foundation Trust,06/03/2020,(81200) Medical Surgical Supplies & Equipment,(id:41914) Evelina Surgery & PICU,SQUADRON MEDICAL LTD,id:12815723, 147.48
Department of Health,Guys and St Thomas NHS Foundation Trust,20/03/2020,(81200) Medical Surgical Supplies & Equipment,(id:41914) Evelina Surgery & PICU,NHS SUPPLY CHAIN (MAIDSTONE),id:12864175  , 964.26
Department of Health,Guys and St Thomas NHS Foundation Trust,20/03/2020,(81200) Medical Surgical Supplies & Equipment,(id:41914) Evelina Surgery & PICU,NHS SUPPLY CHAIN (MAIDSTONE),id:12846415  ,1437.35
Department of Health,Guys and St Thomas NHS Foundation Trust,20/03/2020,(81235) Medical Surgical Supplies & Equipment,(id:41914) Evelina Surgery & PICU,BOSTON SCIENTIFIC LTD,id:12860251    , 540.00
Department of Health,Guys and St Thomas NHS Foundation Trust,06/03/2020,(50562) Qualified Nursing Staff,(id:41914) Evelina Surgery & PICU,YOUR WORLD RECRUITMENT LIMITED(YOUR WORLD HEALTHCARE),id:12826924 ,1259.70
Department of Health,Guys and St Thomas NHS Foundation Trust,06/03/2020,(50562) Qualified Nursing Staff,(id:41914) Evelina Surgery & PICU,YOUR WORLD RECRUITMENT LIMITED(YOUR WORLD HEALTHCARE),id:12847477 ,1891.66
Department of Health,Guys and St Thomas NHS Foundation Trust,13/03/2020,(50562) Qualified Nursing Staff,(id:41914) Evelina Surgery & PICU,MSI GROUP LTD,id:12895925 , 567.29
Department of Health,Guys and St Thomas NHS Foundation Trust,13/03/2020,(50562) Qualified Nursing Staff,(id:41914) Evelina Surgery & PICU,PULSE HEALTHCARE LIMITED,id:12896018, 617.35
Department of Health,Guys and St Thomas NHS Foundation Trust,13/03/2020,(50562) Qualified Nursing Staff,(id:41914) Evelina Surgery & PICU,YOUR WORLD RECRUITMENT LIMITED(YOUR WORLD HEALTHCARE),id:12900580 ,1176.83
Department of Health,Guys and St Thomas NHS Foundation Trust,13/03/2020,(50562) Qualified Nursing Staff,(id:41914) Evelina Surgery & PICU,YOUR WORLD RECRUITMENT LIMITED(YOUR WORLD HEALTHCARE),id:12847508 ,1243.12
Department of Health,Guys and St Thomas NHS Foundation Trust,06/03/2020,(50562) Qualified Nursing Staff,(id:41914) Evelina Surgery & PICU,YOUR WORLD RECRUITMENT LIMITED(YOUR WORLD HEALTHCARE),id:12826970 , 580.13
Department of Health,Guys and St Thomas NHS Foundation Trust,20/03/2020,(50562) Qualified Nursing Staff,(id:41914) Evelina Surgery & PICU,YOUR WORLD RECRUITMENT LIMITED(YOUR WORLD HEALTHCARE),id:12896047 ,1541.48
Department of Health,Guys and St Thomas NHS Foundation Trust,27/03/2020,(81100) Dressings,(id:41914) Evelina Surgery & PICU,SQUADRON MEDICAL LTD,id:12724500   ,  40.01
Department of Health,Guys and St Thomas NHS Foundation Trust,27/03/2020,(81100) Dressings,(id:41914) Evelina Surgery & PICU,SQUADRON MEDICAL LTD,id:12894721   ,  44.23
Department of Health,Guys and St Thomas NHS Foundation Trust,06/03/2020,(81100) Dressings,(id:41914) Evelina Surgery & PICU,SQUADRON MEDICAL LTD,id:12815723   ,  76.77
Department of Health,Guys and St Thomas NHS Foundation Trust,06/03/2020,(81100) Dressings,(id:41914) Evelina Surgery & PICU,ELIS UK LIMITED,id:12618696   , 571.80
Department of Health,Guys and St Thomas NHS Foundation Trust,13/03/2020,(81100) Dressings,(id:41914) Evelina Surgery & PICU,NHS SUPPLY CHAIN (MAIDSTONE),id:12825586, 289.82
Department of Health,Guys and St Thomas NHS Foundation Trust,20/03/2020,(81100) Dressings,(id:41914) Evelina Surgery & PICU,SQUADRON MEDICAL LTD,id:12856343   ,  92.01
Department of Health,Guys and St Thomas NHS Foundation Trust,27/03/2020,(81200) Medical Surgical Supplies & Equipment,(id:41910) Evelina Surgery & PICU,MEDTRONIC LTD,id:12928160  , 864.00
Department of Health,Guys and St Thomas NHS Foundation Trust,06/03/2020,(81200) Medical Surgical Supplies & Equipment,(id:41910) Evelina Surgery & PICU,SQUADRON MEDICAL LTD,id:12825217, 145.65
Department of Health,Guys and St Thomas NHS Foundation Trust,06/03/2020,(81200) Medical Surgical Supplies & Equipment,(id:41910) Evelina Surgery & PICU,SQUADRON MEDICAL LTD,id:12805142,  98.28
Department of Health,Guys and St Thomas NHS Foundation Trust,13/03/2020,(81200) Medical Surgical Supplies & Equipment,(id:41910) Evelina Surgery & PICU,SQUADRON MEDICAL LTD,id:12848943, 354.01
Department of Health,Guys and St Thomas NHS Foundation Trust,13/03/2020,(81200) Medical Surgical Supplies & Equipment,(id:41910) Evelina Surgery & PICU,SQUADRON MEDICAL LTD,id:12845913, 264.41
Department of Health,Guys and St Thomas NHS Foundation Trust,27/03/2020,(83400) Office Equipment,(id:41910) Evelina Surgery & PICU,SQUADRON MEDICAL LTD,id:12469067 , 133.95
Department of Health,Guys and St Thomas NHS Foundation Trust,27/03/2020,(83400) Office Equipment,(id:41910) Evelina Surgery & PICU,SQUADRON MEDICAL LTD,id:12883761 , 106.98
Department of Health,Guys and St Thomas NHS Foundation Trust,13/03/2020,(83400) Office Equipment,(id:41910) Evelina Surgery & PICU,SQUADRON MEDICAL LTD,id:12845913 , 173.49
Department of Health,Guys and St Thomas NHS Foundation Trust,20/03/2020,(83400) Office Equipment,(id:41910) Evelina Surgery & PICU,SQUADRON MEDICAL LTD,id:12868667 ,  26.05
Department of Health,Guys and St Thomas NHS Foundation Trust,06/03/2020,(81200) Medical Surgical Supplies & Equipment,(id:3722419) Evelina Surgery & PICU,ORTHOPTIC SUPPLIES:70364400,id:12875517 , 519.00
Department of Health,Guys and St Thomas NHS Foundation Trust,25/03/2020,(54052) Technical Officers,(id:41962) Gastrointestinal Medicine & Surgery,PRICEWATERHOUSECOOPERS LLP,id:12931666,1766.12
Department of Health,Guys and St Thomas NHS Foundation Trust,19/03/2020,(54052) Technical Officers,(id:41962) Gastrointestinal Medicine & Surgery,PRICEWATERHOUSECOOPERS LLP,id:12920621, 970.69
Department of Health,Guys and St Thomas NHS Foundation Trust,20/03/2020,(81200) Medical Surgical Supplies & Equipment,(id:41959) Gastrointestinal Medicine & Surgery,NHS SUPPLY CHAIN (MAIDSTONE),id:12864175    ,  92.09
Department of Health,Guys and St Thomas NHS Foundation Trust,06/03/2020,(84500) Establishment,(id:41958) Gastrointestinal Medicine & Surgery,CDP  PRINT MANAGEMENT,id:12868400,  18.00
Department of Health,Guys and St Thomas NHS Foundation Trust,20/03/2020,(81200) Medical Surgical Supplies & Equipment,(id:41958) Gastrointestinal Medicine & Surgery,NHS SUPPLY CHAIN (MAIDSTONE),id:12864175    , 575.37
Department of Health,Guys and St Thomas NHS Foundation Trust,06/03/2020,(50552) Qualified Nursing Staff,(id:41958) Gastrointestinal Medicine & Surgery,MSI GROUP LTD,id:12882235   , 347.29
Department of Health,Guys and St Thomas NHS Foundation Trust,27/03/2020,(50522) Unqualified Nursing Staff,(id:41958) Gastrointestinal Medicine & Surgery,MSI GROUP LTD,id:12937441 , 249.44
Department of Health,Guys and St Thomas NHS Foundation Trust,27/03/2020,(50522) Unqualified Nursing Staff,(id:41958) Gastrointestinal Medicine & Surgery,MSI GROUP LTD,id:12937180 , 268.34
Department of Health,Guys and St Thomas NHS Foundation Trust,06/03/2020,(50522) Unqualified Nursing Staff,(id:41958) Gastrointestinal Medicine & Surgery,MSI GROUP LTD,id:12882186 , 269.08
Department of Health,Guys and St Thomas NHS Foundation Trust,13/03/2020,(81700) Lab Equipment Purchase,(id:41958) Gastrointestinal Medicine & Surgery,NHS SUPPLY CHAIN (MAIDSTONE),id:12761500    ,  12.82
Department of Health,Guys and St Thomas NHS Foundation Trust,13/03/2020,(82700) Uniforms & Clothing,(id:41954) Gastrointestinal Medicine & Surgery,NHS SUPPLY CHAIN (MAIDSTONE),id:12761500  ,  31.68
Department of Health,Guys and St Thomas NHS Foundation Trust,20/03/2020,(82700) Uniforms & Clothing,(id:41954) Gastrointestinal Medicine & Surgery,NHS SUPPLY CHAIN (MAIDSTONE),id:12846415  ,  10.56
Department of Health,Guys and St Thomas NHS Foundation Trust,13/03/2020,(82000) Provisions & Kitchens,(id:41954) Gastrointestinal Medicine & Surgery,NHS SUPPLY CHAIN (MAIDSTONE),id:12761500, 268.58
Department of Health,Guys and St Thomas NHS Foundation Trust,06/03/2020,(84500) Establishment,(id:41954) Gastrointestinal Medicine & Surgery,CDP  PRINT MANAGEMENT,id:12868400,   3.60
Department of Health,Guys and St Thomas NHS Foundation Trust,27/03/2020,(50522) Unqualified Nursing Staff,(id:41954) Gastrointestinal Medicine & Surgery,MSI GROUP LTD,id:12939754 , 265.20
Department of Health,Guys and St Thomas NHS Foundation Trust,06/03/2020,(50522) Unqualified Nursing Staff,(id:41954) Gastrointestinal Medicine & Surgery,MSI GROUP LTD,id:12882192 , 256.26
Department of Health,Guys and St Thomas NHS Foundation Trust,13/03/2020,(81200) Medical Surgical Supplies & Equipment,(id:41954) Gastrointestinal Medicine & Surgery,NHS SUPPLY CHAIN (MAIDSTONE),id:12825586    ,1193.28
Department of Health,Guys and St Thomas NHS Foundation Trust,13/03/2020,(81200) Medical Surgical Supplies & Equipment,(id:41954) Gastrointestinal Medicine & Surgery,NHS SUPPLY CHAIN (MAIDSTONE),id:12761500    ,1384.46
Department of Health,Guys and St Thomas NHS Foundation Trust,20/03/2020,(50552) Qualified Nursing Staff,(id:41954) Gastrointestinal Medicine & Surgery,GLOBE LOCUMS LTD,id:12920858, 375.78
Department of Health,Guys and St Thomas NHS Foundation Trust,13/03/2020,(81255) Medical Surgical Supplies & Equipment,(id:41954) Gastrointestinal Medicine & Surgery,NHS SUPPLY CHAIN (MAIDSTONE),id:12812705    ,   9.65
Department of Health,Guys and St Thomas NHS Foundation Trust,13/03/2020,(81700) Lab Equipment Purchase,(id:41954) Gastrointestinal Medicine & Surgery,NHS SUPPLY CHAIN (MAIDSTONE),id:12825586    ,  33.23
Department of Health,Guys and St Thomas NHS Foundation Trust,13/03/2020,(81700) Lab Equipment Purchase,(id:41954) Gastrointestinal Medicine & Surgery,NHS SUPPLY CHAIN (MAIDSTONE),id:12812705    ,  18.53
Department of Health,Guys and St Thomas NHS Foundation Trust,20/03/2020,(81225) Medical Surgical Supplies & Equipment,(id:41954) Gastrointestinal Medicine & Surgery,NHS SUPPLY CHAIN (MAIDSTONE),id:12864175    , 121.44
Department of Health,Guys and St Thomas NHS Foundation Trust,27/03/2020,(81200) Medical Surgical Supplies & Equipment,(id:41949) Gastrointestinal Medicine & Surgery,SQUADRON MEDICAL LTD,id:12899149  , 710.88
Department of Health,Guys and St Thomas NHS Foundation Trust,06/03/2020,(81200) Medical Surgical Supplies & Equipment,(id:41949) Gastrointestinal Medicine & Surgery,SQUADRON MEDICAL LTD,id:12827742  , 704.31
Department of Health,Guys and St Thomas NHS Foundation Trust,06/03/2020,(81200) Medical Surgical Supplies & Equipment,(id:41949) Gastrointestinal Medicine & Surgery,SQUADRON MEDICAL LTD,id:12826230  , 434.09
Department of Health,Guys and St Thomas NHS Foundation Trust,06/03/2020,(81200) Medical Surgical Supplies & Equipment,(id:41949) Gastrointestinal Medicine & Surgery,MEDTRONIC LTD,id:12825158    ,3611.81
Department of Health,Guys and St Thomas NHS Foundation Trust,20/03/2020,(81200) Medical Surgical Supplies & Equipment,(id:41949) Gastrointestinal Medicine & Surgery,SQUADRON MEDICAL LTD,id:12868850  ,  47.38
Department of Health,Guys and St Thomas NHS Foundation Trust,20/03/2020,(81200) Medical Surgical Supplies & Equipment,(id:41949) Gastrointestinal Medicine & Surgery,SQUADRON MEDICAL LTD,id:12868852  , 516.48
Department of Health,Guys and St Thomas NHS Foundation Trust,20/03/2020,(81200) Medical Surgical Supplies & Equipment,(id:41949) Gastrointestinal Medicine & Surgery,HEALTHCARE 21 LTD,id:12888095,3696.00
Department of Health,Guys and St Thomas NHS Foundation Trust,13/03/2020,(81200) Medical Surgical Supplies & Equipment,(id:41949) Gastrointestinal Medicine & Surgery,SQUADRON MEDICAL LTD,id:12846263  ,2272.07
Department of Health,Guys and St Thomas NHS Foundation Trust,13/03/2020,(81200) Medical Surgical Supplies & Equipment,(id:41949) Gastrointestinal Medicine & Surgery,SQUADRON MEDICAL LTD,id:12848864  ,4589.24
Department of Health,Guys and St Thomas NHS Foundation Trust,13/03/2020,(81200) Medical Surgical Supplies & Equipment,(id:41949) Gastrointestinal Medicine & Surgery,SQUADRON MEDICAL LTD,id:12834385  ,1853.39
Department of Health,Guys and St Thomas NHS Foundation Trust,27/03/2020,(50522) Unqualified Nursing Staff,(id:2367419) Gastrointestinal Medicine & Surgery,GLOBE LOCUMS LTD,id:12932923 , 204.12
Department of Health,Guys and St Thomas NHS Foundation Trust,13/03/2020,(83400) Office Equipment,(id:2367419) Gastrointestinal Medicine & Surgery,NHS SUPPLY CHAIN (MAIDSTONE),id:12825586   ,  65.26
Department of Health,Guys and St Thomas NHS Foundation Trust,13/03/2020,(81100) Dressings,(id:2367419) Gastrointestinal Medicine & Surgery,NHS SUPPLY CHAIN (MAIDSTONE),id:12825586, 124.88
Department of Health,Guys and St Thomas NHS Foundation Trust,20/03/2020,(81100) Dressings,(id:2367419) Gastrointestinal Medicine & Surgery,NHS SUPPLY CHAIN (MAIDSTONE),id:12846415,  98.06
Department of Health,Guys and St Thomas NHS Foundation Trust,20/03/2020,(81225) Medical Surgical Supplies & Equipment,(id:2367419) Gastrointestinal Medicine & Surgery,NHS SUPPLY CHAIN (MAIDSTONE),id:12864175  ,  30.24
Department of Health,Guys and St Thomas NHS Foundation Trust,20/03/2020,(81200) Medical Surgical Supplies & Equipment,(id:41957) Gastrointestinal Medicine & Surgery,NHS SUPPLY CHAIN (MAIDSTONE),id:12846415    ,  46.75
Department of Health,Guys and St Thomas NHS Foundation Trust,20/03/2020,(81400) Medical Surgical Supplies & Equipment,(id:41957) Gastrointestinal Medicine & Surgery,NHS SUPPLY CHAIN (MAIDSTONE),id:12846415    , 201.34
Department of Health,Guys and St Thomas NHS Foundation Trust,13/03/2020,(81200) Medical Surgical Supplies & Equipment,(id:41942) Gastrointestinal Medicine & Surgery,NHS SUPPLY CHAIN (MAIDSTONE),id:12761500    ,1065.65
Department of Health,Guys and St Thomas NHS Foundation Trust,20/03/2020,(81200) Medical Surgical Supplies & Equipment,(id:41942) Gastrointestinal Medicine & Surgery,NHS SUPPLY CHAIN (MAIDSTONE),id:12846415    ,  16.73
Department of Health,Guys and St Thomas NHS Foundation Trust,13/03/2020,(82000) Provisions & Kitchens,(id:41917) Gastrointestinal Medicine & Surgery,NHS SUPPLY CHAIN (MAIDSTONE),id:12825586,  67.55
Department of Health,Guys and St Thomas NHS Foundation Trust,13/03/2020,(83400) Office Equipment,(id:41917) Gastrointestinal Medicine & Surgery,NHS SUPPLY CHAIN (MAIDSTONE),id:12825586, 332.05
Department of Health,Guys and St Thomas NHS Foundation Trust,20/03/2020,(82800) Bedding & Linen,(id:41917) Gastrointestinal Medicine & Surgery,NHS SUPPLY CHAIN (MAIDSTONE),id:12864175 , 426.53
Department of Health,Guys and St Thomas NHS Foundation Trust,13/03/2020,(82800) Bedding & Linen,(id:41917) Gastrointestinal Medicine & Surgery,NHS SUPPLY CHAIN (MAIDSTONE),id:12825586 ,  90.14
Department of Health,Guys and St Thomas NHS Foundation Trust,13/03/2020,(82700) Uniforms & Clothing,(id:41917) Gastrointestinal Medicine & Surgery,NHS SUPPLY CHAIN (MAIDSTONE),id:12825586  , 189.50
Department of Health,Guys and St Thomas NHS Foundation Trust,06/03/2020,(81235) Medical Surgical Supplies & Equipment,(id:41917) Gastrointestinal Medicine & Surgery,BOSTON SCIENTIFIC LTD,id:12825144 ,1621.44
Department of Health,Guys and St Thomas NHS Foundation Trust,06/03/2020,(81200) Medical Surgical Supplies & Equipment,(id:41917) Gastrointestinal Medicine & Surgery,OLYMPUS KEYMED,id:12827591   , 888.00
Department of Health,Guys and St Thomas NHS Foundation Trust,06/03/2020,(81200) Medical Surgical Supplies & Equipment,(id:41917) Gastrointestinal Medicine & Surgery,MEDTRONIC LTD,id:12853464    ,2460.00
Department of Health,Guys and St Thomas NHS Foundation Trust,06/03/2020,(81200) Medical Surgical Supplies & Equipment,(id:41917) Gastrointestinal Medicine & Surgery,BOSTON SCIENTIFIC LTD,id:12827944 ,3480.00
Department of Health,Guys and St Thomas NHS Foundation Trust,13/03/2020,(81200) Medical Surgical Supplies & Equipment,(id:41917) Gastrointestinal Medicine & Surgery,AQUILANT ENDOSCOPY - FORMALLY IMOTECH MEDICAL,id:12893236  ,4334.40
Department of Health,Guys and St Thomas NHS Foundation Trust,13/03/2020,(81200) Medical Surgical Supplies & Equipment,(id:41917) Gastrointestinal Medicine & Surgery,NHS SUPPLY CHAIN (MAIDSTONE),id:12761500    ,4162.01
Department of Health,Guys and St Thomas NHS Foundation Trust,13/03/2020,(81200) Medical Surgical Supplies & Equipment,(id:41917) Gastrointestinal Medicine & Surgery,DIAGMED  HEALTH CARE LTD,id:12865274   ,2768.40
Department of Health,Guys and St Thomas NHS Foundation Trust,13/03/2020,(81200) Medical Surgical Supplies & Equipment,(id:41917) Gastrointestinal Medicine & Surgery,MEDTRONIC LTD,id:12815264    ,2580.00
Department of Health,Guys and St Thomas NHS Foundation Trust,20/03/2020,(81200) Medical Surgical Supplies & Equipment,(id:41917) Gastrointestinal Medicine & Surgery,DIAGMED  HEALTH CARE LTD,id:12915192   ,1098.00
Department of Health,Guys and St Thomas NHS Foundation Trust,13/03/2020,(81100) Dressings,(id:41917) Gastrointestinal Medicine & Surgery,NHS SUPPLY CHAIN (MAIDSTONE),id:12825586  ,  69.60
Department of Health,Guys and St Thomas NHS Foundation Trust,13/03/2020,(81700) Lab Equipment Purchase,(id:41917) Gastrointestinal Medicine & Surgery,NHS SUPPLY CHAIN (MAIDSTONE),id:12812705    , 237.60
Department of Health,Guys and St Thomas NHS Foundation Trust,13/03/2020,(50552) Qualified Nursing Staff,(id:41917) Gastrointestinal Medicine & Surgery,PULSE HEALTHCARE LIMITED,id:12895880  ,1295.90
Department of Health,Guys and St Thomas NHS Foundation Trust,06/03/2020,(89270) Establishment,(id:3365419) Cancer Strategy,CROYDON HEALTH SERVICES NHS TRUST,id:11916992 ,    15524.45
Department of Health,Guys and St Thomas NHS Foundation Trust,20/03/2020,(81400) Medical Surgical Supplies & Equipment,(id:3364419) Cancer Strategy,ALLIANCE MEDICAL LTD,id:12915219,    22392.00
Department of Health,Guys and St Thomas NHS Foundation Trust,20/03/2020,(81400) Medical Surgical Supplies & Equipment,(id:3364419) Cancer Strategy,ALLIANCE MEDICAL LTD,id:12921470,    23107.20
Department of Health,Guys and St Thomas NHS Foundation Trust,20/03/2020,(81400) Medical Surgical Supplies & Equipment,(id:3364419) Cancer Strategy,ALLIANCE MEDICAL LTD,id:12780533,    68811.60
Department of Health,Guys and St Thomas NHS Foundation Trust,06/03/2020,(89595) Non-Healthcare from Foundation Trusts,(id:169405) Cancer Strategy,KING'S COLLEGE HOSPITAL NHS FOUNDATION TRUST,id:12880274  ,   -11718.65
Department of Health,Guys and St Thomas NHS Foundation Trust,02/03/2020,(89440) Research and Development,(id:4049419) Cardiovascular Services,OHIOHEALTH CORPORATION,id:12857574   ,1189.84
Department of Health,Guys and St Thomas NHS Foundation Trust,20/03/2020,(81100) Dressings,(id:1127419) Cardiovascular Services,NHS SUPPLY CHAIN (MAIDSTONE),id:12864175  , 645.16
Department of Health,Guys and St Thomas NHS Foundation Trust,13/03/2020,(81100) Dressings,(id:780420) Cardiovascular Services,NHS SUPPLY CHAIN (MAIDSTONE),id:12761500   ,1382.88
Department of Health,Guys and St Thomas NHS Foundation Trust,20/03/2020,(50552) Qualified Nursing Staff,(id:780420) Cardiovascular Services,CARE PROVIDERS HEALTHCARE,id:12924322  ,1060.19
Department of Health,Guys and St Thomas NHS Foundation Trust,20/03/2020,(50552) Qualified Nursing Staff,(id:780420) Cardiovascular Services,GLOBE LOCUMS LTD,id:12924395 , 335.60
Department of Health,Guys and St Thomas NHS Foundation Trust,27/03/2020,(50522) Unqualified Nursing Staff,(id:780420) Cardiovascular Services,MSI GROUP LTD,id:12937441  , 249.44
Department of Health,Guys and St Thomas NHS Foundation Trust,27/03/2020,(81230) Medical Surgical Supplies & Equipment,(id:639421) Cardiovascular Services,BARD LTD,id:12487945,1559.04
Department of Health,Guys and St Thomas NHS Foundation Trust,27/03/2020,(81250) Medical Surgical Supplies & Equipment,(id:639421) Cardiovascular Services,BENTLEY INNOMED GMBH,id:12928074   ,1020.00
Department of Health,Guys and St Thomas NHS Foundation Trust,27/03/2020,(81250) Medical Surgical Supplies & Equipment,(id:639421) Cardiovascular Services,BENTLEY INNOMED GMBH,id:12927843   ,6660.00
Department of Health,Guys and St Thomas NHS Foundation Trust,27/03/2020,(81250) Medical Surgical Supplies & Equipment,(id:639421) Cardiovascular Services,CRYOLIFE EUROPA LTD,id:12907075    ,    22200.00
Department of Health,Guys and St Thomas NHS Foundation Trust,06/03/2020,(81250) Medical Surgical Supplies & Equipment,(id:639421) Cardiovascular Services,CRYOLIFE EUROPA LTD,id:12845415    ,    19800.00
Department of Health,Guys and St Thomas NHS Foundation Trust,13/03/2020,(81250) Medical Surgical Supplies & Equipment,(id:639421) Cardiovascular Services,BENTLEY INNOMED GMBH,id:12891116   ,1020.00
Department of Health,Guys and St Thomas NHS Foundation Trust,13/03/2020,(81250) Medical Surgical Supplies & Equipment,(id:639421) Cardiovascular Services,WL GORE & ASSOCIATES (UK) LTD,id:12805134    ,2400.00
Department of Health,Guys and St Thomas NHS Foundation Trust,27/03/2020,(81200) Medical Surgical Supplies & Equipment,(id:639421) Cardiovascular Services,BENTLEY INNOMED GMBH,id:12927088   ,4080.00
Department of Health,Guys and St Thomas NHS Foundation Trust,27/03/2020,(81200) Medical Surgical Supplies & Equipment,(id:639421) Cardiovascular Services,BENTLEY INNOMED GMBH,id:12927086   ,1020.00
Department of Health,Guys and St Thomas NHS Foundation Trust,06/03/2020,(81200) Medical Surgical Supplies & Equipment,(id:639421) Cardiovascular Services,WL GORE & ASSOCIATES (UK) LTD,id:12822757    ,7185.60
Department of Health,Guys and St Thomas NHS Foundation Trust,06/03/2020,(81200) Medical Surgical Supplies & Equipment,(id:639421) Cardiovascular Services,BOSTON SCIENTIFIC LTD,id:12874206  , 738.00
Department of Health,Guys and St Thomas NHS Foundation Trust,06/03/2020,(81200) Medical Surgical Supplies & Equipment,(id:639421) Cardiovascular Services,MEDTRONIC LTD,id:12827697, 840.00
Department of Health,Guys and St Thomas NHS Foundation Trust,06/03/2020,(81200) Medical Surgical Supplies & Equipment,(id:639421) Cardiovascular Services,COOK UK LTD,id:12815730  , 603.60
Department of Health,Guys and St Thomas NHS Foundation Trust,20/03/2020,(81200) Medical Surgical Supplies & Equipment,(id:639421) Cardiovascular Services,BOSTON SCIENTIFIC LTD,id:12916070  ,1404.00
Department of Health,Guys and St Thomas NHS Foundation Trust,20/03/2020,(81200) Medical Surgical Supplies & Equipment,(id:639421) Cardiovascular Services,BENTLEY INNOMED GMBH,id:12916503   ,3060.00
Department of Health,Guys and St Thomas NHS Foundation Trust,13/03/2020,(81200) Medical Surgical Supplies & Equipment,(id:639421) Cardiovascular Services,MEDTRONIC LTD,id:12845794, 600.00
Department of Health,Guys and St Thomas NHS Foundation Trust,13/03/2020,(81200) Medical Surgical Supplies & Equipment,(id:639421) Cardiovascular Services,COOK UK LTD,id:12849617  , 660.00
Department of Health,Guys and St Thomas NHS Foundation Trust,13/03/2020,(82000) Provisions & Kitchens,(id:41953) Cardiovascular Services,NHS SUPPLY CHAIN (MAIDSTONE),id:12812705  , 258.55
Department of Health,Guys and St Thomas NHS Foundation Trust,06/03/2020,(84500) Establishment,(id:41953) Cardiovascular Services,CDP  PRINT MANAGEMENT,id:12868397  ,   3.60
Department of Health,Guys and St Thomas NHS Foundation Trust,20/03/2020,(83400) Office Equipment,(id:41953) Cardiovascular Services,NHS SUPPLY CHAIN (MAIDSTONE),id:12846415  , 111.63
Department of Health,Guys and St Thomas NHS Foundation Trust,13/03/2020,(81225) Medical Surgical Supplies & Equipment,(id:41953) Cardiovascular Services,NHS SUPPLY CHAIN (MAIDSTONE),id:12825586 ,  33.54
Department of Health,Guys and St Thomas NHS Foundation Trust,27/03/2020,(81200) Medical Surgical Supplies & Equipment,(id:41950) Cardiovascular Services,ABBOTT MEDICAL UK LTD,id:12914275   ,1440.00
Department of Health,Guys and St Thomas NHS Foundation Trust,06/03/2020,(81200) Medical Surgical Supplies & Equipment,(id:41950) Cardiovascular Services,COOK UK LTD,id:12810959   ,1476.00
Department of Health,Guys and St Thomas NHS Foundation Trust,06/03/2020,(81200) Medical Surgical Supplies & Equipment,(id:41950) Cardiovascular Services,KIMAL PLC,id:12845695, 551.11
Department of Health,Guys and St Thomas NHS Foundation Trust,06/03/2020,(81200) Medical Surgical Supplies & Equipment,(id:41950) Cardiovascular Services,COOK UK LTD,id:12810958   ,1009.20
Department of Health,Guys and St Thomas NHS Foundation Trust,06/03/2020,(81200) Medical Surgical Supplies & Equipment,(id:41950) Cardiovascular Services,ABBOTT MEDICAL UK LTD,id:12865594   ,1800.00
Department of Health,Guys and St Thomas NHS Foundation Trust,13/03/2020,(81200) Medical Surgical Supplies & Equipment,(id:41950) Cardiovascular Services,BOSTON SCIENTIFIC LTD,id:12834159   , 504.00
Department of Health,Guys and St Thomas NHS Foundation Trust,13/03/2020,(81200) Medical Surgical Supplies & Equipment,(id:41950) Cardiovascular Services,COOK UK LTD,id:12853826   ,1212.00
Department of Health,Guys and St Thomas NHS Foundation Trust,20/03/2020,(81200) Medical Surgical Supplies & Equipment,(id:41950) Cardiovascular Services,NHS SUPPLY CHAIN (MAIDSTONE),id:12846415 ,5269.97
Department of Health,Guys and St Thomas NHS Foundation Trust,27/03/2020,(81230) Medical Surgical Supplies & Equipment,(id:41950) Cardiovascular Services,COOK UK LTD,id:12669383   , 559.20
Department of Health,Guys and St Thomas NHS Foundation Trust,27/03/2020,(89120) Other - Legal fees,(id:41950) Cardiovascular Services,BEACHCROFT LLP OFFICE ACCOUNT,id:12933434    ,1355.10
Department of Health,Guys and St Thomas NHS Foundation Trust,20/03/2020,(81235) Medical Surgical Supplies & Equipment,(id:41950) Cardiovascular Services,BARD LTD,id:12860314 , 530.88
Department of Health,Guys and St Thomas NHS Foundation Trust,06/03/2020,(81100) Dressings,(id:41950) Cardiovascular Services,SQUADRON MEDICAL LTD,id:12815726  , 164.72
Department of Health,Guys and St Thomas NHS Foundation Trust,27/03/2020,(81200) Medical Surgical Supplies & Equipment,(id:41948) Cardiovascular Services,SQUADRON MEDICAL LTD,id:12894651    ,   3.10
Department of Health,Guys and St Thomas NHS Foundation Trust,20/03/2020,(81200) Medical Surgical Supplies & Equipment,(id:41948) Cardiovascular Services,SQUADRON MEDICAL LTD,id:12879115    ,  17.94
Department of Health,Guys and St Thomas NHS Foundation Trust,13/03/2020,(81200) Medical Surgical Supplies & Equipment,(id:41948) Cardiovascular Services,SQUADRON MEDICAL LTD,id:12897342    , 752.95
Department of Health,Guys and St Thomas NHS Foundation Trust,13/03/2020,(81200) Medical Surgical Supplies & Equipment,(id:41947) Cardiovascular Services,NHS SUPPLY CHAIN (MAIDSTONE),id:12812705 ,  14.37
Department of Health,Guys and St Thomas NHS Foundation Trust,06/03/2020,(84500) Establishment,(id:42305) Cardiovascular Services,CDP  PRINT MANAGEMENT,id:12868395  ,  24.70
Department of Health,Guys and St Thomas NHS Foundation Trust,06/03/2020,(84500) Establishment,(id:42305) Cardiovascular Services,CDP  PRINT MANAGEMENT,id:12868397  ,   7.20
Department of Health,Guys and St Thomas NHS Foundation Trust,13/03/2020,(82700) Uniforms & Clothing,(id:3923419) Cardiovascular Services,NHS SUPPLY CHAIN (MAIDSTONE),id:12761500  ,  49.15
Department of Health,Guys and St Thomas NHS Foundation Trust,06/03/2020,(54072) Technical Officers,(id:1243420) Cardiovascular Services,GLOBE LOCUMS LTD,id:12872271,1890.00
Department of Health,Guys and St Thomas NHS Foundation Trust,13/03/2020,(54072) Technical Officers,(id:1243420) Cardiovascular Services,GLOBE LOCUMS LTD,id:12906307,1890.00
Department of Health,Guys and St Thomas NHS Foundation Trust,13/03/2020,(81200) Medical Surgical Supplies & Equipment,(id:1243420) Cardiovascular Services,NHS SUPPLY CHAIN (MAIDSTONE),id:12761500    ,1021.92
Department of Health,Guys and St Thomas NHS Foundation Trust,27/03/2020,(82600) Uniforms & Clothing,(id:1243419) Cardiovascular Services,PROTECX MEDICAL LTD,id:12905114 , 907.20
Department of Health,Guys and St Thomas NHS Foundation Trust,20/03/2020,(82600) Uniforms & Clothing,(id:1243419) Cardiovascular Services,NHS SUPPLY CHAIN (MAIDSTONE),id:12864175  , 155.15
Department of Health,Guys and St Thomas NHS Foundation Trust,19/03/2020,(52072) Radiographers,(id:1243419) Cardiovascular Services,PRICEWATERHOUSECOOPERS LLP,id:12920541,2951.33
Department of Health,Guys and St Thomas NHS Foundation Trust,25/03/2020,(54062) Technical Officers,(id:42303) Cardiovascular Services,PRICEWATERHOUSECOOPERS LLP,id:12931666  ,1250.12
Department of Health,Guys and St Thomas NHS Foundation Trust,19/03/2020,(51832) Physiotherapists,(id:42303) Cardiovascular Services,PRICEWATERHOUSECOOPERS LLP,id:12920472    ,3137.25
Department of Health,Guys and St Thomas NHS Foundation Trust,13/03/2020,(51832) Physiotherapists,(id:42303) Cardiovascular Services,GLOBE LOCUMS LTD,id:12906269    , 772.56
Department of Health,Guys and St Thomas NHS Foundation Trust,06/03/2020,(84600) Establishment,(id:42303) Cardiovascular Services,CLARITY TRAVEL MANAGEMENT,id:12878449   ,1214.86
Department of Health,Guys and St Thomas NHS Foundation Trust,06/03/2020,(83400) Office Equipment,(id:42302) Cardiovascular Services,ABBOTT MEDICAL UK LTD,id:12863794    ,    19800.00
Department of Health,Guys and St Thomas NHS Foundation Trust,06/03/2020,(83400) Office Equipment,(id:42302) Cardiovascular Services,ABBOTT MEDICAL UK LTD,id:12863701    ,    19800.00
Department of Health,Guys and St Thomas NHS Foundation Trust,13/03/2020,(82800) Bedding & Linen,(id:42302) Cardiovascular Services,NHS SUPPLY CHAIN (MAIDSTONE),id:12825586   , 220.80
Department of Health,Guys and St Thomas NHS Foundation Trust,06/03/2020,(81280) Medical Surgical Supplies & Equipment,(id:42302) Cardiovascular Services,EDWARDS LIFESCIENCES LTD,id:12850537,   -25530.00
Department of Health,Guys and St Thomas NHS Foundation Trust,06/03/2020,(81280) Medical Surgical Supplies & Equipment,(id:42302) Cardiovascular Services,EDWARDS LIFESCIENCES LTD,id:12850516,   -25530.00
Department of Health,Guys and St Thomas NHS Foundation Trust,06/03/2020,(81280) Medical Surgical Supplies & Equipment,(id:42302) Cardiovascular Services,EDWARDS LIFESCIENCES LTD,id:12850301,    25530.00
Department of Health,Guys and St Thomas NHS Foundation Trust,06/03/2020,(81200) Medical Surgical Supplies & Equipment,(id:42302) Cardiovascular Services,BOSTON SCIENTIFIC LTD,id:12822384   , 240.00
Department of Health,Guys and St Thomas NHS Foundation Trust,06/03/2020,(81200) Medical Surgical Supplies & Equipment,(id:42302) Cardiovascular Services,ABBOTT MEDICAL UK LTD,id:12863710   ,1800.00
Department of Health,Guys and St Thomas NHS Foundation Trust,06/03/2020,(81200) Medical Surgical Supplies & Equipment,(id:42302) Cardiovascular Services,XAVIOURMED LLP,id:12854617, 510.00
Department of Health,Guys and St Thomas NHS Foundation Trust,13/03/2020,(81200) Medical Surgical Supplies & Equipment,(id:42302) Cardiovascular Services,BOSTON SCIENTIFIC LTD,id:12834158   ,5376.00
Department of Health,Guys and St Thomas NHS Foundation Trust,13/03/2020,(81200) Medical Surgical Supplies & Equipment,(id:42302) Cardiovascular Services,VASCULAR PERSPECTIVES LTD,id:12896509    ,1488.00
Department of Health,Guys and St Thomas NHS Foundation Trust,20/03/2020,(81200) Medical Surgical Supplies & Equipment,(id:42302) Cardiovascular Services,BOSTON SCIENTIFIC LTD,id:12868618   ,2460.00
Department of Health,Guys and St Thomas NHS Foundation Trust,13/03/2020,(81235) Medical Surgical Supplies & Equipment,(id:42302) Cardiovascular Services,BOSTON SCIENTIFIC LTD,id:12834158   , 662.40
Department of Health,Guys and St Thomas NHS Foundation Trust,27/03/2020,(81230) Medical Surgical Supplies & Equipment,(id:42302) Cardiovascular Services,ABBOTT MEDICAL UK LTD,id:12902894   , 780.00
Department of Health,Guys and St Thomas NHS Foundation Trust,06/03/2020,(81230) Medical Surgical Supplies & Equipment,(id:42302) Cardiovascular Services,BRACCO UK LTD,id:12865754 ,2400.00
Department of Health,Guys and St Thomas NHS Foundation Trust,13/03/2020,(81255) Medical Surgical Supplies & Equipment,(id:42302) Cardiovascular Services,NHS SUPPLY CHAIN (MAIDSTONE),id:12761500 ,   7.17
Department of Health,Guys and St Thomas NHS Foundation Trust,06/03/2020,(84500) Establishment,(id:42301) Cardiovascular Services,CDP  PRINT MANAGEMENT,id:12868395  , 137.90
Department of Health,Guys and St Thomas NHS Foundation Trust,13/03/2020,(81700) Lab Equipment Purchase,(id:42301) Cardiovascular Services,NHS SUPPLY CHAIN (MAIDSTONE),id:12812705 ,   6.34
Department of Health,Guys and St Thomas NHS Foundation Trust,20/03/2020,(81700) Lab Equipment Purchase,(id:42301) Cardiovascular Services,NHS SUPPLY CHAIN (MAIDSTONE),id:12864175 ,  62.56
Department of Health,Guys and St Thomas NHS Foundation Trust,20/03/2020,(81700) Lab Equipment Purchase,(id:42301) Cardiovascular Services,NHS SUPPLY CHAIN (MAIDSTONE),id:12846415 ,   6.34
Department of Health,Guys and St Thomas NHS Foundation Trust,13/03/2020,(82000) Provisions & Kitchens,(id:42300) Cardiovascular Services,NHS SUPPLY CHAIN (MAIDSTONE),id:12825586  , 317.59
Department of Health,Guys and St Thomas NHS Foundation Trust,20/03/2020,(84500) Establishment,(id:42300) Cardiovascular Services,CDP  PRINT MANAGEMENT,id:12868399  ,  24.70
Department of Health,Guys and St Thomas NHS Foundation Trust,20/03/2020,(81225) Medical Surgical Supplies & Equipment,(id:42300) Cardiovascular Services,NHS SUPPLY CHAIN (MAIDSTONE),id:12864175 ,   3.30
Department of Health,Guys and St Thomas NHS Foundation Trust,20/03/2020,(81200) Medical Surgical Supplies & Equipment,(id:42300) Cardiovascular Services,NHS SUPPLY CHAIN (MAIDSTONE),id:12846415 , 928.59
Department of Health,Guys and St Thomas NHS Foundation Trust,20/03/2020,(50552) Qualified Nursing Staff,(id:42300) Cardiovascular Services,FIRSTPOINT HEALTHCARE LTD,id:12900703   , 609.26
Department of Health,Guys and St Thomas NHS Foundation Trust,20/03/2020,(83400) Office Equipment,(id:42298) Cardiovascular Services,NHS SUPPLY CHAIN (MAIDSTONE),id:12864175  , 137.32
Department of Health,Guys and St Thomas NHS Foundation Trust,13/03/2020,(81235) Medical Surgical Supplies & Equipment,(id:42298) Cardiovascular Services,NHS SUPPLY CHAIN (MAIDSTONE),id:12825586 ,  84.00
Department of Health,Guys and St Thomas NHS Foundation Trust,13/03/2020,(81235) Medical Surgical Supplies & Equipment,(id:42298) Cardiovascular Services,AQUILANT LTD,id:12875835  , 504.00
Department of Health,Guys and St Thomas NHS Foundation Trust,27/03/2020,(81200) Medical Surgical Supplies & Equipment,(id:42298) Cardiovascular Services,ABBOTT MEDICAL UK LTD,id:12909436   , 720.00
Department of Health,Guys and St Thomas NHS Foundation Trust,06/03/2020,(81200) Medical Surgical Supplies & Equipment,(id:42298) Cardiovascular Services,JOHNSON & JOHNSON MEDICAL LTD,id:12831117, 884.56
Department of Health,Guys and St Thomas NHS Foundation Trust,13/03/2020,(81200) Medical Surgical Supplies & Equipment,(id:42298) Cardiovascular Services,NHS SUPPLY CHAIN (MAIDSTONE),id:12812705 ,2243.98
Department of Health,Guys and St Thomas NHS Foundation Trust,13/03/2020,(81200) Medical Surgical Supplies & Equipment,(id:42298) Cardiovascular Services,VASCULAR PERSPECTIVES LTD,id:12833710    ,1440.00
Department of Health,Guys and St Thomas NHS Foundation Trust,13/03/2020,(81200) Medical Surgical Supplies & Equipment,(id:42298) Cardiovascular Services,VASCULAR PERSPECTIVES LTD,id:12896514    ,1440.00
Department of Health,Guys and St Thomas NHS Foundation Trust,13/03/2020,(81200) Medical Surgical Supplies & Equipment,(id:42298) Cardiovascular Services,MEDTRONIC LTD,id:12905314 ,    11340.00
Department of Health,Guys and St Thomas NHS Foundation Trust,13/03/2020,(81200) Medical Surgical Supplies & Equipment,(id:42298) Cardiovascular Services,BOSTON SCIENTIFIC LTD,id:12897526   ,1536.00
Department of Health,Guys and St Thomas NHS Foundation Trust,13/03/2020,(81200) Medical Surgical Supplies & Equipment,(id:42298) Cardiovascular Services,VASCULAR PERSPECTIVES LTD,id:12896511    ,1080.00
Department of Health,Guys and St Thomas NHS Foundation Trust,20/03/2020,(81200) Medical Surgical Supplies & Equipment,(id:42298) Cardiovascular Services,NHS SUPPLY CHAIN (MAIDSTONE),id:12864175 ,    13028.80
Department of Health,Guys and St Thomas NHS Foundation Trust,06/03/2020,(81200) Medical Surgical Supplies & Equipment,(id:42298) Cardiovascular Services,EDWARDS LIFESCIENCES LTD,id:12881451, 576.00
Department of Health,Guys and St Thomas NHS Foundation Trust,06/03/2020,(81200) Medical Surgical Supplies & Equipment,(id:42298) Cardiovascular Services,MEDTRONIC LTD,id:12825355 ,    16254.00
Department of Health,Guys and St Thomas NHS Foundation Trust,06/03/2020,(81200) Medical Surgical Supplies & Equipment,(id:42298) Cardiovascular Services,MEDTRONIC LTD,id:12828649 ,    32508.00
Department of Health,Guys and St Thomas NHS Foundation Trust,27/03/2020,(81230) Medical Surgical Supplies & Equipment,(id:42298) Cardiovascular Services,ABBOTT MEDICAL UK LTD,id:12921728   ,1428.00
Department of Health,Guys and St Thomas NHS Foundation Trust,06/03/2020,(81230) Medical Surgical Supplies & Equipment,(id:42298) Cardiovascular Services,MAQUET LIMITED,id:12856007, 681.60
Department of Health,Guys and St Thomas NHS Foundation Trust,06/03/2020,(81230) Medical Surgical Supplies & Equipment,(id:42298) Cardiovascular Services,ABBOTT MEDICAL UK LTD,id:12862895   , 918.00
Department of Health,Guys and St Thomas NHS Foundation Trust,06/03/2020,(83500) Furniture & Fittings,(id:42298) Cardiovascular Services,OCURA HEALTHCARE FURNITURE,id:12863336,1999.20
Department of Health,Guys and St Thomas NHS Foundation Trust,13/03/2020,(83500) Furniture & Fittings,(id:42298) Cardiovascular Services,MEDSPACE SOLUTIONS LTD,id:12889174    , 534.83
Department of Health,Guys and St Thomas NHS Foundation Trust,13/03/2020,(82600) Uniforms & Clothing,(id:42298) Cardiovascular Services,NHS SUPPLY CHAIN (MAIDSTONE),id:12825586    ,  36.81
Department of Health,Guys and St Thomas NHS Foundation Trust,27/03/2020,(81265) Medical Surgical Supplies & Equipment,(id:42298) Cardiovascular Services,MEDTRONIC LTD,id:12828683 ,3600.00
Department of Health,Guys and St Thomas NHS Foundation Trust,20/03/2020,(81265) Medical Surgical Supplies & Equipment,(id:42298) Cardiovascular Services,BOSTON SCIENTIFIC LTD,id:12916895   ,    14820.00
Department of Health,Guys and St Thomas NHS Foundation Trust,27/03/2020,(81240) Medical Surgical Supplies & Equipment,(id:42298) Cardiovascular Services,ABBOTT MEDICAL UK LTD,id:12908414   ,    18600.00
Department of Health,Guys and St Thomas NHS Foundation Trust,27/03/2020,(81240) Medical Surgical Supplies & Equipment,(id:42298) Cardiovascular Services,MEDTRONIC LTD,id:12828676 ,2160.00
Department of Health,Guys and St Thomas NHS Foundation Trust,06/03/2020,(81240) Medical Surgical Supplies & Equipment,(id:42298) Cardiovascular Services,MEDTRONIC LTD,id:12827699 ,3240.00
Department of Health,Guys and St Thomas NHS Foundation Trust,13/03/2020,(81240) Medical Surgical Supplies & Equipment,(id:42298) Cardiovascular Services,ABBOTT MEDICAL UK LTD,id:12902892   ,3600.00
Department of Health,Guys and St Thomas NHS Foundation Trust,20/03/2020,(82800) Bedding & Linen,(id:42291) Cardiovascular Services,NHS SUPPLY CHAIN (MAIDSTONE),id:12864175   ,  11.52
Department of Health,Guys and St Thomas NHS Foundation Trust,13/03/2020,(81100) Dressings,(id:42291) Cardiovascular Services,NHS SUPPLY CHAIN (MAIDSTONE),id:12812705    ,  81.79
Department of Health,Guys and St Thomas NHS Foundation Trust,13/03/2020,(81100) Dressings,(id:42291) Cardiovascular Services,NHS SUPPLY CHAIN (MAIDSTONE),id:12825586    ,  96.83
Department of Health,Guys and St Thomas NHS Foundation Trust,20/03/2020,(81700) Lab Equipment Purchase,(id:42291) Cardiovascular Services,NHS SUPPLY CHAIN (MAIDSTONE),id:12864175 ,  61.08
Department of Health,Guys and St Thomas NHS Foundation Trust,20/03/2020,(81225) Medical Surgical Supplies & Equipment,(id:42291) Cardiovascular Services,NHS SUPPLY CHAIN (MAIDSTONE),id:12846415 ,  16.20
Department of Health,Guys and St Thomas NHS Foundation Trust,20/03/2020,(83400) Office Equipment,(id:42290) Cardiovascular Services,NHS SUPPLY CHAIN (MAIDSTONE),id:12864175  , 125.65
Department of Health,Guys and St Thomas NHS Foundation Trust,20/03/2020,(82800) Bedding & Linen,(id:42290) Cardiovascular Services,NHS SUPPLY CHAIN (MAIDSTONE),id:12846415   ,  61.51
Department of Health,Guys and St Thomas NHS Foundation Trust,13/03/2020,(81100) Dressings,(id:42290) Cardiovascular Services,NHS SUPPLY CHAIN (MAIDSTONE),id:12812705    ,  61.77
Department of Health,Guys and St Thomas NHS Foundation Trust,20/03/2020,(81100) Dressings,(id:42290) Cardiovascular Services,NHS SUPPLY CHAIN (MAIDSTONE),id:12864175    , 488.13
Department of Health,Guys and St Thomas NHS Foundation Trust,20/03/2020,(81700) Lab Equipment Purchase,(id:42290) Cardiovascular Services,NHS SUPPLY CHAIN (MAIDSTONE),id:12864175 ,   9.07
Department of Health,Guys and St Thomas NHS Foundation Trust,13/03/2020,(82600) Uniforms & Clothing,(id:42293) Cardiovascular Services,NHS SUPPLY CHAIN (MAIDSTONE),id:12812705    ,   8.60
Department of Health,Guys and St Thomas NHS Foundation Trust,06/03/2020,(83400) Office Equipment,(id:42293) Cardiovascular Services,SQUADRON MEDICAL LTD,id:12853843, 204.17
Department of Health,Guys and St Thomas NHS Foundation Trust,20/03/2020,(83400) Office Equipment,(id:42293) Cardiovascular Services,NHS SUPPLY CHAIN (MAIDSTONE),id:12846415  ,  17.77
Department of Health,Guys and St Thomas NHS Foundation Trust,20/03/2020,(83400) Office Equipment,(id:42293) Cardiovascular Services,NHS SUPPLY CHAIN (MAIDSTONE),id:12864175  ,  21.92
Department of Health,Guys and St Thomas NHS Foundation Trust,27/03/2020,(81200) Medical Surgical Supplies & Equipment,(id:42293) Cardiovascular Services,SQUADRON MEDICAL LTD,id:12883782    , 186.47
Department of Health,Guys and St Thomas NHS Foundation Trust,27/03/2020,(81200) Medical Surgical Supplies & Equipment,(id:42293) Cardiovascular Services,SQUADRON MEDICAL LTD,id:12894648    , 345.05
Department of Health,Guys and St Thomas NHS Foundation Trust,06/03/2020,(81200) Medical Surgical Supplies & Equipment,(id:42293) Cardiovascular Services,SQUADRON MEDICAL LTD,id:12825364    , 549.14
Department of Health,Guys and St Thomas NHS Foundation Trust,06/03/2020,(81200) Medical Surgical Supplies & Equipment,(id:42293) Cardiovascular Services,SQUADRON MEDICAL LTD,id:12827961    , 520.92
Department of Health,Guys and St Thomas NHS Foundation Trust,06/03/2020,(81200) Medical Surgical Supplies & Equipment,(id:42293) Cardiovascular Services,CARDIO SOLUTIONS LLP,id:12822916    ,    -2880.00
Department of Health,Guys and St Thomas NHS Foundation Trust,06/03/2020,(81200) Medical Surgical Supplies & Equipment,(id:42293) Cardiovascular Services,SQUADRON MEDICAL LTD,id:12853789    ,1339.18
Department of Health,Guys and St Thomas NHS Foundation Trust,06/03/2020,(81200) Medical Surgical Supplies & Equipment,(id:42293) Cardiovascular Services,SQUADRON MEDICAL LTD,id:12824918    , 278.45
Department of Health,Guys and St Thomas NHS Foundation Trust,06/03/2020,(81200) Medical Surgical Supplies & Equipment,(id:42293) Cardiovascular Services,SQUADRON MEDICAL LTD,id:12853604    ,  48.63
Department of Health,Guys and St Thomas NHS Foundation Trust,06/03/2020,(81200) Medical Surgical Supplies & Equipment,(id:42293) Cardiovascular Services,SQUADRON MEDICAL LTD,id:12822447    , 646.61
Department of Health,Guys and St Thomas NHS Foundation Trust,06/03/2020,(81200) Medical Surgical Supplies & Equipment,(id:42293) Cardiovascular Services,VASCUTEK LTD,id:12833746  , 970.20
Department of Health,Guys and St Thomas NHS Foundation Trust,13/03/2020,(81200) Medical Surgical Supplies & Equipment,(id:42293) Cardiovascular Services,SQUADRON MEDICAL LTD,id:12834285    ,  54.94
Department of Health,Guys and St Thomas NHS Foundation Trust,13/03/2020,(81200) Medical Surgical Supplies & Equipment,(id:42293) Cardiovascular Services,PIERSON SURGICAL LTD,id:12904214    , 714.00
Department of Health,Guys and St Thomas NHS Foundation Trust,13/03/2020,(81200) Medical Surgical Supplies & Equipment,(id:42293) Cardiovascular Services,CRYOLIFE EUROPA LTD,id:12865174,1826.40
Department of Health,Guys and St Thomas NHS Foundation Trust,20/03/2020,(81200) Medical Surgical Supplies & Equipment,(id:42293) Cardiovascular Services,NHS SUPPLY CHAIN (MAIDSTONE),id:12846415 , 969.82
Department of Health,Guys and St Thomas NHS Foundation Trust,20/03/2020,(81200) Medical Surgical Supplies & Equipment,(id:42293) Cardiovascular Services,SQUADRON MEDICAL LTD,id:12879255    , 760.54
Department of Health,Guys and St Thomas NHS Foundation Trust,20/03/2020,(81200) Medical Surgical Supplies & Equipment,(id:42293) Cardiovascular Services,SQUADRON MEDICAL LTD,id:12856347    , 405.12
Department of Health,Guys and St Thomas NHS Foundation Trust,20/03/2020,(81200) Medical Surgical Supplies & Equipment,(id:42293) Cardiovascular Services,MAQUET LIMITED,id:12890077, 540.00
Department of Health,Guys and St Thomas NHS Foundation Trust,20/03/2020,(81100) Dressings,(id:42293) Cardiovascular Services,NHS SUPPLY CHAIN (MAIDSTONE),id:12846415    ,1554.98
Department of Health,Guys and St Thomas NHS Foundation Trust,20/03/2020,(81100) Dressings,(id:42293) Cardiovascular Services,SQUADRON MEDICAL LTD,id:12868655  , 213.82
Department of Health,Guys and St Thomas NHS Foundation Trust,13/03/2020,(81100) Dressings,(id:42293) Cardiovascular Services,SQUADRON MEDICAL LTD,id:12837760  , 322.70
Department of Health,Guys and St Thomas NHS Foundation Trust,13/03/2020,(81100) Dressings,(id:42293) Cardiovascular Services,SQUADRON MEDICAL LTD,id:12848946  , 357.65
Department of Health,Guys and St Thomas NHS Foundation Trust,13/03/2020,(81100) Dressings,(id:42293) Cardiovascular Services,SQUADRON MEDICAL LTD,id:12848805  ,  81.80
Department of Health,Guys and St Thomas NHS Foundation Trust,27/03/2020,(81280) Medical Surgical Supplies & Equipment,(id:42293) Cardiovascular Services,VASCUTEK LTD,id:12901439  ,1152.60
Department of Health,Guys and St Thomas NHS Foundation Trust,20/03/2020,(81280) Medical Surgical Supplies & Equipment,(id:42293) Cardiovascular Services,VASCUTEK LTD,id:12901574  ,1152.60
Department of Health,Guys and St Thomas NHS Foundation Trust,06/03/2020,(81280) Medical Surgical Supplies & Equipment,(id:42293) Cardiovascular Services,VASCUTEK LTD,id:12869574  ,1152.60
Department of Health,Guys and St Thomas NHS Foundation Trust,06/03/2020,(81280) Medical Surgical Supplies & Equipment,(id:42293) Cardiovascular Services,EDWARDS LIFESCIENCES LTD,id:12881430,1056.00
Department of Health,Guys and St Thomas NHS Foundation Trust,06/03/2020,(81280) Medical Surgical Supplies & Equipment,(id:42293) Cardiovascular Services,EDWARDS LIFESCIENCES LTD,id:12850272,1104.00
Department of Health,Guys and St Thomas NHS Foundation Trust,06/03/2020,(81280) Medical Surgical Supplies & Equipment,(id:42293) Cardiovascular Services,EDWARDS LIFESCIENCES LTD,id:12847904,5640.00
Department of Health,Guys and St Thomas NHS Foundation Trust,27/03/2020,(81200) Medical Surgical Supplies & Equipment,(id:42292) Cardiovascular Services,LIVANOVA UK LTD,id:12896529    , 533.40
Department of Health,Guys and St Thomas NHS Foundation Trust,06/03/2020,(81200) Medical Surgical Supplies & Equipment,(id:42292) Cardiovascular Services,LIVANOVA UK LTD,id:12842017    ,1122.48
Department of Health,Guys and St Thomas NHS Foundation Trust,06/03/2020,(81200) Medical Surgical Supplies & Equipment,(id:42292) Cardiovascular Services,LIVANOVA UK LTD,id:12845165    , 690.77
Department of Health,Guys and St Thomas NHS Foundation Trust,13/03/2020,(81200) Medical Surgical Supplies & Equipment,(id:42292) Cardiovascular Services,MAQUET LIMITED,id:12862302, 475.20
Department of Health,Guys and St Thomas NHS Foundation Trust,13/03/2020,(81200) Medical Surgical Supplies & Equipment,(id:42292) Cardiovascular Services,TERUMO UK LTD,id:12863254 ,1872.00
Department of Health,Guys and St Thomas NHS Foundation Trust,13/03/2020,(81100) Dressings,(id:42292) Cardiovascular Services,MAQUET LIMITED,id:12857314   , 636.00
Department of Health,Guys and St Thomas NHS Foundation Trust,20/03/2020,(81270) Medical Surgical Supplies & Equipment,(id:42292) Cardiovascular Services,MAQUET LIMITED,id:12890134, 360.00
Department of Health,Guys and St Thomas NHS Foundation Trust,13/03/2020,(82700) Uniforms & Clothing,(id:42287) Cardiovascular Services,NHS SUPPLY CHAIN (MAIDSTONE),id:12825586    ,  63.36
Department of Health,Guys and St Thomas NHS Foundation Trust,20/03/2020,(82700) Uniforms & Clothing,(id:42287) Cardiovascular Services,NHS SUPPLY CHAIN (MAIDSTONE),id:12846415    ,  24.58
Department of Health,Guys and St Thomas NHS Foundation Trust,20/03/2020,(82000) Provisions & Kitchens,(id:42287) Cardiovascular Services,NHS SUPPLY CHAIN (MAIDSTONE),id:12846415  , 677.44
Department of Health,Guys and St Thomas NHS Foundation Trust,13/03/2020,(82800) Bedding & Linen,(id:42287) Cardiovascular Services,NHS SUPPLY CHAIN (MAIDSTONE),id:12812705   ,  94.93
Department of Health,Guys and St Thomas NHS Foundation Trust,13/03/2020,(82800) Bedding & Linen,(id:42287) Cardiovascular Services,NHS SUPPLY CHAIN (MAIDSTONE),id:12825586   ,  72.76
Department of Health,Guys and St Thomas NHS Foundation Trust,27/03/2020,(50522) Unqualified Nursing Staff,(id:42287) Cardiovascular Services,MSI GROUP LTD,id:12937377   , 269.22
Department of Health,Guys and St Thomas NHS Foundation Trust,20/03/2020,(50522) Unqualified Nursing Staff,(id:42287) Cardiovascular Services,MSI GROUP LTD,id:12921092   , 209.60
Department of Health,Guys and St Thomas NHS Foundation Trust,31/03/2020,(52072) Radiographers,(id:42368) Clinical Imaging & Med Physics,PRICEWATERHOUSECOOPERS LLP,id:12945319,3153.89
Department of Health,Guys and St Thomas NHS Foundation Trust,19/03/2020,(52062) Radiographers,(id:42368) Clinical Imaging & Med Physics,PRICEWATERHOUSECOOPERS LLP,id:12920541,5810.71
Department of Health,Guys and St Thomas NHS Foundation Trust,20/03/2020,(86300) Healthcare from non-NHS bodies,(id:42368) Clinical Imaging & Med Physics,INHEALTH LTD/ECHOTECH LTD/REPORTING,id:12668338    , 709.80
Department of Health,Guys and St Thomas NHS Foundation Trust,19/03/2020,(50202) Consultants,(id:42368) Clinical Imaging & Med Physics,PRICEWATERHOUSECOOPERS LLP,id:12920472  ,4631.19
Department of Health,Guys and St Thomas NHS Foundation Trust,20/03/2020,(82600) Uniforms & Clothing,(id:42367) Clinical Imaging & Med Physics,NHS SUPPLY CHAIN (MAIDSTONE),id:12864175  ,  53.32
Department of Health,Guys and St Thomas NHS Foundation Trust,13/03/2020,(82000) Provisions & Kitchens,(id:42367) Clinical Imaging & Med Physics,NHS SUPPLY CHAIN (MAIDSTONE),id:12825586,  18.87
Department of Health,Guys and St Thomas NHS Foundation Trust,13/03/2020,(83400) Office Equipment,(id:42367) Clinical Imaging & Med Physics,NHS SUPPLY CHAIN (MAIDSTONE),id:12761500, 163.93
Department of Health,Guys and St Thomas NHS Foundation Trust,20/03/2020,(83400) Office Equipment,(id:42367) Clinical Imaging & Med Physics,NHS SUPPLY CHAIN (MAIDSTONE),id:12846415, 598.73
Department of Health,Guys and St Thomas NHS Foundation Trust,13/03/2020,(82800) Bedding & Linen,(id:42367) Clinical Imaging & Med Physics,NHS SUPPLY CHAIN (MAIDSTONE),id:12761500 , 238.27
Department of Health,Guys and St Thomas NHS Foundation Trust,27/03/2020,(81100) Dressings,(id:42367) Clinical Imaging & Med Physics,SQUADRON MEDICAL LTD,id:12885536,2434.42
Department of Health,Guys and St Thomas NHS Foundation Trust,06/03/2020,(81100) Dressings,(id:42367) Clinical Imaging & Med Physics,SQUADRON MEDICAL LTD,id:12824891,1246.51
Department of Health,Guys and St Thomas NHS Foundation Trust,13/03/2020,(81100) Dressings,(id:42367) Clinical Imaging & Med Physics,NHS SUPPLY CHAIN (MAIDSTONE),id:12761500  , 243.01
Department of Health,Guys and St Thomas NHS Foundation Trust,13/03/2020,(83610) IT Costs,(id:42367) Clinical Imaging & Med Physics,BUSINESS DICTATION LTD,id:12889194    , 871.19
Department of Health,Guys and St Thomas NHS Foundation Trust,06/03/2020,(83410) Office Equipment,(id:42367) Clinical Imaging & Med Physics,RICOH UK LTD,id:12878731 , 494.87
Department of Health,Guys and St Thomas NHS Foundation Trust,27/03/2020,(81200) Medical Surgical Supplies & Equipment,(id:42367) Clinical Imaging & Med Physics,SQUADRON MEDICAL LTD,id:12777590  ,3321.60
Department of Health,Guys and St Thomas NHS Foundation Trust,27/03/2020,(81200) Medical Surgical Supplies & Equipment,(id:42367) Clinical Imaging & Med Physics,MACROMED (UK) LTD,id:12828856,1170.00
Department of Health,Guys and St Thomas NHS Foundation Trust,27/03/2020,(81200) Medical Surgical Supplies & Equipment,(id:42367) Clinical Imaging & Med Physics,BOSTON SCIENTIFIC LTD,id:12894585 , 630.00
Department of Health,Guys and St Thomas NHS Foundation Trust,06/03/2020,(81200) Medical Surgical Supplies & Equipment,(id:42367) Clinical Imaging & Med Physics,SQUADRON MEDICAL LTD,id:12825288  , 263.27
Department of Health,Guys and St Thomas NHS Foundation Trust,06/03/2020,(81200) Medical Surgical Supplies & Equipment,(id:42367) Clinical Imaging & Med Physics,MEDTRONIC LTD,id:12825167    ,1560.00
Department of Health,Guys and St Thomas NHS Foundation Trust,06/03/2020,(81200) Medical Surgical Supplies & Equipment,(id:42367) Clinical Imaging & Med Physics,SQUADRON MEDICAL LTD,id:12827773  , 498.32
Department of Health,Guys and St Thomas NHS Foundation Trust,06/03/2020,(81200) Medical Surgical Supplies & Equipment,(id:42367) Clinical Imaging & Med Physics,ABBOTT MEDICAL UK LTD,id:12863815 ,1080.00
Department of Health,Guys and St Thomas NHS Foundation Trust,13/03/2020,(81200) Medical Surgical Supplies & Equipment,(id:42367) Clinical Imaging & Med Physics,MACROMED (UK) LTD,id:12890170,1170.00
Department of Health,Guys and St Thomas NHS Foundation Trust,20/03/2020,(81200) Medical Surgical Supplies & Equipment,(id:42367) Clinical Imaging & Med Physics,SQUADRON MEDICAL LTD,id:12856151  ,1016.23
Department of Health,Guys and St Thomas NHS Foundation Trust,20/03/2020,(81200) Medical Surgical Supplies & Equipment,(id:42367) Clinical Imaging & Med Physics,SQUADRON MEDICAL LTD,id:12879077  ,1460.84
Department of Health,Guys and St Thomas NHS Foundation Trust,20/03/2020,(81200) Medical Surgical Supplies & Equipment,(id:42367) Clinical Imaging & Med Physics,AQUILANT LTD,id:12917008,1454.40
Department of Health,Guys and St Thomas NHS Foundation Trust,20/03/2020,(81200) Medical Surgical Supplies & Equipment,(id:42367) Clinical Imaging & Med Physics,SQUADRON MEDICAL LTD,id:12879075  ,1037.14
Department of Health,Guys and St Thomas NHS Foundation Trust,20/03/2020,(81200) Medical Surgical Supplies & Equipment,(id:42367) Clinical Imaging & Med Physics,BOSTON SCIENTIFIC LTD,id:12860252 , 660.00
Department of Health,Guys and St Thomas NHS Foundation Trust,06/03/2020,(81200) Medical Surgical Supplies & Equipment,(id:42367) Clinical Imaging & Med Physics,SQUADRON MEDICAL LTD,id:12822477  ,   7.86
Department of Health,Guys and St Thomas NHS Foundation Trust,20/03/2020,(81235) Medical Surgical Supplies & Equipment,(id:42367) Clinical Imaging & Med Physics,BARD LTD,id:12860312    , 530.88
Department of Health,Guys and St Thomas NHS Foundation Trust,27/03/2020,(81230) Medical Surgical Supplies & Equipment,(id:42367) Clinical Imaging & Med Physics,SQUADRON MEDICAL LTD,id:12896998  , 133.32
Department of Health,Guys and St Thomas NHS Foundation Trust,27/03/2020,(81230) Medical Surgical Supplies & Equipment,(id:42367) Clinical Imaging & Med Physics,SQUADRON MEDICAL LTD,id:12883743  , 433.59
Department of Health,Guys and St Thomas NHS Foundation Trust,27/03/2020,(81230) Medical Surgical Supplies & Equipment,(id:42367) Clinical Imaging & Med Physics,SQUADRON MEDICAL LTD,id:12777590  ,1062.20
Department of Health,Guys and St Thomas NHS Foundation Trust,27/03/2020,(81230) Medical Surgical Supplies & Equipment,(id:42367) Clinical Imaging & Med Physics,SQUADRON MEDICAL LTD,id:12883758  , 308.02
Department of Health,Guys and St Thomas NHS Foundation Trust,13/03/2020,(81230) Medical Surgical Supplies & Equipment,(id:42367) Clinical Imaging & Med Physics,SQUADRON MEDICAL LTD,id:12834257  , 372.26
Department of Health,Guys and St Thomas NHS Foundation Trust,13/03/2020,(82000) Provisions & Kitchens,(id:42366) Clinical Imaging & Med Physics,NHS SUPPLY CHAIN (MAIDSTONE),id:12761500,  66.37
Department of Health,Guys and St Thomas NHS Foundation Trust,13/03/2020,(82000) Provisions & Kitchens,(id:42366) Clinical Imaging & Med Physics,NHS SUPPLY CHAIN (MAIDSTONE),id:12812705,  15.78
Department of Health,Guys and St Thomas NHS Foundation Trust,20/03/2020,(82800) Bedding & Linen,(id:42366) Clinical Imaging & Med Physics,NHS SUPPLY CHAIN (MAIDSTONE),id:12846415 , 355.08
Department of Health,Guys and St Thomas NHS Foundation Trust,13/03/2020,(81100) Dressings,(id:42366) Clinical Imaging & Med Physics,NHS SUPPLY CHAIN (MAIDSTONE),id:12761500  , 144.72
Department of Health,Guys and St Thomas NHS Foundation Trust,13/03/2020,(83400) Office Equipment,(id:42366) Clinical Imaging & Med Physics,NHS SUPPLY CHAIN (MAIDSTONE),id:12825586, 978.76
Department of Health,Guys and St Thomas NHS Foundation Trust,13/03/2020,(81500) X Ray Equipment Purchase,(id:42366) Clinical Imaging & Med Physics,NHS SUPPLY CHAIN (MAIDSTONE),id:12812705  , 469.84
Department of Health,Guys and St Thomas NHS Foundation Trust,20/03/2020,(81700) Lab Equipment Purchase,(id:42366) Clinical Imaging & Med Physics,NHS SUPPLY CHAIN (MAIDSTONE),id:12846415    ,  29.28
Department of Health,Guys and St Thomas NHS Foundation Trust,27/03/2020,(83400) Office Equipment,(id:4187419) Clinical Imaging & Med Physics,BAYER PLC,id:12920493  ,2112.00
Department of Health,Guys and St Thomas NHS Foundation Trust,27/03/2020,(83400) Office Equipment,(id:4187419) Clinical Imaging & Med Physics,BAYER PLC,id:12927618  ,2112.00
Department of Health,Guys and St Thomas NHS Foundation Trust,13/03/2020,(81200) Medical Surgical Supplies & Equipment,(id:4187419) Clinical Imaging & Med Physics,ADVANCED ACCELERATOR APPLICATIONS (UK & IRELAND) LTD,id:12867438   ,    15658.50
Department of Health,Guys and St Thomas NHS Foundation Trust,13/03/2020,(81200) Medical Surgical Supplies & Equipment,(id:4187419) Clinical Imaging & Med Physics,ADVANCED ACCELERATOR APPLICATIONS (UK & IRELAND) LTD,id:12907495   ,    16690.50
Department of Health,Guys and St Thomas NHS Foundation Trust,13/03/2020,(81200) Medical Surgical Supplies & Equipment,(id:4187419) Clinical Imaging & Med Physics,ADVANCED ACCELERATOR APPLICATIONS (UK & IRELAND) LTD,id:12860854   ,    -7829.24
Department of Health,Guys and St Thomas NHS Foundation Trust,27/03/2020,(83400) Office Equipment,(id:42372) Clinical Imaging & Med Physics,BAYER PLC,id:12925834    ,2112.00
Department of Health,Guys and St Thomas NHS Foundation Trust,13/03/2020,(83400) Office Equipment,(id:42372) Clinical Imaging & Med Physics,BAYER PLC,id:12876486    ,2112.00
Department of Health,Guys and St Thomas NHS Foundation Trust,20/03/2020,(83400) Office Equipment,(id:42372) Clinical Imaging & Med Physics,NHS SUPPLY CHAIN (MAIDSTONE),id:12864175,  92.13
Department of Health,Guys and St Thomas NHS Foundation Trust,30/03/2020,(84600) Establishment,(id:42372) Clinical Imaging & Med Physics,CLARITY TRAVEL MANAGEMENT,id:12941614 , 544.72
Department of Health,Guys and St Thomas NHS Foundation Trust,13/03/2020,(81100) Dressings,(id:42372) Clinical Imaging & Med Physics,NHS SUPPLY CHAIN (MAIDSTONE),id:12825586  ,  96.65
Department of Health,Guys and St Thomas NHS Foundation Trust,13/03/2020,(81100) Dressings,(id:42372) Clinical Imaging & Med Physics,NHS SUPPLY CHAIN (MAIDSTONE),id:12761500  ,  23.07
Department of Health,Guys and St Thomas NHS Foundation Trust,20/03/2020,(81100) Dressings,(id:42372) Clinical Imaging & Med Physics,NHS SUPPLY CHAIN (MAIDSTONE),id:12864175  ,   8.38
Department of Health,Guys and St Thomas NHS Foundation Trust,13/03/2020,(82800) Bedding & Linen,(id:42372) Clinical Imaging & Med Physics,NHS SUPPLY CHAIN (MAIDSTONE),id:12825586 ,  79.65
Department of Health,Guys and St Thomas NHS Foundation Trust,13/03/2020,(81700) Lab Equipment Purchase,(id:42372) Clinical Imaging & Med Physics,NHS SUPPLY CHAIN (MAIDSTONE),id:12761500    ,   9.86
Department of Health,Guys and St Thomas NHS Foundation Trust,13/03/2020,(81200) Medical Surgical Supplies & Equipment,(id:42372) Clinical Imaging & Med Physics,NHS SUPPLY CHAIN (MAIDSTONE),id:12812705    , 523.55
Department of Health,Guys and St Thomas NHS Foundation Trust,13/03/2020,(81200) Medical Surgical Supplies & Equipment,(id:42372) Clinical Imaging & Med Physics,NHS SUPPLY CHAIN (MAIDSTONE),id:12761500    , 621.41
Department of Health,Guys and St Thomas NHS Foundation Trust,20/03/2020,(81200) Medical Surgical Supplies & Equipment,(id:42372) Clinical Imaging & Med Physics,WICKHAM LABORATORIES LTD,id:12875483   ,1666.00
Department of Health,Guys and St Thomas NHS Foundation Trust,27/03/2020,(81275) Medical Surgical Supplies & Equipment,(id:42372) Clinical Imaging & Med Physics,GE HEALTHCARE UK LTD:00475800,id:12899576   ,2628.00
Department of Health,Guys and St Thomas NHS Foundation Trust,13/03/2020,(81275) Medical Surgical Supplies & Equipment,(id:42372) Clinical Imaging & Med Physics,CURIUM PHARMA UK LTD,id:12863380  ,    10440.00
Department of Health,Guys and St Thomas NHS Foundation Trust,27/03/2020,(81500) X Ray Equipment Purchase,(id:42372) Clinical Imaging & Med Physics,CURIUM PHARMA UK LTD,id:12935884,1644.00
Department of Health,Guys and St Thomas NHS Foundation Trust,13/03/2020,(81500) X Ray Equipment Purchase,(id:42372) Clinical Imaging & Med Physics,CURIUM PHARMA UK LTD,id:12892199,1644.00
Department of Health,Guys and St Thomas NHS Foundation Trust,13/03/2020,(81500) X Ray Equipment Purchase,(id:42372) Clinical Imaging & Med Physics,CURIUM PHARMA UK LTD,id:12867634,1644.00
Department of Health,Guys and St Thomas NHS Foundation Trust,13/03/2020,(83880) Building & Engineering,(id:42380) Clinical Imaging & Med Physics,ONCOLOGY IMAGING SYSTEMS LTD,id:12888204    ,4518.00
Department of Health,Guys and St Thomas NHS Foundation Trust,13/03/2020,(81400) Medical Surgical Supplies & Equipment,(id:42379) Clinical Imaging & Med Physics,TENACORE UK LTD,id:12875486  ,1280.00
Department of Health,Guys and St Thomas NHS Foundation Trust,13/03/2020,(81400) Medical Surgical Supplies & Equipment,(id:42379) Clinical Imaging & Med Physics,SOLUS MEDICAL LTD,id:12889294,1002.61
Department of Health,Guys and St Thomas NHS Foundation Trust,27/03/2020,(81200) Medical Surgical Supplies & Equipment,(id:42379) Clinical Imaging & Med Physics,TENACORE UK LTD,id:12867731  ,  24.00
Department of Health,Guys and St Thomas NHS Foundation Trust,27/03/2020,(81200) Medical Surgical Supplies & Equipment,(id:42379) Clinical Imaging & Med Physics,MINDRAY UK LTD,id:12902508   ,1320.00
Department of Health,Guys and St Thomas NHS Foundation Trust,06/03/2020,(81200) Medical Surgical Supplies & Equipment,(id:42379) Clinical Imaging & Med Physics,BECTON DICKINSON (CME) UK LTD,id:12865966   , 854.90
Department of Health,Guys and St Thomas NHS Foundation Trust,13/03/2020,(81200) Medical Surgical Supplies & Equipment,(id:42379) Clinical Imaging & Med Physics,THERAPY EQUIPMENT LTD,id:12890154 ,  18.00
Department of Health,Guys and St Thomas NHS Foundation Trust,13/03/2020,(81200) Medical Surgical Supplies & Equipment,(id:42379) Clinical Imaging & Med Physics,MGC LAMPS LTD,id:12867676    ,2844.00
Department of Health,Guys and St Thomas NHS Foundation Trust,20/03/2020,(81200) Medical Surgical Supplies & Equipment,(id:42379) Clinical Imaging & Med Physics,NHS SUPPLY CHAIN (MAIDSTONE),id:12846415    ,  84.61
Department of Health,Guys and St Thomas NHS Foundation Trust,06/03/2020,(81700) Lab Equipment Purchase,(id:42378) Clinical Imaging & Med Physics,PHOENIX DOSIMETRY LTD,id:12866714 , 883.20
Department of Health,Guys and St Thomas NHS Foundation Trust,27/03/2020,(81200) Medical Surgical Supplies & Equipment,(id:42378) Clinical Imaging & Med Physics,KINGSFIELD COMPUTER PRODUCTS LTD,id:12914948,   9.55
Department of Health,Guys and St Thomas NHS Foundation Trust,06/03/2020,(81200) Medical Surgical Supplies & Equipment,(id:42378) Clinical Imaging & Med Physics,PHOENIX DOSIMETRY LTD,id:12866714 ,  24.00
Department of Health,Guys and St Thomas NHS Foundation Trust,27/03/2020,(81250) Medical Surgical Supplies & Equipment,(id:1348419) Clinical Imaging & Med Physics,BVM MEDICAL LTD,id:12914935, 673.20
Department of Health,Guys and St Thomas NHS Foundation Trust,13/03/2020,(81200) Medical Surgical Supplies & Equipment,(id:1348419) Clinical Imaging & Med Physics,GALIL MEDICAL UK LIMITED,id:12891036 ,2022.00
Department of Health,Guys and St Thomas NHS Foundation Trust,20/03/2020,(81200) Medical Surgical Supplies & Equipment,(id:1348419) Clinical Imaging & Med Physics,COOK UK LTD,id:12861398    , 720.00
Department of Health,Guys and St Thomas NHS Foundation Trust,20/03/2020,(81200) Medical Surgical Supplies & Equipment,(id:1348419) Clinical Imaging & Med Physics,GALIL MEDICAL UK LIMITED,id:12863479 ,2065.00
Department of Health,Guys and St Thomas NHS Foundation Trust,20/03/2020,(81500) X Ray Equipment Purchase,(id:1348419) Clinical Imaging & Med Physics,MEDTRONIC LTD,id:12911383,-900.00
Department of Health,Guys and St Thomas NHS Foundation Trust,06/03/2020,(84600) Establishment,(id:2625419) Transplant Renal and Urology,CLARITY TRAVEL MANAGEMENT,id:12878449 , 143.52
Department of Health,Guys and St Thomas NHS Foundation Trust,20/03/2020,(81100) Dressings,(id:2625419) Transplant Renal and Urology,SQUADRON MEDICAL LTD,id:12860089,   4.85
Department of Health,Guys and St Thomas NHS Foundation Trust,27/03/2020,(81200) Medical Surgical Supplies & Equipment,(id:2625419) Transplant Renal and Urology,SQUADRON MEDICAL LTD,id:12894616  , 631.16
Department of Health,Guys and St Thomas NHS Foundation Trust,06/03/2020,(81200) Medical Surgical Supplies & Equipment,(id:2625419) Transplant Renal and Urology,SQUADRON MEDICAL LTD,id:12853277  , 211.85
Department of Health,Guys and St Thomas NHS Foundation Trust,06/03/2020,(82600) Uniforms & Clothing,(id:2625419) Transplant Renal and Urology,SQUADRON MEDICAL LTD,id:12827758,   2.00
Department of Health,Guys and St Thomas NHS Foundation Trust,13/03/2020,(82700) Uniforms & Clothing,(id:42419) Transplant Renal and Urology,NHS SUPPLY CHAIN (MAIDSTONE),id:12825586    ,  31.68
Department of Health,Guys and St Thomas NHS Foundation Trust,20/03/2020,(82700) Uniforms & Clothing,(id:42419) Transplant Renal and Urology,NHS SUPPLY CHAIN (MAIDSTONE),id:12864175    ,  31.68
Department of Health,Guys and St Thomas NHS Foundation Trust,13/03/2020,(82800) Bedding & Linen,(id:42419) Transplant Renal and Urology,NHS SUPPLY CHAIN (MAIDSTONE),id:12761500   ,  57.63
Department of Health,Guys and St Thomas NHS Foundation Trust,13/03/2020,(81275) Medical Surgical Supplies & Equipment,(id:42419) Transplant Renal and Urology,NHS SUPPLY CHAIN (MAIDSTONE),id:12812705 ,  55.50
Department of Health,Guys and St Thomas NHS Foundation Trust,06/03/2020,(81000) Surgical Appliances,(id:2506419) Transplant Renal and Urology,JOHN FLORENCE LTD,id:12871135   , 827.26
Department of Health,Guys and St Thomas NHS Foundation Trust,31/03/2020,(84600) Establishment,(id:2144419) Transplant Renal and Urology,GSTT PROCUREMENT CARD,id:12946660, 228.82
Department of Health,Guys and St Thomas NHS Foundation Trust,06/03/2020,(84600) Establishment,(id:2585419) Transplant Renal and Urology,CLARITY TRAVEL MANAGEMENT,id:12878449 , 603.00
Department of Health,Guys and St Thomas NHS Foundation Trust,06/03/2020,(81200) Medical Surgical Supplies & Equipment,(id:42450) Transplant Renal and Urology,SQUADRON MEDICAL LTD,id:12824925    ,1035.88
Department of Health,Guys and St Thomas NHS Foundation Trust,20/03/2020,(81200) Medical Surgical Supplies & Equipment,(id:42450) Transplant Renal and Urology,STRYKER UK LTD,id:12892671, 613.87
Department of Health,Guys and St Thomas NHS Foundation Trust,13/03/2020,(81200) Medical Surgical Supplies & Equipment,(id:42450) Transplant Renal and Urology,STRYKER UK LTD,id:12867497, 613.87
Department of Health,Guys and St Thomas NHS Foundation Trust,13/03/2020,(82600) Uniforms & Clothing,(id:42449) Transplant Renal and Urology,NHS SUPPLY CHAIN (MAIDSTONE),id:12825586    , 104.65
Department of Health,Guys and St Thomas NHS Foundation Trust,13/03/2020,(81100) Dressings,(id:42449) Transplant Renal and Urology,NHS SUPPLY CHAIN (MAIDSTONE),id:12761500    ,  41.36
Department of Health,Guys and St Thomas NHS Foundation Trust,20/03/2020,(81100) Dressings,(id:42449) Transplant Renal and Urology,NHS SUPPLY CHAIN (MAIDSTONE),id:12864175    ,  42.22
Department of Health,Guys and St Thomas NHS Foundation Trust,13/03/2020,(82000) Provisions & Kitchens,(id:42447) Transplant Renal and Urology,NHS SUPPLY CHAIN (MAIDSTONE),id:12761500  ,   4.38
Department of Health,Guys and St Thomas NHS Foundation Trust,06/03/2020,(83410) Office Equipment,(id:42447) Transplant Renal and Urology,RICOH UK LTD,id:12878881   , 178.82
Department of Health,Guys and St Thomas NHS Foundation Trust,20/03/2020,(81100) Dressings,(id:42447) Transplant Renal and Urology,NHS SUPPLY CHAIN (MAIDSTONE),id:12864175    ,  53.80
Department of Health,Guys and St Thomas NHS Foundation Trust,20/03/2020,(81225) Medical Surgical Supplies & Equipment,(id:42447) Transplant Renal and Urology,NHS SUPPLY CHAIN (MAIDSTONE),id:12846415 ,  21.26
Department of Health,Guys and St Thomas NHS Foundation Trust,13/03/2020,(81225) Medical Surgical Supplies & Equipment,(id:42447) Transplant Renal and Urology,NHS SUPPLY CHAIN (MAIDSTONE),id:12761500 ,   9.58
Department of Health,Guys and St Thomas NHS Foundation Trust,13/03/2020,(81230) Medical Surgical Supplies & Equipment,(id:42447) Transplant Renal and Urology,NHS SUPPLY CHAIN (MAIDSTONE),id:12825586 ,  15.00
Department of Health,Guys and St Thomas NHS Foundation Trust,27/03/2020,(81200) Medical Surgical Supplies & Equipment,(id:42446) Transplant Renal and Urology,SQUADRON MEDICAL LTD,id:12885634    , 664.03
Department of Health,Guys and St Thomas NHS Foundation Trust,27/03/2020,(81200) Medical Surgical Supplies & Equipment,(id:42446) Transplant Renal and Urology,STRYKER UK LTD,id:12892674, 504.00
Department of Health,Guys and St Thomas NHS Foundation Trust,13/03/2020,(81200) Medical Surgical Supplies & Equipment,(id:42446) Transplant Renal and Urology,SQUADRON MEDICAL LTD,id:12845905    , 169.25
Department of Health,Guys and St Thomas NHS Foundation Trust,06/03/2020,(81200) Medical Surgical Supplies & Equipment,(id:42446) Transplant Renal and Urology,SQUADRON MEDICAL LTD,id:12827898    ,  18.88
Department of Health,Guys and St Thomas NHS Foundation Trust,13/03/2020,(81200) Medical Surgical Supplies & Equipment,(id:42446) Transplant Renal and Urology,SQUADRON MEDICAL LTD,id:12783105    ,  18.88
Department of Health,Guys and St Thomas NHS Foundation Trust,20/03/2020,(81400) Medical Surgical Supplies & Equipment,(id:42446) Transplant Renal and Urology,KARL STORZ ENDOSCOPY UK LTD,id:12893134  , 706.35
Department of Health,Guys and St Thomas NHS Foundation Trust,13/03/2020,(83400) Office Equipment,(id:42446) Transplant Renal and Urology,SQUADRON MEDICAL LTD,id:12848948, 204.17
Department of Health,Guys and St Thomas NHS Foundation Trust,20/03/2020,(83400) Office Equipment,(id:42446) Transplant Renal and Urology,SQUADRON MEDICAL LTD,id:12869036, 408.33
Department of Health,Guys and St Thomas NHS Foundation Trust,20/03/2020,(81500) X Ray Equipment Purchase,(id:42446) Transplant Renal and Urology,NHS SUPPLY CHAIN (MAIDSTONE),id:12846415    ,3751.44
Department of Health,Guys and St Thomas NHS Foundation Trust,27/03/2020,(81200) Medical Surgical Supplies & Equipment,(id:42444) Transplant Renal and Urology,BOSTON SCIENTIFIC LTD,id:12760792   , 624.78
Department of Health,Guys and St Thomas NHS Foundation Trust,13/03/2020,(81200) Medical Surgical Supplies & Equipment,(id:42444) Transplant Renal and Urology,COOK UK LTD,id:12825343   , 687.60
Department of Health,Guys and St Thomas NHS Foundation Trust,31/03/2020,(52062) Radiographers,(id:42444) Transplant Renal and Urology,PRICEWATERHOUSECOOPERS LLP,id:12945319  ,2417.46
Department of Health,Guys and St Thomas NHS Foundation Trust,20/03/2020,(81235) Medical Surgical Supplies & Equipment,(id:42444) Transplant Renal and Urology,BOSTON SCIENTIFIC LTD,id:12878996   , 298.08
Department of Health,Guys and St Thomas NHS Foundation Trust,13/03/2020,(82700) Uniforms & Clothing,(id:42443) Transplant Renal and Urology,NHS SUPPLY CHAIN (MAIDSTONE),id:12761500    ,  52.80
Department of Health,Guys and St Thomas NHS Foundation Trust,13/03/2020,(82800) Bedding & Linen,(id:42443) Transplant Renal and Urology,NHS SUPPLY CHAIN (MAIDSTONE),id:12761500   ,  75.29
Department of Health,Guys and St Thomas NHS Foundation Trust,13/03/2020,(81200) Medical Surgical Supplies & Equipment,(id:42443) Transplant Renal and Urology,NHS SUPPLY CHAIN (MAIDSTONE),id:12761500 , 699.28
Department of Health,Guys and St Thomas NHS Foundation Trust,06/03/2020,(50552) Qualified Nursing Staff,(id:42443) Transplant Renal and Urology,CONTINENTAL NURSE LTD,id:12882298  , 638.74
Department of Health,Guys and St Thomas NHS Foundation Trust,13/03/2020,(83400) Office Equipment,(id:42443) Transplant Renal and Urology,NHS SUPPLY CHAIN (MAIDSTONE),id:12825586  , 107.01
Department of Health,Guys and St Thomas NHS Foundation Trust,13/03/2020,(81255) Medical Surgical Supplies & Equipment,(id:42443) Transplant Renal and Urology,NHS SUPPLY CHAIN (MAIDSTONE),id:12812705 ,   6.24
Department of Health,Guys and St Thomas NHS Foundation Trust,13/03/2020,(82700) Uniforms & Clothing,(id:42442) Transplant Renal and Urology,NHS SUPPLY CHAIN (MAIDSTONE),id:12761500    ,  52.80
Department of Health,Guys and St Thomas NHS Foundation Trust,20/03/2020,(82700) Uniforms & Clothing,(id:42442) Transplant Renal and Urology,NHS SUPPLY CHAIN (MAIDSTONE),id:12864175    ,  31.68
Department of Health,Guys and St Thomas NHS Foundation Trust,20/03/2020,(82700) Uniforms & Clothing,(id:42442) Transplant Renal and Urology,NHS SUPPLY CHAIN (MAIDSTONE),id:12846415    ,  31.68
Department of Health,Guys and St Thomas NHS Foundation Trust,20/03/2020,(82000) Provisions & Kitchens,(id:42442) Transplant Renal and Urology,NHS SUPPLY CHAIN (MAIDSTONE),id:12846415  , 314.29
Department of Health,Guys and St Thomas NHS Foundation Trust,06/03/2020,(83500) Furniture & Fittings,(id:42442) Transplant Renal and Urology,SUNFLOWER MEDICAL LTD,id:12854570, 614.40
Department of Health,Guys and St Thomas NHS Foundation Trust,20/03/2020,(82800) Bedding & Linen,(id:42442) Transplant Renal and Urology,NHS SUPPLY CHAIN (MAIDSTONE),id:12846415   , 117.29
Department of Health,Guys and St Thomas NHS Foundation Trust,13/03/2020,(81100) Dressings,(id:42442) Transplant Renal and Urology,NHS SUPPLY CHAIN (MAIDSTONE),id:12812705    , 381.33
Department of Health,Guys and St Thomas NHS Foundation Trust,13/03/2020,(81200) Medical Surgical Supplies & Equipment,(id:42442) Transplant Renal and Urology,NHS SUPPLY CHAIN (MAIDSTONE),id:12761500 ,1069.65
Department of Health,Guys and St Thomas NHS Foundation Trust,13/03/2020,(83400) Office Equipment,(id:42442) Transplant Renal and Urology,NHS SUPPLY CHAIN (MAIDSTONE),id:12812705  , 156.52
Department of Health,Guys and St Thomas NHS Foundation Trust,20/03/2020,(81225) Medical Surgical Supplies & Equipment,(id:42442) Transplant Renal and Urology,NHS SUPPLY CHAIN (MAIDSTONE),id:12864175 ,  69.94
Department of Health,Guys and St Thomas NHS Foundation Trust,20/03/2020,(81700) Lab Equipment Purchase,(id:42442) Transplant Renal and Urology,NHS SUPPLY CHAIN (MAIDSTONE),id:12846415 ,  50.31
Department of Health,Guys and St Thomas NHS Foundation Trust,20/03/2020,(81200) Medical Surgical Supplies & Equipment,(id:42439) Transplant Renal and Urology,INTUITIVE SURGICAL LTD,id:12888122  ,    48051.60
Department of Health,Guys and St Thomas NHS Foundation Trust,20/03/2020,(81700) Lab Equipment Purchase,(id:3671419) Transplant Renal and Urology,NHS SUPPLY CHAIN (MAIDSTONE),id:12846415    ,   3.96
Department of Health,Guys and St Thomas NHS Foundation Trust,20/03/2020,(82000) Provisions & Kitchens,(id:42435) Transplant Renal and Urology,NHS SUPPLY CHAIN (MAIDSTONE),id:12864175  ,  44.39
Department of Health,Guys and St Thomas NHS Foundation Trust,06/03/2020,(84500) Establishment,(id:42435) Transplant Renal and Urology,CDP  PRINT MANAGEMENT,id:12868398  ,   3.60
Department of Health,Guys and St Thomas NHS Foundation Trust,20/03/2020,(81200) Medical Surgical Supplies & Equipment,(id:42435) Transplant Renal and Urology,NHS SUPPLY CHAIN (MAIDSTONE),id:12846415 , 952.49
Department of Health,Guys and St Thomas NHS Foundation Trust,06/03/2020,(50552) Qualified Nursing Staff,(id:42435) Transplant Renal and Urology,GLOBE LOCUMS LTD,id:12874608  , 345.41
Department of Health,Guys and St Thomas NHS Foundation Trust,27/03/2020,(81200) Medical Surgical Supplies & Equipment,(id:42433) Transplant Renal and Urology,SQUADRON MEDICAL LTD,id:12898973    , 339.44
Department of Health,Guys and St Thomas NHS Foundation Trust,20/03/2020,(81200) Medical Surgical Supplies & Equipment,(id:42433) Transplant Renal and Urology,SQUADRON MEDICAL LTD,id:12856114    ,  14.76
Department of Health,Guys and St Thomas NHS Foundation Trust,20/03/2020,(81200) Medical Surgical Supplies & Equipment,(id:42433) Transplant Renal and Urology,SQUADRON MEDICAL LTD,id:12856341    ,  70.32
Department of Health,Guys and St Thomas NHS Foundation Trust,06/03/2020,(81200) Medical Surgical Supplies & Equipment,(id:42433) Transplant Renal and Urology,HEALTHCARE 21 LTD,id:12867614  ,3963.60
Department of Health,Guys and St Thomas NHS Foundation Trust,13/03/2020,(81200) Medical Surgical Supplies & Equipment,(id:42433) Transplant Renal and Urology,SQUADRON MEDICAL LTD,id:12786418    , 466.46
Department of Health,Guys and St Thomas NHS Foundation Trust,13/03/2020,(81200) Medical Surgical Supplies & Equipment,(id:42433) Transplant Renal and Urology,SQUADRON MEDICAL LTD,id:12837825    , 466.46
Department of Health,Guys and St Thomas NHS Foundation Trust,13/03/2020,(89640) Non-Healthcare from NHS Trusts,(id:42433) Transplant Renal and Urology,MAIDSTONE AND TUNBRIDGE WELLS NHS TRUST,id:12779927  , 502.12
Department of Health,Guys and St Thomas NHS Foundation Trust,20/03/2020,(81100) Dressings,(id:42428) Transplant Renal and Urology,NHS SUPPLY CHAIN (MAIDSTONE),id:12846415    ,  22.61
Department of Health,Guys and St Thomas NHS Foundation Trust,20/03/2020,(81200) Medical Surgical Supplies & Equipment,(id:42428) Transplant Renal and Urology,NHS SUPPLY CHAIN (MAIDSTONE),id:12846415 , 355.10
Department of Health,Guys and St Thomas NHS Foundation Trust,20/03/2020,(81700) Lab Equipment Purchase,(id:42428) Transplant Renal and Urology,NHS SUPPLY CHAIN (MAIDSTONE),id:12864175 , 286.54
Department of Health,Guys and St Thomas NHS Foundation Trust,06/03/2020,(81200) Medical Surgical Supplies & Equipment,(id:42420) Transplant Renal and Urology,SQUADRON MEDICAL LTD,id:12853516    ,2124.07
Department of Health,Guys and St Thomas NHS Foundation Trust,06/03/2020,(81200) Medical Surgical Supplies & Equipment,(id:42420) Transplant Renal and Urology,BAXTER HEALTHCARE LTD,id:12834754   ,1138.46
Department of Health,Guys and St Thomas NHS Foundation Trust,13/03/2020,(81200) Medical Surgical Supplies & Equipment,(id:42420) Transplant Renal and Urology,NHS SUPPLY CHAIN (MAIDSTONE),id:12812705 , 181.38
Department of Health,Guys and St Thomas NHS Foundation Trust,13/03/2020,(81200) Medical Surgical Supplies & Equipment,(id:42420) Transplant Renal and Urology,SQUADRON MEDICAL LTD,id:12837916    ,1139.41
Department of Health,Guys and St Thomas NHS Foundation Trust,20/03/2020,(81200) Medical Surgical Supplies & Equipment,(id:42420) Transplant Renal and Urology,SQUADRON MEDICAL LTD,id:12868644    ,1080.20
Department of Health,Guys and St Thomas NHS Foundation Trust,20/03/2020,(81200) Medical Surgical Supplies & Equipment,(id:42420) Transplant Renal and Urology,SQUADRON MEDICAL LTD,id:12879296    , 341.91
Department of Health,Guys and St Thomas NHS Foundation Trust,20/03/2020,(81200) Medical Surgical Supplies & Equipment,(id:42420) Transplant Renal and Urology,FRESENIUS MEDICAL CARE RENAL SERVICES LT,id:12895237    ,2320.13
Department of Health,Guys and St Thomas NHS Foundation Trust,27/03/2020,(83400) Office Equipment,(id:42420) Transplant Renal and Urology,SQUADRON MEDICAL LTD,id:11953461, 134.88
Department of Health,Guys and St Thomas NHS Foundation Trust,13/03/2020,(83400) Office Equipment,(id:42420) Transplant Renal and Urology,NHS SUPPLY CHAIN (MAIDSTONE),id:12825586  ,  47.95
Department of Health,Guys and St Thomas NHS Foundation Trust,27/03/2020,(82800) Bedding & Linen,(id:42420) Transplant Renal and Urology,SQUADRON MEDICAL LTD,id:11953461 , 155.04
Department of Health,Guys and St Thomas NHS Foundation Trust,20/03/2020,(81100) Dressings,(id:42420) Transplant Renal and Urology,NHS SUPPLY CHAIN (MAIDSTONE),id:12846415    ,  22.32
Department of Health,Guys and St Thomas NHS Foundation Trust,13/03/2020,(50562) Qualified Nursing Staff,(id:42420) Transplant Renal and Urology,GLOBE LOCUMS LTD,id:12895878  , 465.40
Department of Health,Guys and St Thomas NHS Foundation Trust,13/03/2020,(82600) Uniforms & Clothing,(id:42420) Transplant Renal and Urology,NHS SUPPLY CHAIN (MAIDSTONE),id:12812705    , 216.00
Department of Health,Guys and St Thomas NHS Foundation Trust,20/03/2020,(82600) Uniforms & Clothing,(id:42420) Transplant Renal and Urology,NHS SUPPLY CHAIN (MAIDSTONE),id:12846415    ,  82.34
Department of Health,Guys and St Thomas NHS Foundation Trust,20/03/2020,(81200) Medical Surgical Supplies & Equipment,(id:42438) Transplant Renal and Urology,NHS SUPPLY CHAIN (MAIDSTONE),id:12864175 , 252.00
Department of Health,Guys and St Thomas NHS Foundation Trust,06/03/2020,(50562) Qualified Nursing Staff,(id:42438) Transplant Renal and Urology,GLOBE LOCUMS LTD,id:12874612  ,1256.61
Department of Health,Guys and St Thomas NHS Foundation Trust,27/03/2020,(83400) Office Equipment,(id:42438) Transplant Renal and Urology,SQUADRON MEDICAL LTD,id:10093095, 134.88
Department of Health,Guys and St Thomas NHS Foundation Trust,06/03/2020,(83410) Office Equipment,(id:42438) Transplant Renal and Urology,RICOH UK LTD,id:12878664   , 154.55
Department of Health,Guys and St Thomas NHS Foundation Trust,13/03/2020,(81200) Medical Surgical Supplies & Equipment,(id:42437) Transplant Renal and Urology,DIAVERUM UK LTD,id:12819640    ,    12108.33
Department of Health,Guys and St Thomas NHS Foundation Trust,27/03/2020,(81200) Medical Surgical Supplies & Equipment,(id:42432) Transplant Renal and Urology,SQUADRON MEDICAL LTD,id:10272372    , 919.02
Department of Health,Guys and St Thomas NHS Foundation Trust,20/03/2020,(81200) Medical Surgical Supplies & Equipment,(id:42432) Transplant Renal and Urology,NHS SUPPLY CHAIN (MAIDSTONE),id:12864175 ,  42.00
Department of Health,Guys and St Thomas NHS Foundation Trust,20/03/2020,(81700) Lab Equipment Purchase,(id:42432) Transplant Renal and Urology,NHS SUPPLY CHAIN (MAIDSTONE),id:12864175 , 104.90
